Body Name,Transaction Number,Account Code Description,Expenses Type,Service Code,Service Area Categorisation,Supplier Name,Date,Amount
Bath and North East Somerset Council,10861603,HE1,General Maintenance,P11,"Adult Care, Health & Wellbeing",ETHITEC,01/11/2017,4715.90
Bath and North East Somerset Council,10862287,LK1,Fees,P17,Transformation & Customer Services,SOMERSET COUNTY COUNCIL,02/01/2018,36.28
Bath and North East Somerset Council,10862287,LK1,Fees,P17,Transformation & Customer Services,SOMERSET COUNTY COUNCIL,02/01/2018,105.64
Bath and North East Somerset Council,10862287,LK1,Fees,P17,Transformation & Customer Services,SOMERSET COUNTY COUNCIL,02/01/2018,216.00
Bath and North East Somerset Council,10862039,KE2,Payment to Parents/Students,P12,Children & Young People,REDACTED,02/01/2018,936.00
Bath and North East Somerset Council,10862096,LW9,Other Expenses,Z99,Outside Revenue Accounts,DCLG,02/01/2018,729654.00
Bath and North East Somerset Council,10862202,HA2,Servicing,P16,Economic & Community Regeneration,ASHTON AIR CONDITIONING SERVICES LIMITED,02/01/2018,420.00
Bath and North East Somerset Council,10862308,KB1,Hire of Vehicles,P15,Development & Neighbourhoods,DAYS RENTAL,02/01/2018,454.72
Bath and North East Somerset Council,10862339,LW8,Conservation,P16,Economic & Community Regeneration,PRESERVATION EQUIPMENT LTD,02/01/2018,458.48
Bath and North East Somerset Council,10862366,KA1,Repairs & Maintenance,P15,Development & Neighbourhoods,VEHICLE WEIGHING SOLUTIONS LTD,02/01/2018,492.81
Bath and North East Somerset Council,10862316,LJ4,Contracts,P15,Development & Neighbourhoods,GILGEN DOOR SYSTEMS UK LTD,02/01/2018,497.00
Bath and North East Somerset Council,10862345,LK1,Fees,P16,Economic & Community Regeneration,RS SECURITY LTD,02/01/2018,497.00
Bath and North East Somerset Council,10862372,LH2,Advertising,P15,Development & Neighbourhoods,LOCAL WORLD LTD,02/01/2018,538.82
Bath and North East Somerset Council,10862225,LF1,Printing/Design,P16,Economic & Community Regeneration,NINEPOINT DESIGN LTD,02/01/2018,560.00
Bath and North East Somerset Council,10862242,LA1,Equipment Purchase (Non Medical),P16,Economic & Community Regeneration,HORDERS,02/01/2018,582.50
Bath and North East Somerset Council,10862357,3E4,Furniture/Equipment,P15,Development & Neighbourhoods,KEY INDUSTRIAL EQUIPMENT LTD,02/01/2018,596.60
Bath and North East Somerset Council,10862076,LJ4,Contracts,P18,Transport & Environment,RUSSELLS OF BATH PRIVATE HIRE,02/01/2018,696.92
Bath and North East Somerset Council,10862322,KB1,Hire of Vehicles,P15,Development & Neighbourhoods,ROBERTS (BATH) LTD,02/01/2018,718.50
Bath and North East Somerset Council,10862320,KB1,Hire of Vehicles,P15,Development & Neighbourhoods,ROBERTS (BATH) LTD,02/01/2018,754.50
Bath and North East Somerset Council,10862321,KB1,Hire of Vehicles,P15,Development & Neighbourhoods,ROBERTS (BATH) LTD,02/01/2018,754.50
Bath and North East Somerset Council,10862088,LJ4,Contracts,P18,Transport & Environment,RUSSELLS OF BATH PRIVATE HIRE,02/01/2018,765.82
Bath and North East Somerset Council,10862286,LK1,Fees,P11,"Adult Care, Health & Wellbeing",ASTER,02/01/2018,920.35
Bath and North East Somerset Council,10862090,LJ4,Contracts,P18,Transport & Environment,RUSSELLS OF BATH PRIVATE HIRE,02/01/2018,974.68
Bath and North East Somerset Council,10862086,LJ4,Contracts,P18,Transport & Environment,MARIAN CALINOIU (MARIO PRIVATE HIRE LTD),02/01/2018,998.80
Bath and North East Somerset Council,10862078,LJ4,Contracts,P18,Transport & Environment,RUSSELLS OF BATH PRIVATE HIRE,02/01/2018,1109.90
Bath and North East Somerset Council,10862091,LJ4,Contracts,P18,Transport & Environment,RUSSELLS OF BATH PRIVATE HIRE,02/01/2018,1148.40
Bath and North East Somerset Council,10862343,LK1,Fees,P16,Economic & Community Regeneration,RS SECURITY LTD,02/01/2018,1154.50
Bath and North East Somerset Council,10862066,LV1,Grants to Voluntary Bodies,P15,Development & Neighbourhoods,TIMSBURY PAROCHIAL CHURCH COUNCIL,02/01/2018,1232.00
Bath and North East Somerset Council,10862092,LJ4,Contracts,P18,Transport & Environment,RUSSELLS OF BATH PRIVATE HIRE,02/01/2018,1248.50
Bath and North East Somerset Council,10862353,EA1,Training,P15,Development & Neighbourhoods,PRISTINE CONDITION LTD,02/01/2018,1370.90
Bath and North East Somerset Council,10862336,LH3,Publicity,P16,Economic & Community Regeneration,CONSIDERED CREATIVE,02/01/2018,1500.00
Bath and North East Somerset Council,10862085,LJ4,Contracts,P18,Transport & Environment,MARIAN CALINOIU (MARIO PRIVATE HIRE LTD),02/01/2018,1551.00
Bath and North East Somerset Council,10862080,LJ4,Contracts,P18,Transport & Environment,BUGLERS COACHES LIMITED,02/01/2018,1553.86
Bath and North East Somerset Council,10862079,LJ4,Contracts,P18,Transport & Environment,BUGLERS COACHES LIMITED,02/01/2018,1650.00
Bath and North East Somerset Council,10862081,LJ4,Contracts,P18,Transport & Environment,BUGLERS COACHES LIMITED,02/01/2018,1664.74
Bath and North East Somerset Council,10862094,LJ4,Contracts,P18,Transport & Environment,BUGLERS COACHES LIMITED,02/01/2018,1664.74
Bath and North East Somerset Council,10862326,PA3,Payments to Health Authorities,P11,"Adult Care, Health & Wellbeing",NHS BATH & NORTH EAST SOMERSET CCG,02/01/2018,1723.15
Bath and North East Somerset Council,10862075,LJ4,Contracts,P18,Transport & Environment,BUGLERS COACHES LIMITED,02/01/2018,1775.84
Bath and North East Somerset Council,10862287,LK1,Fees,P17,Transformation & Customer Services,SOMERSET COUNTY COUNCIL,02/01/2018,1777.88
Bath and North East Somerset Council,10862367,LA3,Equipment Maintenance (Non Medical),P15,Development & Neighbourhoods,DC WELDING LTD,02/01/2018,2095.64
Bath and North East Somerset Council,10862278,LK1,Fees,P11,"Adult Care, Health & Wellbeing",ASTER,02/01/2018,2422.80
Bath and North East Somerset Council,10862100,LW9,Other Expenses,Z99,Outside Revenue Accounts,SOMERSET COUNTY COUNCIL,02/01/2018,355337.00
Bath and North East Somerset Council,10862180,LK1,Fees,P15,Development & Neighbourhoods,BRISTOL CITY COUNCIL,02/01/2018,3203.00
Bath and North East Somerset Council,10862367,LA3,Equipment Maintenance (Non Medical),P15,Development & Neighbourhoods,DC WELDING LTD,02/01/2018,3217.00
Bath and North East Somerset Council,10862084,LJ4,Contracts,P18,Transport & Environment,MARIAN CALINOIU (MARIO PRIVATE HIRE LTD),02/01/2018,3698.40
Bath and North East Somerset Council,10862323,LK1,Fees,P11,"Adult Care, Health & Wellbeing",NHS BATH & NORTH EAST SOMERSET CCG,02/01/2018,5500.00
Bath and North East Somerset Council,10862287,LK1,Fees,P17,Transformation & Customer Services,SOMERSET COUNTY COUNCIL,02/01/2018,9834.77
Bath and North East Somerset Council,10862285,LF5,Postages,P10,Finance & Efficiency,NEOPOST CREDIFON,02/01/2018,10000.00
Bath and North East Somerset Council,10862319,LJ4,Contracts,P11,"Adult Care, Health & Wellbeing",GBS RE SW AMBUL SVC NHS FT,02/01/2018,11368.00
Bath and North East Somerset Council,10862315,KA3,Fuel,P15,Development & Neighbourhoods,FORD FUELS LTD,02/01/2018,18809.16
Bath and North East Somerset Council,10862302,LJ1,Consultants Fees,P10,Finance & Efficiency,BLOOM PROCUREMENT SERVICES LIMITED,02/01/2018,26625.53
Bath and North East Somerset Council,10862287,LK1,Fees,P17,Transformation & Customer Services,SOMERSET COUNTY COUNCIL,02/01/2018,43443.06
Bath and North East Somerset Council,10862362,LJ4,Contracts,P12,Children & Young People,SOUTHSIDE FAMILY PROJECT,02/01/2018,102821.50
Bath and North East Somerset Council,10862097,LW9,Other Expenses,Z99,Outside Revenue Accounts,MENDIP DISTRICT COUNCIL,02/01/2018,147337.00
Bath and North East Somerset Council,10862098,LW9,Other Expenses,Z99,Outside Revenue Accounts,NORTH SOMERSET COUNCIL,02/01/2018,178639.00
Bath and North East Somerset Council,10862095,LW9,Other Expenses,Z99,Outside Revenue Accounts,TAUNTON DEANE BOROUGH COUNCIL,02/01/2018,226366.00
Bath and North East Somerset Council,10862101,LW9,Other Expenses,Z99,Outside Revenue Accounts,SOUTH SOMERSET DISTRICT COUNCIL,02/01/2018,334878.00
Bath and North East Somerset Council,10862099,LW9,Other Expenses,Z99,Outside Revenue Accounts,SEDGEMOOR DISTRICT COUNCIL,02/01/2018,542685.00
Bath and North East Somerset Council,80741441,PG1,Rent Allowances,P10,Finance & Efficiency,ADVANCE HOUSING SUPPORT & SUPPOR,03/01/2018,2124.00
Bath and North East Somerset Council,10862408,HE1,General Maintenance,P15,Development & Neighbourhoods,DC WELDING LTD,03/01/2018,20.00
Bath and North East Somerset Council,10862383,LW9,Other Expenses,P12,Children & Young People,B&NES COUNCIL -  OFFICE SERVICES,03/01/2018,5569.68
Bath and North East Somerset Council,10862409,KA2,Running Costs,P15,Development & Neighbourhoods,DENNIS EAGLE LTD,03/01/2018,119.88
Bath and North East Somerset Council,10862409,KA2,Running Costs,P15,Development & Neighbourhoods,DENNIS EAGLE LTD,03/01/2018,119.88
Bath and North East Somerset Council,80741453,LM6,Nursing Care,P11,"Adult Care, Health & Wellbeing",BARKER CHEMICALS LTD T/A ST TERESA'S NH,03/01/2018,397.18
Bath and North East Somerset Council,80741453,LM6,Nursing Care,P11,"Adult Care, Health & Wellbeing",BARKER CHEMICALS LTD T/A ST TERESA'S NH,03/01/2018,2065.33
Bath and North East Somerset Council,80741453,LM6,Nursing Care,P11,"Adult Care, Health & Wellbeing",BARKER CHEMICALS LTD T/A ST TERESA'S NH,03/01/2018,8040.61
Bath and North East Somerset Council,80741453,LM6,Nursing Care,P11,"Adult Care, Health & Wellbeing",BARKER CHEMICALS LTD T/A ST TERESA'S NH,03/01/2018,8204.71
Bath and North East Somerset Council,80741439,PG1,Rent Allowances,P10,Finance & Efficiency,BATH CHRISTIAN TRUST,03/01/2018,900.00
Bath and North East Somerset Council,10862409,KA2,Running Costs,P15,Development & Neighbourhoods,DENNIS EAGLE LTD,03/01/2018,300.00
Bath and North East Somerset Council,10862409,KA2,Running Costs,P15,Development & Neighbourhoods,DENNIS EAGLE LTD,03/01/2018,300.00
Bath and North East Somerset Council,10862324,LV2,Contributions to Organisations,P04,Leader,CAMDEN ROAD RESIDENTS ASSOCIATION,03/01/2018,500.00
Bath and North East Somerset Council,80741451,LM6,Nursing Care,P11,"Adult Care, Health & Wellbeing",CEDAR PARK NURSING HOME,03/01/2018,7387.52
Bath and North East Somerset Council,80739080,YF2,Fees & Charges,Z99,Outside Revenue Accounts,CHANDAG JUNIOR SCHOOL,03/01/2018,6072.21
Bath and North East Somerset Council,10861690,LW9,Other Expenses,P18,Transport & Environment,CURO PLACES LTD,03/01/2018,2279.00
Bath and North East Somerset Council,10862408,HE1,General Maintenance,P15,Development & Neighbourhoods,DC WELDING LTD,03/01/2018,418.00
Bath and North East Somerset Council,10862363,HP6,Water Charges,P15,Development & Neighbourhoods,WATER2BUSINESS,03/01/2018,446.00
Bath and North East Somerset Council,10862472,3F7,External Fees,P10,Finance & Efficiency,CAPITA SYMONDS,03/01/2018,450.00
Bath and North East Somerset Council,10862387,LK1,Fees,P15,Development & Neighbourhoods,WOODBOROUGH KENNELS LTD,03/01/2018,469.99
Bath and North East Somerset Council,10862413,LH2,Advertising,P15,Development & Neighbourhoods,LOCAL WORLD LTD,03/01/2018,538.82
Bath and North East Somerset Council,10862454,LK1,Fees,P12,Children & Young People,TALKOUT SERVICES LTD,03/01/2018,597.40
Bath and North East Somerset Council,10862416,LJ4,Contracts,P11,"Adult Care, Health & Wellbeing",OXFORD UNIVERSITY HOSPITALS NHS FT,03/01/2018,599.00
Bath and North East Somerset Council,10862378,3C4,Building Works,P12,Children & Young People,"BROADLANDS ACADEMY, ACADEMIES ENTERPRISE TRUST",03/01/2018,650.00
Bath and North East Somerset Council,10862087,HN2,Gas,P10,Finance & Efficiency,GAZPROM MARKETING & TRADING RETAIL LTD,03/01/2018,681.85
Bath and North East Somerset Council,10862463,LK1,Fees,P12,Children & Young People,JESSICA ALLEN,03/01/2018,780.00
Bath and North East Somerset Council,10862418,LT2,Hospitality,P11,"Adult Care, Health & Wellbeing",NHS BATH & NORTH EAST SOMERSET CCG,03/01/2018,783.36
Bath and North East Somerset Council,10862396,LA5,Materials,P15,Development & Neighbourhoods,YOUNG JOHNSON,03/01/2018,800.00
Bath and North East Somerset Council,80739440,LL8,Individualised Budget,P11,"Adult Care, Health & Wellbeing",REDACTED,03/01/2018,3836.62
Bath and North East Somerset Council,10862453,LK1,Fees,P12,Children & Young People,TALKOUT SERVICES LTD,03/01/2018,953.00
Bath and North East Somerset Council,10862455,LK1,Fees,P12,Children & Young People,TALKOUT SERVICES LTD,03/01/2018,953.00
Bath and North East Somerset Council,10862444,LA5,Materials,P15,Development & Neighbourhoods,IMPERIAL POLYTHENE PRODUCTS LTD,03/01/2018,985.46
Bath and North East Somerset Council,10859436,3F7,External Fees,P10,Finance & Efficiency,THE TESTING LAB LTD,03/01/2018,1050.00
Bath and North East Somerset Council,10862414,LJ4,Contracts,P11,"Adult Care, Health & Wellbeing",GBS RE IMPERIAL COLLEGE HEALTHCARE NHST 1,03/01/2018,1055.27
Bath and North East Somerset Council,80741452,LM6,Nursing Care,P11,"Adult Care, Health & Wellbeing",LARKHALL SPRINGS NURSING HOME,03/01/2018,2543.46
Bath and North East Somerset Council,80741452,LM6,Nursing Care,P11,"Adult Care, Health & Wellbeing",LARKHALL SPRINGS NURSING HOME,03/01/2018,4925.01
Bath and North East Somerset Council,80741363,LM2,Foster Carer Allowances,P12,Children & Young People,REDACTED,03/01/2018,249.14
Bath and North East Somerset Council,80741363,LM2,Foster Carer Allowances,P12,Children & Young People,REDACTED,03/01/2018,417.00
Bath and North East Somerset Council,80741440,PG1,Rent Allowances,P10,Finance & Efficiency,REDACTED,03/01/2018,930.12
Bath and North East Somerset Council,80741358,LM2,Foster Carer Allowances,P12,Children & Young People,REDACTED,03/01/2018,144.43
Bath and North East Somerset Council,80741358,LM2,Foster Carer Allowances,P12,Children & Young People,REDACTED,03/01/2018,221.43
Bath and North East Somerset Council,80741358,LM2,Foster Carer Allowances,P12,Children & Young People,REDACTED,03/01/2018,639.62
Bath and North East Somerset Council,80741361,LL6,Needs & Services,P12,Children & Young People,REDACTED,03/01/2018,176.05
Bath and North East Somerset Council,80741361,LL2,Personal Needs of Clients,P12,Children & Young People,REDACTED,03/01/2018,186.40
Bath and North East Somerset Council,80741361,LL3,Supported Living,P16,Economic & Community Regeneration,REDACTED,03/01/2018,336.86
Bath and North East Somerset Council,80741384,LM2,Foster Carer Allowances,P12,Children & Young People,REDACTED,03/01/2018,288.86
Bath and North East Somerset Council,80741384,LM2,Foster Carer Allowances,P12,Children & Young People,REDACTED,03/01/2018,288.86
Bath and North East Somerset Council,80741384,LM2,Foster Carer Allowances,P12,Children & Young People,REDACTED,03/01/2018,785.96
Bath and North East Somerset Council,10861947,LJ2,Legal Fees,P12,Children & Young People,MISS SOPHIE J KNAPP,03/01/2018,1400.00
Bath and North East Somerset Council,80741373,LM1,Volunt Homes Placements Top/Up,P12,Children & Young People,REDACTED,03/01/2018,177.36
Bath and North East Somerset Council,80741373,LM1,Volunt Homes Placements Top/Up,P12,Children & Young People,REDACTED,03/01/2018,249.14
Bath and North East Somerset Council,80741373,LM1,Volunt Homes Placements Top/Up,P12,Children & Young People,REDACTED,03/01/2018,249.14
Bath and North East Somerset Council,80741373,LM1,Volunt Homes Placements Top/Up,P12,Children & Young People,REDACTED,03/01/2018,848.28
Bath and North East Somerset Council,80741385,LL2,Personal Needs of Clients,P12,Children & Young People,REDACTED,03/01/2018,176.05
Bath and North East Somerset Council,80741385,LL3,Supported Living,P16,Economic & Community Regeneration,REDACTED,03/01/2018,318.14
Bath and North East Somerset Council,80741389,LM2,Foster Carer Allowances,P12,Children & Young People,REDACTED,03/01/2018,144.43
Bath and North East Somerset Council,80741389,LM2,Foster Carer Allowances,P12,Children & Young People,REDACTED,03/01/2018,249.14
Bath and North East Somerset Council,10862415,LF5,Postages,P10,Finance & Efficiency,WHISTL UK LTD,03/01/2018,1518.85
Bath and North East Somerset Council,10861011,3F7,External Fees,P16,Economic & Community Regeneration,BERWIN LEIGHTON PAISNER,03/01/2018,1750.00
Bath and North East Somerset Council,10861948,LJ2,Legal Fees,P12,Children & Young People,MISS SOPHIE J KNAPP,03/01/2018,1775.00
Bath and North East Somerset Council,80741385,LL2,Personal Needs of Clients,P12,Children & Young People,REDACTED,03/01/2018,31.57
Bath and North East Somerset Council,80741361,LL2,Personal Needs of Clients,P12,Children & Young People,REDACTED,03/01/2018,33.43
Bath and North East Somerset Council,80741363,LM2,Foster Carer Allowances,P12,Children & Young People,REDACTED,03/01/2018,50.00
Bath and North East Somerset Council,80741389,LM2,Foster Carer Allowances,P12,Children & Young People,REDACTED,03/01/2018,50.00
Bath and North East Somerset Council,80741389,LM2,Foster Carer Allowances,P12,Children & Young People,REDACTED,03/01/2018,50.00
Bath and North East Somerset Council,80741389,KE3,Transport & Travel,P12,Children & Young People,REDACTED,03/01/2018,75.69
Bath and North East Somerset Council,80741385,LK1,Fees,P16,Economic & Community Regeneration,REDACTED,03/01/2018,87.50
Bath and North East Somerset Council,10862410,3V1,Vehicle Purchase,P15,Development & Neighbourhoods,DENNIS EAGLE LTD,03/01/2018,2180.00
Bath and North East Somerset Council,10862411,KB1,Hire of Vehicles,P15,Development & Neighbourhoods,SFS LIMITED T/A CTS,03/01/2018,2240.00
Bath and North East Somerset Council,80741384,LM2,Foster Carer Allowances,P12,Children & Young People,REDACTED,03/01/2018,100.00
Bath and North East Somerset Council,80741384,LM2,Foster Carer Allowances,P12,Children & Young People,REDACTED,03/01/2018,100.00
Bath and North East Somerset Council,80741363,LM2,Foster Carer Allowances,P12,Children & Young People,REDACTED,03/01/2018,125.00
Bath and North East Somerset Council,10862398,LM1,Volunt Homes Placements Top/Up,P12,Children & Young People,DAVID SHAW,03/01/2018,2750.00
Bath and North East Somerset Council,10862462,3F7,External Fees,P16,Economic & Community Regeneration,DTZ DEBENHAM TIE LEUNG LTD,03/01/2018,3185.00
Bath and North East Somerset Council,10862419,LM2,Foster Carer Allowances,P12,Children & Young People,THE CHILDREN'S FAMILY TRUST,03/01/2018,3199.50
Bath and North East Somerset Council,10862420,LM2,Foster Carer Allowances,P12,Children & Young People,THE CHILDREN'S FAMILY TRUST,03/01/2018,3201.00
Bath and North East Somerset Council,10862400,LM2,Foster Carer Allowances,P12,Children & Young People,BLUE SKY FOSTERING LTD C/O FBS,03/01/2018,3255.00
Bath and North East Somerset Council,10862199,LA1,Equipment Purchase (Non Medical),P11,"Adult Care, Health & Wellbeing",SIRONA CARE & HEALTH C.I.C.,03/01/2018,3387.19
Bath and North East Somerset Council,80741454,LM6,Nursing Care,P11,"Adult Care, Health & Wellbeing",ST MONICAS GENERAL ACCOUNT,03/01/2018,5560.51
Bath and North East Somerset Council,80741454,LM6,Nursing Care,P11,"Adult Care, Health & Wellbeing",ST MONICAS GENERAL ACCOUNT,03/01/2018,5989.44
Bath and North East Somerset Council,80741454,LM6,Nursing Care,P11,"Adult Care, Health & Wellbeing",ST MONICAS GENERAL ACCOUNT,03/01/2018,6275.43
Bath and North East Somerset Council,80741454,LM6,Nursing Care,P11,"Adult Care, Health & Wellbeing",ST MONICAS GENERAL ACCOUNT,03/01/2018,7712.42
Bath and North East Somerset Council,80741454,LM6,Nursing Care,P11,"Adult Care, Health & Wellbeing",ST MONICAS GENERAL ACCOUNT,03/01/2018,7712.42
Bath and North East Somerset Council,10862196,LA1,Equipment Purchase (Non Medical),P11,"Adult Care, Health & Wellbeing",SIRONA CARE & HEALTH C.I.C.,03/01/2018,3933.10
Bath and North East Somerset Council,10862388,LK1,Fees,P18,Transport & Environment,SOUTH GLOUCESTERSHIRE COUNCIL,03/01/2018,4599.34
Bath and North East Somerset Council,10862197,LA1,Equipment Purchase (Non Medical),P11,"Adult Care, Health & Wellbeing",SIRONA CARE & HEALTH C.I.C.,03/01/2018,4614.02
Bath and North East Somerset Council,10862431,LJ4,Contracts,P11,"Adult Care, Health & Wellbeing",UNIVERSITY HOSPITALS BRISTOL,03/01/2018,4708.68
Bath and North East Somerset Council,10861671,LK1,Fees,P16,Economic & Community Regeneration,BRISTOL CITY COUNCIL,03/01/2018,5000.00
Bath and North East Somerset Council,10862402,LM2,Foster Carer Allowances,P12,Children & Young People,FOSTERING MATTERS LTD,03/01/2018,5208.00
Bath and North East Somerset Council,10862382,PA3,Payments to Health Authorities,P11,"Adult Care, Health & Wellbeing",NHS BATH & NORTH EAST SOMERSET CCG,03/01/2018,7861.32
Bath and North East Somerset Council,10862198,LA1,Equipment Purchase (Non Medical),P11,"Adult Care, Health & Wellbeing",SIRONA CARE & HEALTH C.I.C.,03/01/2018,7921.31
Bath and North East Somerset Council,10862252,HP3,Room Hire Charges,P10,Finance & Efficiency,NHS PROPERTY SERVICES LTD,03/01/2018,8531.54
Bath and North East Somerset Council,10862403,LM2,Foster Carer Allowances,P12,Children & Young People,CARETECH COMMUNITY SERVICES LTD,03/01/2018,10500.00
Bath and North East Somerset Council,10862087,HN2,Gas,P10,Finance & Efficiency,GAZPROM MARKETING & TRADING RETAIL LTD,03/01/2018,13681.57
Bath and North East Somerset Council,10862435,3E5,IT Hardware,P16,Economic & Community Regeneration,PINACL SOLUTIONS UK LTD,03/01/2018,14450.00
Bath and North East Somerset Council,10862471,DB1,Agency Staff,P10,Finance & Efficiency,COMENSURA LTD,03/01/2018,17453.77
Bath and North East Somerset Council,10862199,LA1,Equipment Purchase (Non Medical),P11,"Adult Care, Health & Wellbeing",SIRONA CARE & HEALTH C.I.C.,03/01/2018,20981.07
Bath and North East Somerset Council,10862196,LA1,Equipment Purchase (Non Medical),P11,"Adult Care, Health & Wellbeing",SIRONA CARE & HEALTH C.I.C.,03/01/2018,24362.61
Bath and North East Somerset Council,10862197,LA1,Equipment Purchase (Non Medical),P11,"Adult Care, Health & Wellbeing",SIRONA CARE & HEALTH C.I.C.,03/01/2018,28580.36
Bath and North East Somerset Council,10862198,LA1,Equipment Purchase (Non Medical),P11,"Adult Care, Health & Wellbeing",SIRONA CARE & HEALTH C.I.C.,03/01/2018,49066.56
Bath and North East Somerset Council,10862401,LM1,Volunt Homes Placements Top/Up,P12,Children & Young People,AURORA CARE AND EDUCATION OPCO LTD,03/01/2018,55553.53
Bath and North East Somerset Council,10862468,LJ4,Contracts,P11,"Adult Care, Health & Wellbeing",VIRGIN CARE SERVICES LTD,03/01/2018,3872810.00
Bath and North East Somerset Council,10862466,LV1,Grants to Voluntary Bodies,P18,Transport & Environment,AGE UK BATH & N E SOMERSET,04/01/2018,2000.00
Bath and North East Somerset Council,80741466,PG1,Rent Allowances,P10,Finance & Efficiency,ALLEN RESIDENTIAL LETTINGS,04/01/2018,740.76
Bath and North East Somerset Council,10862540,LJ4,Contracts,P15,Development & Neighbourhoods,I C FLEET SERVICES LTD,04/01/2018,94.50
Bath and North East Somerset Council,10862341,LF6,Subscriptions,P10,Finance & Efficiency,PRENAX LTD,04/01/2018,249.15
Bath and North East Somerset Council,80741540,PG1,Rent Allowances,P10,Finance & Efficiency,BARONS PROPERTY AGENTS,04/01/2018,1004.48
Bath and North East Somerset Council,80741578,PG1,Rent Allowances,P10,Finance & Efficiency,BATH & DISTRICT LIFE CARE,04/01/2018,2467.86
Bath and North East Somerset Council,80741558,PG1,Rent Allowances,P10,Finance & Efficiency,CENTRIX PROPERTIES LTD,04/01/2018,625.12
Bath and North East Somerset Council,10862475,LV1,Grants to Voluntary Bodies,P18,Transport & Environment,CHEW VALLEY COMMUNITY TRANSPORT,04/01/2018,950.00
Bath and North East Somerset Council,80741433,PG1,Rent Allowances,P10,Finance & Efficiency,CURO,04/01/2018,1000.00
Bath and North East Somerset Council,80741580,PG1,Rent Allowances,P10,Finance & Efficiency,CURO,04/01/2018,15281.71
Bath and North East Somerset Council,80741579,PG1,Rent Allowances,P10,Finance & Efficiency,CURO,04/01/2018,55744.68
Bath and North East Somerset Council,10862540,LJ4,Contracts,P15,Development & Neighbourhoods,I C FLEET SERVICES LTD,04/01/2018,375.40
Bath and North East Somerset Council,10862550,LA1,Equipment Purchase (Non Medical),P12,Children & Young People,BATH CONTRACT FLOORING LTD,04/01/2018,450.00
Bath and North East Somerset Council,10862514,3F7,External Fees,P15,Development & Neighbourhoods,CAPITA SYMONDS,04/01/2018,450.00
Bath and North East Somerset Council,10862542,LA1,Equipment Purchase (Non Medical),P12,Children & Young People,LMS MUSIC SUPPLIES,04/01/2018,476.68
Bath and North East Somerset Council,10862491,3F7,External Fees,P10,Finance & Efficiency,JOHNS ASSOCIATES,04/01/2018,595.00
Bath and North East Somerset Council,10862536,LA5,Materials,P15,Development & Neighbourhoods,I C FLEET SERVICES LTD,04/01/2018,657.00
Bath and North East Somerset Council,10862461,LJ4,Contracts,P11,"Adult Care, Health & Wellbeing",CHELSEA WESTMINSTER  HOSPITAL NHS FOUND,04/01/2018,678.04
Bath and North East Somerset Council,10862557,3F7,External Fees,P11,"Adult Care, Health & Wellbeing",MACE LIMITED,04/01/2018,748.00
Bath and North East Somerset Council,10862570,3F7,External Fees,P12,Children & Young People,MACE LIMITED,04/01/2018,748.00
Bath and North East Somerset Council,10862439,KE2,Payment to Parents/Students,P12,Children & Young People,REDACTED,04/01/2018,780.00
Bath and North East Somerset Council,10862364,KB1,Hire of Vehicles,P15,Development & Neighbourhoods,IMPACT FORK TRUCKS LIMITED,04/01/2018,819.96
Bath and North East Somerset Council,10862370,KB1,Hire of Vehicles,P15,Development & Neighbourhoods,IMPACT FORK TRUCKS LIMITED,04/01/2018,876.91
Bath and North East Somerset Council,10862555,3F7,External Fees,P15,Development & Neighbourhoods,MACE LIMITED,04/01/2018,888.50
Bath and North East Somerset Council,80741542,PG1,Rent Allowances,P10,Finance & Efficiency,HANOVER HOUSING ASSOCIATION,04/01/2018,1949.80
Bath and North East Somerset Council,10862559,3F7,External Fees,P11,"Adult Care, Health & Wellbeing",MACE LIMITED,04/01/2018,935.00
Bath and North East Somerset Council,10862560,3F7,External Fees,P11,"Adult Care, Health & Wellbeing",MACE LIMITED,04/01/2018,935.00
Bath and North East Somerset Council,10862569,3F7,External Fees,P11,"Adult Care, Health & Wellbeing",MACE LIMITED,04/01/2018,935.00
Bath and North East Somerset Council,10862486,LJ4,Contracts,P18,Transport & Environment,BBFI LTD,04/01/2018,960.00
Bath and North East Somerset Council,80741530,PG1,Rent Allowances,P10,Finance & Efficiency,REDACTED,04/01/2018,7788.50
Bath and North East Somerset Council,80741526,PG1,Rent Allowances,P10,Finance & Efficiency,KNIGHTSTONE HOUSING ASSOCIATION,04/01/2018,6621.38
Bath and North East Somerset Council,80741541,PG1,Rent Allowances,P10,Finance & Efficiency,KNIGHTSTONE HOUSING ASSOCIATION,04/01/2018,9009.78
Bath and North East Somerset Council,80741529,PG1,Rent Allowances,P10,Finance & Efficiency,KNIGHTSTONE HOUSING GROUP LIMITE,04/01/2018,2429.02
Bath and North East Somerset Council,10862438,KE2,Payment to Parents/Students,P12,Children & Young People,REDACTED,04/01/2018,707.20
Bath and North East Somerset Council,10862543,LJ4,Contracts,P12,Children & Young People,BATH & NE SOMERSET CARERS CENTRE,04/01/2018,1013.30
Bath and North East Somerset Council,10862554,3F7,External Fees,P16,Economic & Community Regeneration,GREENMAN ENVIRONMENTAL MANAGEMENT,04/01/2018,1122.00
Bath and North East Somerset Council,10862556,3F7,External Fees,P16,Economic & Community Regeneration,WOOD & WOOD INTERNATIONAL SIGN,04/01/2018,1136.00
Bath and North East Somerset Council,80741471,PG1,Rent Allowances,P10,Finance & Efficiency,REDACTED,04/01/2018,1507.60
Bath and North East Somerset Council,80741456,LK1,Fees,P12,Children & Young People,REDACTED,04/01/2018,620.00
Bath and North East Somerset Council,80741500,PG1,Rent Allowances,P10,Finance & Efficiency,REDACTED,04/01/2018,1003.90
Bath and North East Somerset Council,80741472,PG1,Rent Allowances,P10,Finance & Efficiency,REDACTED,04/01/2018,725.10
Bath and North East Somerset Council,80741543,PG1,Rent Allowances,P10,Finance & Efficiency,REDACTED,04/01/2018,521.52
Bath and North East Somerset Council,80741562,PG1,Rent Allowances,P10,Finance & Efficiency,REDACTED,04/01/2018,586.80
Bath and North East Somerset Council,80741479,PG1,Rent Allowances,P10,Finance & Efficiency,REDACTED,04/01/2018,634.08
Bath and North East Somerset Council,80741476,PG1,Rent Allowances,P10,Finance & Efficiency,REDACTED,04/01/2018,513.03
Bath and North East Somerset Council,80741571,PG1,Rent Allowances,P10,Finance & Efficiency,REDACTED,04/01/2018,585.92
Bath and North East Somerset Council,80741510,PG1,Rent Allowances,P10,Finance & Efficiency,REDACTED,04/01/2018,553.36
Bath and North East Somerset Council,80741547,PG1,Rent Allowances,P10,Finance & Efficiency,REDACTED,04/01/2018,1050.64
Bath and North East Somerset Council,80741474,PG1,Rent Allowances,P10,Finance & Efficiency,REDACTED,04/01/2018,507.68
Bath and North East Somerset Council,80741475,PG1,Rent Allowances,P10,Finance & Efficiency,REDACTED,04/01/2018,666.92
Bath and North East Somerset Council,80741462,PG1,Rent Allowances,P10,Finance & Efficiency,REDACTED,04/01/2018,623.08
Bath and North East Somerset Council,80741561,PG1,Rent Allowances,P10,Finance & Efficiency,REDACTED,04/01/2018,542.96
Bath and North East Somerset Council,80741464,PG1,Rent Allowances,P10,Finance & Efficiency,REDACTED,04/01/2018,623.08
Bath and North East Somerset Council,80741457,LK1,Fees,P12,Children & Young People,REDACTED,04/01/2018,942.60
Bath and North East Somerset Council,80741565,PG1,Rent Allowances,P10,Finance & Efficiency,REDACTED,04/01/2018,668.92
Bath and North East Somerset Council,80741551,PG1,Rent Allowances,P10,Finance & Efficiency,REDACTED,04/01/2018,549.24
Bath and North East Somerset Council,80741481,PG1,Rent Allowances,P10,Finance & Efficiency,REDACTED,04/01/2018,3838.05
Bath and North East Somerset Council,80741557,PG1,Rent Allowances,P10,Finance & Efficiency,REDACTED,04/01/2018,542.96
Bath and North East Somerset Council,10862518,LV2,Contributions to Organisations,P15,Development & Neighbourhoods,DIALOGUE CONSULTANTS LTD,04/01/2018,1370.78
Bath and North East Somerset Council,80741518,PG1,Rent Allowances,P10,Finance & Efficiency,REDACTED,04/01/2018,553.84
Bath and North East Somerset Council,80741469,PG1,Rent Allowances,P10,Finance & Efficiency,REDACTED,04/01/2018,784.64
Bath and North East Somerset Council,80741574,PG1,Rent Allowances,P10,Finance & Efficiency,REDACTED,04/01/2018,729.48
Bath and North East Somerset Council,80741559,PG1,Rent Allowances,P10,Finance & Efficiency,REDACTED,04/01/2018,606.00
Bath and North East Somerset Council,80741576,PG1,Rent Allowances,P10,Finance & Efficiency,REDACTED,04/01/2018,889.20
Bath and North East Somerset Council,10862485,3F7,External Fees,P10,Finance & Efficiency,JOHNS ASSOCIATES,04/01/2018,1495.00
Bath and North East Somerset Council,10861660,LJ1,Consultants Fees,P10,Finance & Efficiency,CIPFA BUSINESS LTD,04/01/2018,1579.50
Bath and North East Somerset Council,80741572,PG1,Rent Allowances,P10,Finance & Efficiency,P.E.O.P.L.E.,04/01/2018,2707.20
Bath and North East Somerset Council,80741528,PG1,Rent Allowances,P10,Finance & Efficiency,PEGASUS PROPERTIES,04/01/2018,1222.76
Bath and North East Somerset Council,10862495,3F7,External Fees,P18,Transport & Environment,BRUNEL PROJECT MANAGEMENT LTD,04/01/2018,2000.00
Bath and North East Somerset Council,10862506,3F7,External Fees,P16,Economic & Community Regeneration,COTSWOLD ARCHAEOLOGY,04/01/2018,2100.00
Bath and North East Somerset Council,10862544,LA1,Equipment Purchase (Non Medical),P12,Children & Young People,SOFA PROJECT,04/01/2018,2100.02
Bath and North East Somerset Council,10862348,LF1,Printing/Design,P10,Finance & Efficiency,XEROX FINANCE LIMITED,04/01/2018,2195.72
Bath and North East Somerset Council,80741480,PG1,Rent Allowances,P10,Finance & Efficiency,RESIDE HOUSING ASSOCIATION,04/01/2018,5372.82
Bath and North East Somerset Council,10862519,LA5,Materials,P15,Development & Neighbourhoods,YOUNG JOHNSON,04/01/2018,2386.60
Bath and North East Somerset Council,10862524,HE5,Security of Premises,P15,Development & Neighbourhoods,S P WATKINS,04/01/2018,2425.00
Bath and North East Somerset Council,80741536,PG1,Rent Allowances,P10,Finance & Efficiency,SANCTUARY HOUSING SERVICES LIMIT,04/01/2018,1041.28
Bath and North East Somerset Council,10862341,LF6,Subscriptions,P10,Finance & Efficiency,PRENAX LTD,04/01/2018,3005.10
Bath and North East Somerset Council,80741534,PG1,Rent Allowances,P10,Finance & Efficiency,SOLON (SOUTH WEST) HOUSING ASSOC,04/01/2018,1496.36
Bath and North East Somerset Council,80741458,LK1,Fees,P12,Children & Young People,REDACTED,04/01/2018,636.00
Bath and North East Somerset Council,10862476,LV1,Grants to Voluntary Bodies,P18,Transport & Environment,ST PHILLIPS COMMUNITY MINIBUS,04/01/2018,1234.25
Bath and North East Somerset Council,10862493,LK1,Fees,P10,Finance & Efficiency,BAILEY PARTNERSHIP,04/01/2018,3705.00
Bath and North East Somerset Council,10862500,LX6,Bus Revenue Support,P18,Transport & Environment,FIRST SOMERSET & AVON LTD,04/01/2018,4226.27
Bath and North East Somerset Council,10862477,LV1,Grants to Voluntary Bodies,P18,Transport & Environment,SWAN ADVICE NETWORK,04/01/2018,4060.75
Bath and North East Somerset Council,10862498,LK1,Fees,P15,Development & Neighbourhoods,CAPITA SYMONDS,04/01/2018,4917.00
Bath and North East Somerset Council,80741465,PG1,Rent Allowances,P10,Finance & Efficiency,REDACTED,04/01/2018,3973.68
Bath and North East Somerset Council,80741548,PG1,Rent Allowances,P10,Finance & Efficiency,THE BATH PROPERTY SHOP,04/01/2018,526.16
Bath and North East Somerset Council,80741532,PG1,Rent Allowances,P10,Finance & Efficiency,THE GUINNESS PARTNERSHIP,04/01/2018,1547.10
Bath and North East Somerset Council,80741531,PG1,Rent Allowances,P10,Finance & Efficiency,THE GUINNESS PARTNERSHIP,04/01/2018,2330.80
Bath and North East Somerset Council,80741560,PG1,Rent Allowances,P10,Finance & Efficiency,TRUSTEASE PROPERTY MANAGEMENT LT,04/01/2018,1140.84
Bath and North East Somerset Council,10862589,LP5,Software Support,P10,Finance & Efficiency,BOOKING BUG,04/01/2018,9600.00
Bath and North East Somerset Council,10862586,KA3,Fuel,P15,Development & Neighbourhoods,ALLSTAR BUSINESS SOLUTIONS LTD,04/01/2018,11309.66
Bath and North East Somerset Council,10862502,LJ1,Consultants Fees,P10,Finance & Efficiency,ARLINGCLOSE LTD,04/01/2018,11500.00
Bath and North East Somerset Council,10862558,3F7,External Fees,P16,Economic & Community Regeneration,LAMBERT SMITH HAMPTON GROUP LTD,04/01/2018,11572.53
Bath and North East Somerset Council,10862474,LV1,Grants to Voluntary Bodies,P18,Transport & Environment,BATH COMMUNITY TRANSPORT,04/01/2018,12999.25
Bath and North East Somerset Council,10862478,LV1,Grants to Voluntary Bodies,P18,Transport & Environment,WELLOW COMMUNITY BUS GROUP,04/01/2018,1243.75
Bath and North East Somerset Council,10862479,LV1,Grants to Voluntary Bodies,P18,Transport & Environment,KEYNSHAM & DISTRICT DIAL-A-RIDE,04/01/2018,18850.50
Bath and North East Somerset Council,10862499,LX6,Bus Revenue Support,P18,Transport & Environment,FIRST SOMERSET & AVON LTD,04/01/2018,19575.99
Bath and North East Somerset Council,10862521,HK3,Sewerage & Land Drainage Maint,P18,Transport & Environment,ALUN GRIFFITHS (CONTRACTORS) LTD,04/01/2018,19618.00
Bath and North East Somerset Council,10860677,LE1,Education Payment (independent school),P12,Children & Young People,COTSWOLD CHINE SCHOOL,04/01/2018,20628.56
Bath and North East Somerset Council,80741459,LK1,Fees,P12,Children & Young People,FOSSE WAY SCHOOL,04/01/2018,22498.75
Bath and North East Somerset Council,10862489,LV1,Grants to Voluntary Bodies,P18,Transport & Environment,MIDSOMER NORTON & RADSTOCK DIAL A RIDE,04/01/2018,25550.25
Bath and North East Somerset Council,80741527,PG1,Rent Allowances,P10,Finance & Efficiency,Y.M.C.A.,04/01/2018,1805.52
Bath and North East Somerset Council,80741657,LM9,Day Care,P11,"Adult Care, Health & Wellbeing",ALZHEIMER'S SOCIETY,05/01/2018,633.06
Bath and North East Somerset Council,80741660,LM8,Home Care,P11,"Adult Care, Health & Wellbeing",AMBER HOMECARE LTD,05/01/2018,787.24
Bath and North East Somerset Council,80741660,LM8,Home Care,P11,"Adult Care, Health & Wellbeing",AMBER HOMECARE LTD,05/01/2018,1261.71
Bath and North East Somerset Council,10862488,LJ3,Other Services to the Council,P17,Transformation & Customer Services,RUNDLES & CO LTD,05/01/2018,75.00
Bath and North East Somerset Council,10862488,LJ3,Other Services to the Council,P17,Transformation & Customer Services,RUNDLES & CO LTD,05/01/2018,75.00
Bath and North East Somerset Council,10862646,LP5,Software Support,P10,Finance & Efficiency,SHINE VISION LTD,05/01/2018,246.33
Bath and North East Somerset Council,10862646,LP5,Software Support,P10,Finance & Efficiency,SHINE VISION LTD,05/01/2018,246.33
Bath and North East Somerset Council,10862573,KE3,Transport & Travel,P10,Finance & Efficiency,STEVE WARREN TRANSPORT SERVICES LTD,05/01/2018,275.00
Bath and North East Somerset Council,80741650,LL3,Supported Living,P11,"Adult Care, Health & Wellbeing",BATH MIND,05/01/2018,150.00
Bath and North East Somerset Council,80741650,LL3,Supported Living,P11,"Adult Care, Health & Wellbeing",BATH MIND,05/01/2018,500.00
Bath and North East Somerset Council,80741663,LM9,Day Care,P11,"Adult Care, Health & Wellbeing",CARE FUTURES,05/01/2018,738.84
Bath and North East Somerset Council,80741663,LM9,Day Care,P11,"Adult Care, Health & Wellbeing",CARE FUTURES,05/01/2018,1350.09
Bath and North East Somerset Council,80741617,LK1,Fees,P12,Children & Young People,COMENIUS TRUST T/A ABBOT ALPHEGE ACADEMY,05/01/2018,67263.00
Bath and North East Somerset Council,10862494,LJ3,Other Services to the Council,P17,Transformation & Customer Services,RUNDLES & CO LTD,05/01/2018,399.87
Bath and North East Somerset Council,80741585,LA7,Purchases for Resale,P16,Economic & Community Regeneration,DROYT PRODUCTS LTD,05/01/2018,479.80
Bath and North East Somerset Council,10862652,HA2,Servicing,P10,Finance & Efficiency,TYCO FIRE & INTEGRATED SOLUTIONS (UK) LTD,05/01/2018,504.50
Bath and North East Somerset Council,10862689,3F7,External Fees,P10,Finance & Efficiency,THE TESTING LAB LTD,05/01/2018,515.00
Bath and North East Somerset Council,80741595,LA7,Purchases for Resale,P16,Economic & Community Regeneration,ST NICOLAS,05/01/2018,517.40
Bath and North East Somerset Council,80741582,LA7,Purchases for Resale,P16,Economic & Community Regeneration,RHODAWN LIMITED T/A BOOKSPEED,05/01/2018,548.15
Bath and North East Somerset Council,10862693,KB1,Hire of Vehicles,P15,Development & Neighbourhoods,LINDE SEVERNSIDE LTD,05/01/2018,559.24
Bath and North East Somerset Council,10862573,KE3,Transport & Travel,P10,Finance & Efficiency,STEVE WARREN TRANSPORT SERVICES LTD,05/01/2018,605.00
Bath and North East Somerset Council,80741584,LA7,Purchases for Resale,P16,Economic & Community Regeneration,COTSWOLD LAVENDER,05/01/2018,611.80
Bath and North East Somerset Council,10862666,LD1,Protective & Safety Clothing,P15,Development & Neighbourhoods,SMI GROUP,05/01/2018,619.60
Bath and North East Somerset Council,80741581,LA7,Purchases for Resale,P16,Economic & Community Regeneration,AHMAD TEA LIMITED,05/01/2018,619.87
Bath and North East Somerset Council,10862533,LA3,Equipment Maintenance (Non Medical),P18,Transport & Environment,COMMS365 LTD,05/01/2018,627.00
Bath and North East Somerset Council,10862688,3F7,External Fees,P12,Children & Young People,THE TESTING LAB LTD,05/01/2018,640.00
Bath and North East Somerset Council,10862632,LJ4,Contracts,P18,Transport & Environment,ROMAN BATH TRANSPORT,05/01/2018,644.58
Bath and North East Somerset Council,10862573,KE3,Transport & Travel,P10,Finance & Efficiency,STEVE WARREN TRANSPORT SERVICES LTD,05/01/2018,660.00
Bath and North East Somerset Council,10862593,KE3,Transport & Travel,P10,Finance & Efficiency,WELTON CABS,05/01/2018,660.00
Bath and North East Somerset Council,10862614,LJ4,Contracts,P18,Transport & Environment,KEYNSHAM CARS,05/01/2018,660.00
Bath and North East Somerset Council,80741651,LL3,Supported Living,P11,"Adult Care, Health & Wellbeing",DIMENSIONS (UK) LTD,05/01/2018,293.12
Bath and North East Somerset Council,80741651,LL3,Supported Living,P11,"Adult Care, Health & Wellbeing",DIMENSIONS (UK) LTD,05/01/2018,439.68
Bath and North East Somerset Council,10862587,EA1,Training,P10,Finance & Efficiency,ROYAL UNITED HOSPITAL NHS TRUST,05/01/2018,700.00
Bath and North East Somerset Council,80741651,LL3,Supported Living,P11,"Adult Care, Health & Wellbeing",DIMENSIONS (UK) LTD,05/01/2018,732.80
Bath and North East Somerset Council,10862616,LJ4,Contracts,P18,Transport & Environment,KEYNSHAM CARS,05/01/2018,704.00
Bath and North East Somerset Council,10862605,LJ4,Contracts,P18,Transport & Environment,T WESTLAKE ACCESS TRAVEL,05/01/2018,704.00
Bath and North East Somerset Council,10862669,LJ4,Contracts,P18,Transport & Environment,NORTHGATE PUBLIC SERVICES (UK) LTD,05/01/2018,709.40
Bath and North East Somerset Council,80741651,LL3,Supported Living,P11,"Adult Care, Health & Wellbeing",DIMENSIONS (UK) LTD,05/01/2018,1025.92
Bath and North East Somerset Council,80741651,LL3,Supported Living,P11,"Adult Care, Health & Wellbeing",DIMENSIONS (UK) LTD,05/01/2018,1465.60
Bath and North East Somerset Council,80741651,LL3,Supported Living,P11,"Adult Care, Health & Wellbeing",DIMENSIONS (UK) LTD,05/01/2018,1538.88
Bath and North East Somerset Council,10862663,LF1,Printing/Design,P10,Finance & Efficiency,TAYLOR BROTHERS BRISTOL LTD,05/01/2018,763.00
Bath and North East Somerset Council,10862606,LJ4,Contracts,P18,Transport & Environment,T WESTLAKE ACCESS TRAVEL,05/01/2018,770.00
Bath and North East Somerset Council,10862651,HA2,Servicing,P10,Finance & Efficiency,TYCO FIRE & INTEGRATED SOLUTIONS (UK) LTD,05/01/2018,784.00
Bath and North East Somerset Council,80741651,LL3,Supported Living,P11,"Adult Care, Health & Wellbeing",DIMENSIONS (UK) LTD,05/01/2018,6468.68
Bath and North East Somerset Council,80741651,LL3,Supported Living,P11,"Adult Care, Health & Wellbeing",DIMENSIONS (UK) LTD,05/01/2018,8498.44
Bath and North East Somerset Council,80741651,LL3,Supported Living,P11,"Adult Care, Health & Wellbeing",DIMENSIONS (UK) LTD,05/01/2018,9045.32
Bath and North East Somerset Council,80741651,LL3,Supported Living,P11,"Adult Care, Health & Wellbeing",DIMENSIONS (UK) LTD,05/01/2018,9546.12
Bath and North East Somerset Council,80741651,LL3,Supported Living,P11,"Adult Care, Health & Wellbeing",DIMENSIONS (UK) LTD,05/01/2018,11248.60
Bath and North East Somerset Council,10862630,LJ4,Contracts,P18,Transport & Environment,ROMAN BATH TRANSPORT,05/01/2018,797.50
Bath and North East Somerset Council,80741586,LA7,Purchases for Resale,P16,Economic & Community Regeneration,FIKKERTS LTD,05/01/2018,805.50
Bath and North East Somerset Council,10862631,LJ4,Contracts,P18,Transport & Environment,ROMAN BATH TRANSPORT,05/01/2018,807.20
Bath and North East Somerset Council,10862684,LD1,Protective & Safety Clothing,P15,Development & Neighbourhoods,SMI GROUP,05/01/2018,837.50
Bath and North East Somerset Council,10862590,LJ4,Contracts,P18,Transport & Environment,CENTURION CARS,05/01/2018,882.30
Bath and North East Somerset Council,10862588,EA1,Training,P10,Finance & Efficiency,ROYAL UNITED HOSPITAL NHS TRUST,05/01/2018,900.00
Bath and North East Somerset Council,10862612,LL2,Personal Needs of Clients,P12,Children & Young People,JACK HARVEY ESTATE AGENTS LTD,05/01/2018,923.46
Bath and North East Somerset Council,80741653,LL3,Supported Living,P11,"Adult Care, Health & Wellbeing",HOME FARM TRUST,05/01/2018,2799.52
Bath and North East Somerset Council,80741653,LL3,Supported Living,P11,"Adult Care, Health & Wellbeing",HOME FARM TRUST,05/01/2018,4818.36
Bath and North East Somerset Council,80741667,LM8,Home Care,P11,"Adult Care, Health & Wellbeing",KEYSTONES MENTAL HEALTH SERVICES,05/01/2018,1081.92
Bath and North East Somerset Council,80741645,LM8,Home Care,P11,"Adult Care, Health & Wellbeing",KUMARI HOMECARE SERVICE,05/01/2018,71.75
Bath and North East Somerset Council,80741645,LM8,Home Care,P11,"Adult Care, Health & Wellbeing",KUMARI HOMECARE SERVICE,05/01/2018,71.75
Bath and North East Somerset Council,80741645,LM8,Home Care,P11,"Adult Care, Health & Wellbeing",KUMARI HOMECARE SERVICE,05/01/2018,82.00
Bath and North East Somerset Council,80741645,LM8,Home Care,P11,"Adult Care, Health & Wellbeing",KUMARI HOMECARE SERVICE,05/01/2018,82.00
Bath and North East Somerset Council,80741645,LM8,Home Care,P11,"Adult Care, Health & Wellbeing",KUMARI HOMECARE SERVICE,05/01/2018,143.50
Bath and North East Somerset Council,80741645,LM8,Home Care,P11,"Adult Care, Health & Wellbeing",KUMARI HOMECARE SERVICE,05/01/2018,143.50
Bath and North East Somerset Council,80741645,LM8,Home Care,P11,"Adult Care, Health & Wellbeing",KUMARI HOMECARE SERVICE,05/01/2018,215.25
Bath and North East Somerset Council,80741645,LM8,Home Care,P11,"Adult Care, Health & Wellbeing",KUMARI HOMECARE SERVICE,05/01/2018,215.25
Bath and North East Somerset Council,80741645,LM8,Home Care,P11,"Adult Care, Health & Wellbeing",KUMARI HOMECARE SERVICE,05/01/2018,235.75
Bath and North East Somerset Council,80741645,LM8,Home Care,P11,"Adult Care, Health & Wellbeing",KUMARI HOMECARE SERVICE,05/01/2018,256.25
Bath and North East Somerset Council,80741645,LM8,Home Care,P11,"Adult Care, Health & Wellbeing",KUMARI HOMECARE SERVICE,05/01/2018,256.25
Bath and North East Somerset Council,80741645,LM8,Home Care,P11,"Adult Care, Health & Wellbeing",KUMARI HOMECARE SERVICE,05/01/2018,271.63
Bath and North East Somerset Council,80741645,LM8,Home Care,P11,"Adult Care, Health & Wellbeing",KUMARI HOMECARE SERVICE,05/01/2018,353.63
Bath and North East Somerset Council,80741645,LM8,Home Care,P11,"Adult Care, Health & Wellbeing",KUMARI HOMECARE SERVICE,05/01/2018,369.00
Bath and North East Somerset Council,80741645,LM8,Home Care,P11,"Adult Care, Health & Wellbeing",KUMARI HOMECARE SERVICE,05/01/2018,451.00
Bath and North East Somerset Council,80741645,LM8,Home Care,P11,"Adult Care, Health & Wellbeing",KUMARI HOMECARE SERVICE,05/01/2018,492.00
Bath and North East Somerset Council,80741645,LM8,Home Care,P11,"Adult Care, Health & Wellbeing",KUMARI HOMECARE SERVICE,05/01/2018,789.25
Bath and North East Somerset Council,10862629,LJ4,Contracts,P18,Transport & Environment,T WESTLAKE ACCESS TRAVEL,05/01/2018,1062.00
Bath and North East Somerset Council,80741645,LM8,Home Care,P11,"Adult Care, Health & Wellbeing",KUMARI HOMECARE SERVICE,05/01/2018,789.25
Bath and North East Somerset Council,80741645,LM8,Home Care,P11,"Adult Care, Health & Wellbeing",KUMARI HOMECARE SERVICE,05/01/2018,804.93
Bath and North East Somerset Council,80741645,LM8,Home Care,P11,"Adult Care, Health & Wellbeing",KUMARI HOMECARE SERVICE,05/01/2018,804.93
Bath and North East Somerset Council,10862619,LJ4,Contracts,P18,Transport & Environment,KEYNSHAM CARS,05/01/2018,1079.46
Bath and North East Somerset Council,80741645,LM8,Home Care,P11,"Adult Care, Health & Wellbeing",KUMARI HOMECARE SERVICE,05/01/2018,817.32
Bath and North East Somerset Council,80741645,LM8,Home Care,P11,"Adult Care, Health & Wellbeing",KUMARI HOMECARE SERVICE,05/01/2018,1020.25
Bath and North East Somerset Council,80741645,LM8,Home Care,P11,"Adult Care, Health & Wellbeing",KUMARI HOMECARE SERVICE,05/01/2018,1020.25
Bath and North East Somerset Council,80741645,LM8,Home Care,P11,"Adult Care, Health & Wellbeing",KUMARI HOMECARE SERVICE,05/01/2018,1091.93
Bath and North East Somerset Council,80741645,LM8,Home Care,P11,"Adult Care, Health & Wellbeing",KUMARI HOMECARE SERVICE,05/01/2018,1091.93
Bath and North East Somerset Council,80741645,LM8,Home Care,P11,"Adult Care, Health & Wellbeing",KUMARI HOMECARE SERVICE,05/01/2018,1091.93
Bath and North East Somerset Council,80741645,LM8,Home Care,P11,"Adult Care, Health & Wellbeing",KUMARI HOMECARE SERVICE,05/01/2018,1091.93
Bath and North East Somerset Council,80741645,LM8,Home Care,P11,"Adult Care, Health & Wellbeing",KUMARI HOMECARE SERVICE,05/01/2018,1901.75
Bath and North East Somerset Council,80741645,LM8,Home Care,P11,"Adult Care, Health & Wellbeing",KUMARI HOMECARE SERVICE,05/01/2018,1901.75
Bath and North East Somerset Council,10862622,LJ4,Contracts,P18,Transport & Environment,KEYNSHAM CARS,05/01/2018,1109.80
Bath and North East Somerset Council,10862584,LA5,Materials,P15,Development & Neighbourhoods,IMPERIAL POLYTHENE PRODUCTS LTD,05/01/2018,1126.24
Bath and North East Somerset Council,10862617,LJ4,Contracts,P18,Transport & Environment,KEYNSHAM CARS,05/01/2018,1144.00
Bath and North East Somerset Council,10862621,LJ4,Contracts,P18,Transport & Environment,KEYNSHAM CARS,05/01/2018,1144.00
Bath and North East Somerset Council,80741666,LM8,Home Care,P11,"Adult Care, Health & Wellbeing",REDACTED,05/01/2018,462.00
Bath and North East Somerset Council,80741666,LM8,Home Care,P11,"Adult Care, Health & Wellbeing",REDACTED,05/01/2018,1176.00
Bath and North East Somerset Council,10862624,LJ4,Contracts,P18,Transport & Environment,T WESTLAKE ACCESS TRAVEL,05/01/2018,1198.56
Bath and North East Somerset Council,10862575,LJ4,Contracts,P18,Transport & Environment,CENTURION CARS,05/01/2018,1220.00
Bath and North East Somerset Council,10862633,LJ4,Contracts,P18,Transport & Environment,ROMAN BATH TRANSPORT,05/01/2018,1243.00
Bath and North East Somerset Council,80741598,LA7,Purchases for Resale,P16,Economic & Community Regeneration,WESTAIR REPRODUCTIONS LIMITED,05/01/2018,1463.46
Bath and North East Somerset Council,80741646,LL3,Supported Living,P11,"Adult Care, Health & Wellbeing",NATIONAL AUTISTIC SOCIETY,05/01/2018,0.01
Bath and North East Somerset Council,80741646,LL3,Supported Living,P11,"Adult Care, Health & Wellbeing",NATIONAL AUTISTIC SOCIETY,05/01/2018,0.01
Bath and North East Somerset Council,80741646,LL3,Supported Living,P11,"Adult Care, Health & Wellbeing",NATIONAL AUTISTIC SOCIETY,05/01/2018,0.01
Bath and North East Somerset Council,80741646,LL3,Supported Living,P11,"Adult Care, Health & Wellbeing",NATIONAL AUTISTIC SOCIETY,05/01/2018,0.01
Bath and North East Somerset Council,80741646,LL3,Supported Living,P11,"Adult Care, Health & Wellbeing",NATIONAL AUTISTIC SOCIETY,05/01/2018,1311.95
Bath and North East Somerset Council,80741646,LL3,Supported Living,P11,"Adult Care, Health & Wellbeing",NATIONAL AUTISTIC SOCIETY,05/01/2018,1311.95
Bath and North East Somerset Council,80741646,LL3,Supported Living,P11,"Adult Care, Health & Wellbeing",NATIONAL AUTISTIC SOCIETY,05/01/2018,1311.95
Bath and North East Somerset Council,80741646,LL3,Supported Living,P11,"Adult Care, Health & Wellbeing",NATIONAL AUTISTIC SOCIETY,05/01/2018,1311.95
Bath and North East Somerset Council,80741615,WR8,Internal Council Schools Transfers,P10,Finance & Efficiency,WELLSWAY MULTI ACADEMY TRUST,05/01/2018,1532.00
Bath and North East Somerset Council,10862600,LH3,Publicity,P15,Development & Neighbourhoods,LONGCOMBE LABELS LTD,05/01/2018,1976.50
Bath and North East Somerset Council,80741655,LL3,Supported Living,P11,"Adult Care, Health & Wellbeing",PRESTIGE NURSING HEALTHCARE,05/01/2018,180.90
Bath and North East Somerset Council,10862648,LF5,Postages,P10,Finance & Efficiency,NEOPOST FINANCE LIMITED,05/01/2018,1986.34
Bath and North East Somerset Council,80741655,LM8,Home Care,P11,"Adult Care, Health & Wellbeing",PRESTIGE NURSING HEALTHCARE,05/01/2018,503.14
Bath and North East Somerset Council,80741655,LM8,Home Care,P11,"Adult Care, Health & Wellbeing",PRESTIGE NURSING HEALTHCARE,05/01/2018,522.72
Bath and North East Somerset Council,80741655,LM8,Home Care,P11,"Adult Care, Health & Wellbeing",PRESTIGE NURSING HEALTHCARE,05/01/2018,930.63
Bath and North East Somerset Council,80741655,LM8,Home Care,P11,"Adult Care, Health & Wellbeing",PRESTIGE NURSING HEALTHCARE,05/01/2018,1231.03
Bath and North East Somerset Council,80741655,LL3,Supported Living,P11,"Adult Care, Health & Wellbeing",PRESTIGE NURSING HEALTHCARE,05/01/2018,1346.33
Bath and North East Somerset Council,80741655,LL3,Supported Living,P11,"Adult Care, Health & Wellbeing",PRESTIGE NURSING HEALTHCARE,05/01/2018,1370.11
Bath and North East Somerset Council,80741655,LM8,Home Care,P11,"Adult Care, Health & Wellbeing",PRESTIGE NURSING HEALTHCARE,05/01/2018,2544.07
Bath and North East Somerset Council,80741655,LM8,Home Care,P11,"Adult Care, Health & Wellbeing",PRESTIGE NURSING HEALTHCARE,05/01/2018,2688.00
Bath and North East Somerset Council,80741655,LM8,Home Care,P11,"Adult Care, Health & Wellbeing",PRESTIGE NURSING HEALTHCARE,05/01/2018,3019.52
Bath and North East Somerset Council,80741655,LM8,Home Care,P11,"Adult Care, Health & Wellbeing",PRESTIGE NURSING HEALTHCARE,05/01/2018,3067.61
Bath and North East Somerset Council,80741655,LM8,Home Care,P11,"Adult Care, Health & Wellbeing",PRESTIGE NURSING HEALTHCARE,05/01/2018,3257.85
Bath and North East Somerset Council,80741655,LM8,Home Care,P11,"Adult Care, Health & Wellbeing",PRESTIGE NURSING HEALTHCARE,05/01/2018,3964.17
Bath and North East Somerset Council,80741655,LM8,Home Care,P11,"Adult Care, Health & Wellbeing",PRESTIGE NURSING HEALTHCARE,05/01/2018,5130.19
Bath and North East Somerset Council,80741655,LM8,Home Care,P11,"Adult Care, Health & Wellbeing",PRESTIGE NURSING HEALTHCARE,05/01/2018,5155.87
Bath and North East Somerset Council,10862597,LH3,Publicity,P15,Development & Neighbourhoods,LONGCOMBE LABELS LTD,05/01/2018,2382.20
Bath and North East Somerset Council,80741652,LL3,Supported Living,P11,"Adult Care, Health & Wellbeing",ROYAL MENCAP SOCIETY,05/01/2018,1712.28
Bath and North East Somerset Council,80741652,LM8,Home Care,P11,"Adult Care, Health & Wellbeing",ROYAL MENCAP SOCIETY,05/01/2018,2024.28
Bath and North East Somerset Council,80741652,LM8,Home Care,P11,"Adult Care, Health & Wellbeing",ROYAL MENCAP SOCIETY,05/01/2018,2059.00
Bath and North East Somerset Council,80741652,LM8,Home Care,P11,"Adult Care, Health & Wellbeing",ROYAL MENCAP SOCIETY,05/01/2018,2157.68
Bath and North East Somerset Council,80741652,LM8,Home Care,P11,"Adult Care, Health & Wellbeing",ROYAL MENCAP SOCIETY,05/01/2018,4737.76
Bath and North East Somerset Council,80741652,LL3,Supported Living,P11,"Adult Care, Health & Wellbeing",ROYAL MENCAP SOCIETY,05/01/2018,5918.08
Bath and North East Somerset Council,10862608,3G1,Grants/Advances,P16,Economic & Community Regeneration,MR R HEDLEY,05/01/2018,2640.00
Bath and North East Somerset Council,80741665,LM6,Nursing Care,P11,"Adult Care, Health & Wellbeing",NEWCROSS HEALTHCARE SOLUTIONS LTD,05/01/2018,2995.20
Bath and North East Somerset Council,10862636,PB3,Payments to Other Establishments,P12,Children & Young People,SOMERDALE EDUCATE TOGETHER PRIMARY ACADEMY,05/01/2018,50000.00
Bath and North East Somerset Council,80741616,LK1,Fees,P12,Children & Young People,SOMERDALE EDUCATE TOGETHER PRIMARY ACADEMY,05/01/2018,67263.00
Bath and North East Somerset Council,10862576,HN1,Electricity,P10,Finance & Efficiency,ST MICHAEL'S CHURCH OF ENGLAND V.C. JUNIOR SCHOOL,05/01/2018,930.27
Bath and North East Somerset Council,10862679,3F7,External Fees,P16,Economic & Community Regeneration,BAILEY PARTNERSHIP,05/01/2018,3744.00
Bath and North East Somerset Council,10862591,KE3,Transport & Travel,P10,Finance & Efficiency,WELTON CABS,05/01/2018,4180.00
Bath and North East Somerset Council,80741647,LM9,Day Care,P11,"Adult Care, Health & Wellbeing",SWALLOW LTD,05/01/2018,17.88
Bath and North East Somerset Council,80741647,LM9,Day Care,P11,"Adult Care, Health & Wellbeing",SWALLOW LTD,05/01/2018,44.70
Bath and North East Somerset Council,80741647,LM9,Day Care,P11,"Adult Care, Health & Wellbeing",SWALLOW LTD,05/01/2018,85.16
Bath and North East Somerset Council,80741647,LM9,Day Care,P11,"Adult Care, Health & Wellbeing",SWALLOW LTD,05/01/2018,176.28
Bath and North East Somerset Council,80741647,LM9,Day Care,P11,"Adult Care, Health & Wellbeing",SWALLOW LTD,05/01/2018,176.28
Bath and North East Somerset Council,80741647,LM9,Day Care,P11,"Adult Care, Health & Wellbeing",SWALLOW LTD,05/01/2018,636.00
Bath and North East Somerset Council,80741649,LM9,Day Care,P11,"Adult Care, Health & Wellbeing",THE BRANDON TRUST,05/01/2018,112.30
Bath and North East Somerset Council,80741649,LM9,Day Care,P11,"Adult Care, Health & Wellbeing",THE BRANDON TRUST,05/01/2018,526.40
Bath and North East Somerset Council,80741659,LM8,Home Care,P11,"Adult Care, Health & Wellbeing",UNITED RESPONSE,05/01/2018,534.48
Bath and North East Somerset Council,80741659,LL3,Supported Living,P11,"Adult Care, Health & Wellbeing",UNITED RESPONSE,05/01/2018,571.52
Bath and North East Somerset Council,80741659,LM8,Home Care,P11,"Adult Care, Health & Wellbeing",UNITED RESPONSE,05/01/2018,1124.72
Bath and North East Somerset Council,80741659,LL3,Supported Living,P11,"Adult Care, Health & Wellbeing",UNITED RESPONSE,05/01/2018,1618.94
Bath and North East Somerset Council,10862025,LP5,Software Support,P10,Finance & Efficiency,NORTHGATE PUBLIC SERVICES (UK) LTD,05/01/2018,8750.00
Bath and North East Somerset Council,80741659,LL3,Supported Living,P11,"Adult Care, Health & Wellbeing",UNITED RESPONSE,05/01/2018,3837.28
Bath and North East Somerset Council,80741659,LL3,Supported Living,P11,"Adult Care, Health & Wellbeing",UNITED RESPONSE,05/01/2018,10825.92
Bath and North East Somerset Council,80741664,LM8,Home Care,P11,"Adult Care, Health & Wellbeing",WAY AHEAD COMMUNITY SERVICES LTD,05/01/2018,107.82
Bath and North East Somerset Council,80741664,LM8,Home Care,P11,"Adult Care, Health & Wellbeing",WAY AHEAD COMMUNITY SERVICES LTD,05/01/2018,143.76
Bath and North East Somerset Council,80741664,LM8,Home Care,P11,"Adult Care, Health & Wellbeing",WAY AHEAD COMMUNITY SERVICES LTD,05/01/2018,742.76
Bath and North East Somerset Council,80741669,LL3,Supported Living,P11,"Adult Care, Health & Wellbeing",NEXT STEP CARE MANAGEMENT LTD,05/01/2018,14251.45
Bath and North East Somerset Council,80741669,LL3,Supported Living,P11,"Adult Care, Health & Wellbeing",NEXT STEP CARE MANAGEMENT LTD,05/01/2018,14974.30
Bath and North East Somerset Council,10862676,LE1,Education Payment (independent school),P12,Children & Young People,INAURA,05/01/2018,35760.00
Bath and North East Somerset Council,10862680,3F7,External Fees,P16,Economic & Community Regeneration,ALLIES AND MORRISON,05/01/2018,51387.00
Bath and North East Somerset Council,80741614,RR8,Internal Schools Transfers Paid,P12,Children & Young People,MNSP PRIMARY SCHOOL RE MIDSOMER NORTON,05/01/2018,62593.26
Bath and North East Somerset Council,80742059,LL8,Individualised Budget,P11,"Adult Care, Health & Wellbeing",REDACTED,08/01/2018,4089.72
Bath and North East Somerset Council,80741999,LL8,Individualised Budget,P11,"Adult Care, Health & Wellbeing",REDACTED,08/01/2018,2969.00
Bath and North East Somerset Council,80742220,LM3,Residential Care,P11,"Adult Care, Health & Wellbeing",ALEXANDRA HOMES (BRISTOL) LTD,08/01/2018,3674.00
Bath and North East Somerset Council,10862678,LX6,Bus Revenue Support,P18,Transport & Environment,ABUS,08/01/2018,15.00
Bath and North East Somerset Council,80742240,LM3,Residential Care,P11,"Adult Care, Health & Wellbeing",ALMONDSBURY CARE LTD,08/01/2018,1300.00
Bath and North East Somerset Council,80742305,LM3,Residential Care,P11,"Adult Care, Health & Wellbeing",ANCHOR TRUST,08/01/2018,1106.00
Bath and North East Somerset Council,80742305,LM3,Residential Care,P11,"Adult Care, Health & Wellbeing",ANCHOR TRUST,08/01/2018,1106.00
Bath and North East Somerset Council,80742305,LM3,Residential Care,P11,"Adult Care, Health & Wellbeing",ANCHOR TRUST,08/01/2018,1146.00
Bath and North East Somerset Council,80742305,LM3,Residential Care,P11,"Adult Care, Health & Wellbeing",ANCHOR TRUST,08/01/2018,1386.00
Bath and North East Somerset Council,80742305,LM3,Residential Care,P11,"Adult Care, Health & Wellbeing",ANCHOR TRUST,08/01/2018,1388.00
Bath and North East Somerset Council,80742305,LM3,Residential Care,P11,"Adult Care, Health & Wellbeing",ANCHOR TRUST,08/01/2018,1430.00
Bath and North East Somerset Council,80742305,LM3,Residential Care,P11,"Adult Care, Health & Wellbeing",ANCHOR TRUST,08/01/2018,1700.00
Bath and North East Somerset Council,80742305,LM3,Residential Care,P11,"Adult Care, Health & Wellbeing",ANCHOR TRUST,08/01/2018,1700.00
Bath and North East Somerset Council,80742305,LM3,Residential Care,P11,"Adult Care, Health & Wellbeing",ANCHOR TRUST,08/01/2018,1788.50
Bath and North East Somerset Council,80742101,LL8,Individualised Budget,P11,"Adult Care, Health & Wellbeing",REDACTED,08/01/2018,703.50
Bath and North East Somerset Council,10862699,7P8,Cash Related,,,ANDREWS ESTATE AGENTS,08/01/2018,1525.00
Bath and North East Somerset Council,80742341,LL3,Supported Living,P11,"Adult Care, Health & Wellbeing",ARCH CARE SERVICES,08/01/2018,72.72
Bath and North East Somerset Council,80742341,LL3,Supported Living,P11,"Adult Care, Health & Wellbeing",ARCH CARE SERVICES,08/01/2018,72.72
Bath and North East Somerset Council,80742341,LM8,Home Care,P11,"Adult Care, Health & Wellbeing",ARCH CARE SERVICES,08/01/2018,145.44
Bath and North East Somerset Council,80742341,LM8,Home Care,P11,"Adult Care, Health & Wellbeing",ARCH CARE SERVICES,08/01/2018,180.00
Bath and North East Somerset Council,80742341,LM8,Home Care,P11,"Adult Care, Health & Wellbeing",ARCH CARE SERVICES,08/01/2018,181.80
Bath and North East Somerset Council,80742341,LM8,Home Care,P11,"Adult Care, Health & Wellbeing",ARCH CARE SERVICES,08/01/2018,181.80
Bath and North East Somerset Council,80742341,LL3,Supported Living,P11,"Adult Care, Health & Wellbeing",ARCH CARE SERVICES,08/01/2018,218.16
Bath and North East Somerset Council,80742341,LM8,Home Care,P11,"Adult Care, Health & Wellbeing",ARCH CARE SERVICES,08/01/2018,272.70
Bath and North East Somerset Council,80742341,LL3,Supported Living,P11,"Adult Care, Health & Wellbeing",ARCH CARE SERVICES,08/01/2018,290.88
Bath and North East Somerset Council,80742341,LL3,Supported Living,P11,"Adult Care, Health & Wellbeing",ARCH CARE SERVICES,08/01/2018,363.60
Bath and North East Somerset Council,80742341,LM8,Home Care,P11,"Adult Care, Health & Wellbeing",ARCH CARE SERVICES,08/01/2018,363.60
Bath and North East Somerset Council,80742341,LM8,Home Care,P11,"Adult Care, Health & Wellbeing",ARCH CARE SERVICES,08/01/2018,510.06
Bath and North East Somerset Council,80742341,LL3,Supported Living,P11,"Adult Care, Health & Wellbeing",ARCH CARE SERVICES,08/01/2018,805.00
Bath and North East Somerset Council,80742341,LM8,Home Care,P11,"Adult Care, Health & Wellbeing",ARCH CARE SERVICES,08/01/2018,808.00
Bath and North East Somerset Council,80742341,LL3,Supported Living,P11,"Adult Care, Health & Wellbeing",ARCH CARE SERVICES,08/01/2018,821.28
Bath and North East Somerset Council,80742341,LL3,Supported Living,P11,"Adult Care, Health & Wellbeing",ARCH CARE SERVICES,08/01/2018,821.28
Bath and North East Somerset Council,80742341,LM8,Home Care,P11,"Adult Care, Health & Wellbeing",ARCH CARE SERVICES,08/01/2018,868.60
Bath and North East Somerset Council,80742341,LM8,Home Care,P11,"Adult Care, Health & Wellbeing",ARCH CARE SERVICES,08/01/2018,868.60
Bath and North East Somerset Council,80742341,LL3,Supported Living,P11,"Adult Care, Health & Wellbeing",ARCH CARE SERVICES,08/01/2018,1006.06
Bath and North East Somerset Council,80742341,LL3,Supported Living,P11,"Adult Care, Health & Wellbeing",ARCH CARE SERVICES,08/01/2018,1006.06
Bath and North East Somerset Council,80742341,LL3,Supported Living,P11,"Adult Care, Health & Wellbeing",ARCH CARE SERVICES,08/01/2018,1016.34
Bath and North East Somerset Council,80742326,LM3,Residential Care,P11,"Adult Care, Health & Wellbeing",ARTI CARE HOMES (SOUTHWEST) LTD,08/01/2018,1106.00
Bath and North East Somerset Council,80742326,LM3,Residential Care,P11,"Adult Care, Health & Wellbeing",ARTI CARE HOMES (SOUTHWEST) LTD,08/01/2018,1106.00
Bath and North East Somerset Council,80742326,LM3,Residential Care,P11,"Adult Care, Health & Wellbeing",ARTI CARE HOMES (SOUTHWEST) LTD,08/01/2018,1106.00
Bath and North East Somerset Council,80742326,LM3,Residential Care,P11,"Adult Care, Health & Wellbeing",ARTI CARE HOMES (SOUTHWEST) LTD,08/01/2018,1146.00
Bath and North East Somerset Council,80742326,LM3,Residential Care,P11,"Adult Care, Health & Wellbeing",ARTI CARE HOMES (SOUTHWEST) LTD,08/01/2018,1146.00
Bath and North East Somerset Council,80742326,LM3,Residential Care,P11,"Adult Care, Health & Wellbeing",ARTI CARE HOMES (SOUTHWEST) LTD,08/01/2018,1146.00
Bath and North East Somerset Council,80742326,LM3,Residential Care,P11,"Adult Care, Health & Wellbeing",ARTI CARE HOMES (SOUTHWEST) LTD,08/01/2018,1146.66
Bath and North East Somerset Council,80742326,LM6,Nursing Care,P11,"Adult Care, Health & Wellbeing",ARTI CARE HOMES (SOUTHWEST) LTD,08/01/2018,1148.66
Bath and North East Somerset Council,80742326,LM3,Residential Care,P11,"Adult Care, Health & Wellbeing",ARTI CARE HOMES (SOUTHWEST) LTD,08/01/2018,1200.00
Bath and North East Somerset Council,80742326,LM3,Residential Care,P11,"Adult Care, Health & Wellbeing",ARTI CARE HOMES (SOUTHWEST) LTD,08/01/2018,1250.00
Bath and North East Somerset Council,80742326,LM3,Residential Care,P11,"Adult Care, Health & Wellbeing",ARTI CARE HOMES (SOUTHWEST) LTD,08/01/2018,1310.00
Bath and North East Somerset Council,80742326,LM3,Residential Care,P11,"Adult Care, Health & Wellbeing",ARTI CARE HOMES (SOUTHWEST) LTD,08/01/2018,3039.29
Bath and North East Somerset Council,80742314,XD3,Client Contributions,P11,"Adult Care, Health & Wellbeing",ARTI SERVICES LTD T/A THE MANOR FARM HOUSE,08/01/2018,30.34
Bath and North East Somerset Council,80742314,LM3,Residential Care,P11,"Adult Care, Health & Wellbeing",ARTI SERVICES LTD T/A THE MANOR FARM HOUSE,08/01/2018,237.00
Bath and North East Somerset Council,80742314,LM3,Residential Care,P11,"Adult Care, Health & Wellbeing",ARTI SERVICES LTD T/A THE MANOR FARM HOUSE,08/01/2018,1106.00
Bath and North East Somerset Council,80742314,LM3,Residential Care,P11,"Adult Care, Health & Wellbeing",ARTI SERVICES LTD T/A THE MANOR FARM HOUSE,08/01/2018,1106.00
Bath and North East Somerset Council,80742314,LM3,Residential Care,P11,"Adult Care, Health & Wellbeing",ARTI SERVICES LTD T/A THE MANOR FARM HOUSE,08/01/2018,1106.00
Bath and North East Somerset Council,80742314,LM3,Residential Care,P11,"Adult Care, Health & Wellbeing",ARTI SERVICES LTD T/A THE MANOR FARM HOUSE,08/01/2018,1106.00
Bath and North East Somerset Council,80742314,LM3,Residential Care,P11,"Adult Care, Health & Wellbeing",ARTI SERVICES LTD T/A THE MANOR FARM HOUSE,08/01/2018,1138.00
Bath and North East Somerset Council,80742314,LM3,Residential Care,P11,"Adult Care, Health & Wellbeing",ARTI SERVICES LTD T/A THE MANOR FARM HOUSE,08/01/2018,1146.00
Bath and North East Somerset Council,80742314,LM3,Residential Care,P11,"Adult Care, Health & Wellbeing",ARTI SERVICES LTD T/A THE MANOR FARM HOUSE,08/01/2018,1146.00
Bath and North East Somerset Council,80742314,LM3,Residential Care,P11,"Adult Care, Health & Wellbeing",ARTI SERVICES LTD T/A THE MANOR FARM HOUSE,08/01/2018,1146.00
Bath and North East Somerset Council,80742314,LM3,Residential Care,P11,"Adult Care, Health & Wellbeing",ARTI SERVICES LTD T/A THE MANOR FARM HOUSE,08/01/2018,1206.00
Bath and North East Somerset Council,80742314,LM3,Residential Care,P11,"Adult Care, Health & Wellbeing",ARTI SERVICES LTD T/A THE MANOR FARM HOUSE,08/01/2018,1310.00
Bath and North East Somerset Council,80742193,LM3,Residential Care,P11,"Adult Care, Health & Wellbeing",ASPECTS & MILESTONES TRUST,08/01/2018,210.94
Bath and North East Somerset Council,80742193,LM3,Residential Care,P11,"Adult Care, Health & Wellbeing",ASPECTS & MILESTONES TRUST,08/01/2018,1920.00
Bath and North East Somerset Council,80742193,LM3,Residential Care,P11,"Adult Care, Health & Wellbeing",ASPECTS & MILESTONES TRUST,08/01/2018,2042.00
Bath and North East Somerset Council,80742193,LM3,Residential Care,P11,"Adult Care, Health & Wellbeing",ASPECTS & MILESTONES TRUST,08/01/2018,2927.60
Bath and North East Somerset Council,80742193,LM3,Residential Care,P11,"Adult Care, Health & Wellbeing",ASPECTS & MILESTONES TRUST,08/01/2018,4232.14
Bath and North East Somerset Council,80742193,LM3,Residential Care,P11,"Adult Care, Health & Wellbeing",ASPECTS & MILESTONES TRUST,08/01/2018,4387.52
Bath and North East Somerset Council,80742193,LM3,Residential Care,P11,"Adult Care, Health & Wellbeing",ASPECTS & MILESTONES TRUST,08/01/2018,5256.20
Bath and North East Somerset Council,80742193,LM3,Residential Care,P11,"Adult Care, Health & Wellbeing",ASPECTS & MILESTONES TRUST,08/01/2018,5842.68
Bath and North East Somerset Council,80742193,LM3,Residential Care,P11,"Adult Care, Health & Wellbeing",ASPECTS & MILESTONES TRUST,08/01/2018,8494.06
Bath and North East Somerset Council,80742205,LM3,Residential Care,P11,"Adult Care, Health & Wellbeing",AUTISM SPECIALISED CARE HOMES LTD,08/01/2018,2691.74
Bath and North East Somerset Council,80742165,LM6,Nursing Care,P11,"Adult Care, Health & Wellbeing",BARCHESTER HEALTH CARE,08/01/2018,310.10
Bath and North East Somerset Council,80742165,LM6,Nursing Care,P11,"Adult Care, Health & Wellbeing",BARCHESTER HEALTH CARE,08/01/2018,310.10
Bath and North East Somerset Council,80742165,LM6,Nursing Care,P11,"Adult Care, Health & Wellbeing",BARCHESTER HEALTH CARE,08/01/2018,310.10
Bath and North East Somerset Council,80742165,LM6,Nursing Care,P11,"Adult Care, Health & Wellbeing",BARCHESTER HEALTH CARE,08/01/2018,310.10
Bath and North East Somerset Council,80742165,LM6,Nursing Care,P11,"Adult Care, Health & Wellbeing",BARCHESTER HEALTH CARE,08/01/2018,310.10
Bath and North East Somerset Council,80742165,LM6,Nursing Care,P11,"Adult Care, Health & Wellbeing",BARCHESTER HEALTH CARE,08/01/2018,310.10
Bath and North East Somerset Council,80742165,LM6,Nursing Care,P11,"Adult Care, Health & Wellbeing",BARCHESTER HEALTH CARE,08/01/2018,310.10
Bath and North East Somerset Council,80742165,LM6,Nursing Care,P11,"Adult Care, Health & Wellbeing",BARCHESTER HEALTH CARE,08/01/2018,310.10
Bath and North East Somerset Council,80742165,LM6,Nursing Care,P11,"Adult Care, Health & Wellbeing",BARCHESTER HEALTH CARE,08/01/2018,310.10
Bath and North East Somerset Council,80742165,LM6,Nursing Care,P11,"Adult Care, Health & Wellbeing",BARCHESTER HEALTH CARE,08/01/2018,310.10
Bath and North East Somerset Council,80742165,LM6,Nursing Care,P11,"Adult Care, Health & Wellbeing",BARCHESTER HEALTH CARE,08/01/2018,310.10
Bath and North East Somerset Council,80742165,LM6,Nursing Care,P11,"Adult Care, Health & Wellbeing",BARCHESTER HEALTH CARE,08/01/2018,310.10
Bath and North East Somerset Council,80742165,LM6,Nursing Care,P11,"Adult Care, Health & Wellbeing",BARCHESTER HEALTH CARE,08/01/2018,310.10
Bath and North East Somerset Council,80742165,LM6,Nursing Care,P11,"Adult Care, Health & Wellbeing",BARCHESTER HEALTH CARE,08/01/2018,310.10
Bath and North East Somerset Council,80742325,LM6,Nursing Care,P11,"Adult Care, Health & Wellbeing",BARCHESTER HEALTH CARE,08/01/2018,1256.00
Bath and North East Somerset Council,80742325,LM6,Nursing Care,P11,"Adult Care, Health & Wellbeing",BARCHESTER HEALTH CARE,08/01/2018,1478.40
Bath and North East Somerset Council,80742325,LM6,Nursing Care,P11,"Adult Care, Health & Wellbeing",BARCHESTER HEALTH CARE,08/01/2018,1478.40
Bath and North East Somerset Council,80742325,LM6,Nursing Care,P11,"Adult Care, Health & Wellbeing",BARCHESTER HEALTH CARE,08/01/2018,1589.90
Bath and North East Somerset Council,80742325,LM6,Nursing Care,P11,"Adult Care, Health & Wellbeing",BARCHESTER HEALTH CARE,08/01/2018,1628.40
Bath and North East Somerset Council,80742325,LM6,Nursing Care,P11,"Adult Care, Health & Wellbeing",BARCHESTER HEALTH CARE,08/01/2018,1628.40
Bath and North East Somerset Council,80742325,LM6,Nursing Care,P11,"Adult Care, Health & Wellbeing",BARCHESTER HEALTH CARE,08/01/2018,1628.40
Bath and North East Somerset Council,80742325,LM3,Residential Care,P11,"Adult Care, Health & Wellbeing",BARCHESTER HEALTH CARE,08/01/2018,1700.00
Bath and North East Somerset Council,80741856,LM6,Nursing Care,P11,"Adult Care, Health & Wellbeing",BARCHESTER HEALTH CARE,08/01/2018,1986.00
Bath and North East Somerset Council,80741856,LM6,Nursing Care,P11,"Adult Care, Health & Wellbeing",BARCHESTER HEALTH CARE,08/01/2018,2278.00
Bath and North East Somerset Council,80742325,LM3,Residential Care,P11,"Adult Care, Health & Wellbeing",BARCHESTER HEALTH CARE,08/01/2018,2300.00
Bath and North East Somerset Council,80742325,LM6,Nursing Care,P11,"Adult Care, Health & Wellbeing",BARCHESTER HEALTH CARE,08/01/2018,2378.40
Bath and North East Somerset Council,80742165,LM6,Nursing Care,P11,"Adult Care, Health & Wellbeing",BARCHESTER HEALTH CARE,08/01/2018,4031.30
Bath and North East Somerset Council,80742153,LM6,Nursing Care,P11,"Adult Care, Health & Wellbeing",BARCHESTER HEALTHCARE HOMES LTD,08/01/2018,310.10
Bath and North East Somerset Council,80742153,LM6,Nursing Care,P11,"Adult Care, Health & Wellbeing",BARCHESTER HEALTHCARE HOMES LTD,08/01/2018,310.10
Bath and North East Somerset Council,80742153,LM6,Nursing Care,P11,"Adult Care, Health & Wellbeing",BARCHESTER HEALTHCARE HOMES LTD,08/01/2018,310.10
Bath and North East Somerset Council,80742153,LM6,Nursing Care,P11,"Adult Care, Health & Wellbeing",BARCHESTER HEALTHCARE HOMES LTD,08/01/2018,310.10
Bath and North East Somerset Council,80742153,LM6,Nursing Care,P11,"Adult Care, Health & Wellbeing",BARCHESTER HEALTHCARE HOMES LTD,08/01/2018,310.10
Bath and North East Somerset Council,80742153,LM6,Nursing Care,P11,"Adult Care, Health & Wellbeing",BARCHESTER HEALTHCARE HOMES LTD,08/01/2018,310.10
Bath and North East Somerset Council,80742153,LM6,Nursing Care,P11,"Adult Care, Health & Wellbeing",BARCHESTER HEALTHCARE HOMES LTD,08/01/2018,310.10
Bath and North East Somerset Council,80742153,LM6,Nursing Care,P11,"Adult Care, Health & Wellbeing",BARCHESTER HEALTHCARE HOMES LTD,08/01/2018,310.10
Bath and North East Somerset Council,80742153,LM6,Nursing Care,P11,"Adult Care, Health & Wellbeing",BARCHESTER HEALTHCARE HOMES LTD,08/01/2018,310.10
Bath and North East Somerset Council,80742153,LM6,Nursing Care,P11,"Adult Care, Health & Wellbeing",BARCHESTER HEALTHCARE HOMES LTD,08/01/2018,310.10
Bath and North East Somerset Council,80742153,LM6,Nursing Care,P11,"Adult Care, Health & Wellbeing",BARCHESTER HEALTHCARE HOMES LTD,08/01/2018,310.10
Bath and North East Somerset Council,80742153,LM6,Nursing Care,P11,"Adult Care, Health & Wellbeing",BARCHESTER HEALTHCARE HOMES LTD,08/01/2018,310.10
Bath and North East Somerset Council,80742153,LM6,Nursing Care,P11,"Adult Care, Health & Wellbeing",BARCHESTER HEALTHCARE HOMES LTD,08/01/2018,310.10
Bath and North East Somerset Council,80742153,LM6,Nursing Care,P11,"Adult Care, Health & Wellbeing",BARCHESTER HEALTHCARE HOMES LTD,08/01/2018,310.10
Bath and North East Somerset Council,80742153,LM6,Nursing Care,P11,"Adult Care, Health & Wellbeing",BARCHESTER HEALTHCARE HOMES LTD,08/01/2018,310.10
Bath and North East Somerset Council,80742153,LM6,Nursing Care,P11,"Adult Care, Health & Wellbeing",BARCHESTER HEALTHCARE HOMES LTD,08/01/2018,310.10
Bath and North East Somerset Council,80742153,LM6,Nursing Care,P11,"Adult Care, Health & Wellbeing",BARCHESTER HEALTHCARE HOMES LTD,08/01/2018,310.10
Bath and North East Somerset Council,80742153,LM6,Nursing Care,P11,"Adult Care, Health & Wellbeing",BARCHESTER HEALTHCARE HOMES LTD,08/01/2018,310.10
Bath and North East Somerset Council,80742153,LM6,Nursing Care,P11,"Adult Care, Health & Wellbeing",BARCHESTER HEALTHCARE HOMES LTD,08/01/2018,310.10
Bath and North East Somerset Council,80742153,LM6,Nursing Care,P11,"Adult Care, Health & Wellbeing",BARCHESTER HEALTHCARE HOMES LTD,08/01/2018,310.10
Bath and North East Somerset Council,80742153,LM6,Nursing Care,P11,"Adult Care, Health & Wellbeing",BARCHESTER HEALTHCARE HOMES LTD,08/01/2018,310.10
Bath and North East Somerset Council,80742153,LM6,Nursing Care,P11,"Adult Care, Health & Wellbeing",BARCHESTER HEALTHCARE HOMES LTD,08/01/2018,310.10
Bath and North East Somerset Council,80742153,LM6,Nursing Care,P11,"Adult Care, Health & Wellbeing",BARCHESTER HEALTHCARE HOMES LTD,08/01/2018,310.10
Bath and North East Somerset Council,80742153,LM6,Nursing Care,P11,"Adult Care, Health & Wellbeing",BARCHESTER HEALTHCARE HOMES LTD,08/01/2018,310.10
Bath and North East Somerset Council,80742153,LM6,Nursing Care,P11,"Adult Care, Health & Wellbeing",BARCHESTER HEALTHCARE HOMES LTD,08/01/2018,310.10
Bath and North East Somerset Council,80742153,LM6,Nursing Care,P11,"Adult Care, Health & Wellbeing",BARCHESTER HEALTHCARE HOMES LTD,08/01/2018,310.10
Bath and North East Somerset Council,80742153,LM6,Nursing Care,P11,"Adult Care, Health & Wellbeing",BARCHESTER HEALTHCARE HOMES LTD,08/01/2018,310.10
Bath and North East Somerset Council,80742153,LM6,Nursing Care,P11,"Adult Care, Health & Wellbeing",BARCHESTER HEALTHCARE HOMES LTD,08/01/2018,310.10
Bath and North East Somerset Council,80742153,LM6,Nursing Care,P11,"Adult Care, Health & Wellbeing",BARCHESTER HEALTHCARE HOMES LTD,08/01/2018,310.10
Bath and North East Somerset Council,80742153,LM6,Nursing Care,P11,"Adult Care, Health & Wellbeing",BARCHESTER HEALTHCARE HOMES LTD,08/01/2018,310.10
Bath and North East Somerset Council,80742153,LM6,Nursing Care,P11,"Adult Care, Health & Wellbeing",BARCHESTER HEALTHCARE HOMES LTD,08/01/2018,310.10
Bath and North East Somerset Council,80742153,LM6,Nursing Care,P11,"Adult Care, Health & Wellbeing",BARCHESTER HEALTHCARE HOMES LTD,08/01/2018,310.10
Bath and North East Somerset Council,80742153,LM6,Nursing Care,P11,"Adult Care, Health & Wellbeing",BARCHESTER HEALTHCARE HOMES LTD,08/01/2018,310.10
Bath and North East Somerset Council,80742153,LM6,Nursing Care,P11,"Adult Care, Health & Wellbeing",BARCHESTER HEALTHCARE HOMES LTD,08/01/2018,310.10
Bath and North East Somerset Council,80742153,LM6,Nursing Care,P11,"Adult Care, Health & Wellbeing",BARCHESTER HEALTHCARE HOMES LTD,08/01/2018,310.10
Bath and North East Somerset Council,80742153,LM6,Nursing Care,P11,"Adult Care, Health & Wellbeing",BARCHESTER HEALTHCARE HOMES LTD,08/01/2018,310.10
Bath and North East Somerset Council,80742153,LM6,Nursing Care,P11,"Adult Care, Health & Wellbeing",BARCHESTER HEALTHCARE HOMES LTD,08/01/2018,310.10
Bath and North East Somerset Council,80742153,LM6,Nursing Care,P11,"Adult Care, Health & Wellbeing",BARCHESTER HEALTHCARE HOMES LTD,08/01/2018,310.10
Bath and North East Somerset Council,80742153,LM6,Nursing Care,P11,"Adult Care, Health & Wellbeing",BARCHESTER HEALTHCARE HOMES LTD,08/01/2018,310.10
Bath and North East Somerset Council,80742153,LM6,Nursing Care,P11,"Adult Care, Health & Wellbeing",BARCHESTER HEALTHCARE HOMES LTD,08/01/2018,310.10
Bath and North East Somerset Council,80742153,LM6,Nursing Care,P11,"Adult Care, Health & Wellbeing",BARCHESTER HEALTHCARE HOMES LTD,08/01/2018,310.10
Bath and North East Somerset Council,80742153,LM6,Nursing Care,P11,"Adult Care, Health & Wellbeing",BARCHESTER HEALTHCARE HOMES LTD,08/01/2018,310.10
Bath and North East Somerset Council,80742153,LM6,Nursing Care,P11,"Adult Care, Health & Wellbeing",BARCHESTER HEALTHCARE HOMES LTD,08/01/2018,310.10
Bath and North East Somerset Council,80742300,XD3,Client Contributions,P11,"Adult Care, Health & Wellbeing",BARCHESTER HEALTHCARE HOMES LTD,08/01/2018,400.37
Bath and North East Somerset Council,80742153,LM6,Nursing Care,P11,"Adult Care, Health & Wellbeing",BARCHESTER HEALTHCARE HOMES LTD,08/01/2018,620.20
Bath and North East Somerset Council,80742300,LM3,Residential Care,P11,"Adult Care, Health & Wellbeing",BARCHESTER HEALTHCARE HOMES LTD,08/01/2018,1059.46
Bath and North East Somerset Council,80742300,LM6,Nursing Care,P11,"Adult Care, Health & Wellbeing",BARCHESTER HEALTHCARE HOMES LTD,08/01/2018,1111.90
Bath and North East Somerset Council,80742300,LM6,Nursing Care,P11,"Adult Care, Health & Wellbeing",BARCHESTER HEALTHCARE HOMES LTD,08/01/2018,1111.90
Bath and North East Somerset Council,80742300,LM6,Nursing Care,P11,"Adult Care, Health & Wellbeing",BARCHESTER HEALTHCARE HOMES LTD,08/01/2018,1112.10
Bath and North East Somerset Council,80742269,LM6,Nursing Care,P11,"Adult Care, Health & Wellbeing",BARCHESTER HEALTHCARE HOMES LTD,08/01/2018,1253.98
Bath and North East Somerset Council,80742300,LM6,Nursing Care,P11,"Adult Care, Health & Wellbeing",BARCHESTER HEALTHCARE HOMES LTD,08/01/2018,1278.40
Bath and North East Somerset Council,80742300,LM6,Nursing Care,P11,"Adult Care, Health & Wellbeing",BARCHESTER HEALTHCARE HOMES LTD,08/01/2018,1294.40
Bath and North East Somerset Council,80742300,LM6,Nursing Care,P11,"Adult Care, Health & Wellbeing",BARCHESTER HEALTHCARE HOMES LTD,08/01/2018,1294.40
Bath and North East Somerset Council,80742300,LM6,Nursing Care,P11,"Adult Care, Health & Wellbeing",BARCHESTER HEALTHCARE HOMES LTD,08/01/2018,1310.40
Bath and North East Somerset Council,80742300,LM3,Residential Care,P11,"Adult Care, Health & Wellbeing",BARCHESTER HEALTHCARE HOMES LTD,08/01/2018,1328.00
Bath and North East Somerset Council,80741838,LM6,Nursing Care,P11,"Adult Care, Health & Wellbeing",BARCHESTER HEALTHCARE HOMES LTD,08/01/2018,1494.00
Bath and North East Somerset Council,80742300,LM6,Nursing Care,P11,"Adult Care, Health & Wellbeing",BARCHESTER HEALTHCARE HOMES LTD,08/01/2018,1546.40
Bath and North East Somerset Council,80742300,LM6,Nursing Care,P11,"Adult Care, Health & Wellbeing",BARCHESTER HEALTHCARE HOMES LTD,08/01/2018,1589.90
Bath and North East Somerset Council,80742300,LM6,Nursing Care,P11,"Adult Care, Health & Wellbeing",BARCHESTER HEALTHCARE HOMES LTD,08/01/2018,1589.90
Bath and North East Somerset Council,80742300,LM6,Nursing Care,P11,"Adult Care, Health & Wellbeing",BARCHESTER HEALTHCARE HOMES LTD,08/01/2018,1589.90
Bath and North East Somerset Council,80742300,LM6,Nursing Care,P11,"Adult Care, Health & Wellbeing",BARCHESTER HEALTHCARE HOMES LTD,08/01/2018,1596.40
Bath and North East Somerset Council,80742300,LM6,Nursing Care,P11,"Adult Care, Health & Wellbeing",BARCHESTER HEALTHCARE HOMES LTD,08/01/2018,1600.00
Bath and North East Somerset Council,80742300,LM6,Nursing Care,P11,"Adult Care, Health & Wellbeing",BARCHESTER HEALTHCARE HOMES LTD,08/01/2018,1628.40
Bath and North East Somerset Council,80742300,LM6,Nursing Care,P11,"Adult Care, Health & Wellbeing",BARCHESTER HEALTHCARE HOMES LTD,08/01/2018,1628.40
Bath and North East Somerset Council,80742300,LM6,Nursing Care,P11,"Adult Care, Health & Wellbeing",BARCHESTER HEALTHCARE HOMES LTD,08/01/2018,1628.40
Bath and North East Somerset Council,80742300,LM6,Nursing Care,P11,"Adult Care, Health & Wellbeing",BARCHESTER HEALTHCARE HOMES LTD,08/01/2018,1630.40
Bath and North East Somerset Council,80742300,LM6,Nursing Care,P11,"Adult Care, Health & Wellbeing",BARCHESTER HEALTHCARE HOMES LTD,08/01/2018,1639.90
Bath and North East Somerset Council,80742300,LM6,Nursing Care,P11,"Adult Care, Health & Wellbeing",BARCHESTER HEALTHCARE HOMES LTD,08/01/2018,1639.90
Bath and North East Somerset Council,80742300,LM6,Nursing Care,P11,"Adult Care, Health & Wellbeing",BARCHESTER HEALTHCARE HOMES LTD,08/01/2018,1639.90
Bath and North East Somerset Council,80742300,LM6,Nursing Care,P11,"Adult Care, Health & Wellbeing",BARCHESTER HEALTHCARE HOMES LTD,08/01/2018,1658.40
Bath and North East Somerset Council,80742300,LM6,Nursing Care,P11,"Adult Care, Health & Wellbeing",BARCHESTER HEALTHCARE HOMES LTD,08/01/2018,1678.40
Bath and North East Somerset Council,80742300,LM6,Nursing Care,P11,"Adult Care, Health & Wellbeing",BARCHESTER HEALTHCARE HOMES LTD,08/01/2018,1698.40
Bath and North East Somerset Council,80741838,LM6,Nursing Care,P11,"Adult Care, Health & Wellbeing",BARCHESTER HEALTHCARE HOMES LTD,08/01/2018,1748.00
Bath and North East Somerset Council,80742300,LM6,Nursing Care,P11,"Adult Care, Health & Wellbeing",BARCHESTER HEALTHCARE HOMES LTD,08/01/2018,1989.90
Bath and North East Somerset Council,80741838,LM6,Nursing Care,P11,"Adult Care, Health & Wellbeing",BARCHESTER HEALTHCARE HOMES LTD,08/01/2018,2000.00
Bath and North East Somerset Council,80742300,LM6,Nursing Care,P11,"Adult Care, Health & Wellbeing",BARCHESTER HEALTHCARE HOMES LTD,08/01/2018,2039.90
Bath and North East Somerset Council,80741838,LM6,Nursing Care,P11,"Adult Care, Health & Wellbeing",BARCHESTER HEALTHCARE HOMES LTD,08/01/2018,2200.00
Bath and North East Somerset Council,80742153,LM6,Nursing Care,P11,"Adult Care, Health & Wellbeing",BARCHESTER HEALTHCARE HOMES LTD,08/01/2018,2480.80
Bath and North East Somerset Council,80742161,LM6,Nursing Care,P11,"Adult Care, Health & Wellbeing",BARKER CHEMICALS LTD T/A ST TERESA'S NH,08/01/2018,22.15
Bath and North East Somerset Council,80742161,LM6,Nursing Care,P11,"Adult Care, Health & Wellbeing",BARKER CHEMICALS LTD T/A ST TERESA'S NH,08/01/2018,310.10
Bath and North East Somerset Council,80742161,LM6,Nursing Care,P11,"Adult Care, Health & Wellbeing",BARKER CHEMICALS LTD T/A ST TERESA'S NH,08/01/2018,310.10
Bath and North East Somerset Council,80742161,LM6,Nursing Care,P11,"Adult Care, Health & Wellbeing",BARKER CHEMICALS LTD T/A ST TERESA'S NH,08/01/2018,310.10
Bath and North East Somerset Council,80742161,LM6,Nursing Care,P11,"Adult Care, Health & Wellbeing",BARKER CHEMICALS LTD T/A ST TERESA'S NH,08/01/2018,310.10
Bath and North East Somerset Council,80742161,LM6,Nursing Care,P11,"Adult Care, Health & Wellbeing",BARKER CHEMICALS LTD T/A ST TERESA'S NH,08/01/2018,310.10
Bath and North East Somerset Council,80742161,LM6,Nursing Care,P11,"Adult Care, Health & Wellbeing",BARKER CHEMICALS LTD T/A ST TERESA'S NH,08/01/2018,310.10
Bath and North East Somerset Council,80742161,LM6,Nursing Care,P11,"Adult Care, Health & Wellbeing",BARKER CHEMICALS LTD T/A ST TERESA'S NH,08/01/2018,310.10
Bath and North East Somerset Council,80742161,LM6,Nursing Care,P11,"Adult Care, Health & Wellbeing",BARKER CHEMICALS LTD T/A ST TERESA'S NH,08/01/2018,310.10
Bath and North East Somerset Council,80742161,LM6,Nursing Care,P11,"Adult Care, Health & Wellbeing",BARKER CHEMICALS LTD T/A ST TERESA'S NH,08/01/2018,310.10
Bath and North East Somerset Council,80742161,LM6,Nursing Care,P11,"Adult Care, Health & Wellbeing",BARKER CHEMICALS LTD T/A ST TERESA'S NH,08/01/2018,310.10
Bath and North East Somerset Council,80742161,LM6,Nursing Care,P11,"Adult Care, Health & Wellbeing",BARKER CHEMICALS LTD T/A ST TERESA'S NH,08/01/2018,310.10
Bath and North East Somerset Council,80742161,LM6,Nursing Care,P11,"Adult Care, Health & Wellbeing",BARKER CHEMICALS LTD T/A ST TERESA'S NH,08/01/2018,310.10
Bath and North East Somerset Council,80742161,LM6,Nursing Care,P11,"Adult Care, Health & Wellbeing",BARKER CHEMICALS LTD T/A ST TERESA'S NH,08/01/2018,310.10
Bath and North East Somerset Council,80742161,LM6,Nursing Care,P11,"Adult Care, Health & Wellbeing",BARKER CHEMICALS LTD T/A ST TERESA'S NH,08/01/2018,310.10
Bath and North East Somerset Council,80742161,LM6,Nursing Care,P11,"Adult Care, Health & Wellbeing",BARKER CHEMICALS LTD T/A ST TERESA'S NH,08/01/2018,310.10
Bath and North East Somerset Council,80742161,LM6,Nursing Care,P11,"Adult Care, Health & Wellbeing",BARKER CHEMICALS LTD T/A ST TERESA'S NH,08/01/2018,310.10
Bath and North East Somerset Council,80742161,LM6,Nursing Care,P11,"Adult Care, Health & Wellbeing",BARKER CHEMICALS LTD T/A ST TERESA'S NH,08/01/2018,310.10
Bath and North East Somerset Council,80742161,LM6,Nursing Care,P11,"Adult Care, Health & Wellbeing",BARKER CHEMICALS LTD T/A ST TERESA'S NH,08/01/2018,310.10
Bath and North East Somerset Council,80742161,LM6,Nursing Care,P11,"Adult Care, Health & Wellbeing",BARKER CHEMICALS LTD T/A ST TERESA'S NH,08/01/2018,310.10
Bath and North East Somerset Council,80742161,LM6,Nursing Care,P11,"Adult Care, Health & Wellbeing",BARKER CHEMICALS LTD T/A ST TERESA'S NH,08/01/2018,310.10
Bath and North East Somerset Council,80742161,LM6,Nursing Care,P11,"Adult Care, Health & Wellbeing",BARKER CHEMICALS LTD T/A ST TERESA'S NH,08/01/2018,310.10
Bath and North East Somerset Council,80742161,LM6,Nursing Care,P11,"Adult Care, Health & Wellbeing",BARKER CHEMICALS LTD T/A ST TERESA'S NH,08/01/2018,310.10
Bath and North East Somerset Council,80742161,LM6,Nursing Care,P11,"Adult Care, Health & Wellbeing",BARKER CHEMICALS LTD T/A ST TERESA'S NH,08/01/2018,310.10
Bath and North East Somerset Council,80742161,LM6,Nursing Care,P11,"Adult Care, Health & Wellbeing",BARKER CHEMICALS LTD T/A ST TERESA'S NH,08/01/2018,310.10
Bath and North East Somerset Council,80742161,LM6,Nursing Care,P11,"Adult Care, Health & Wellbeing",BARKER CHEMICALS LTD T/A ST TERESA'S NH,08/01/2018,310.10
Bath and North East Somerset Council,80742161,LM6,Nursing Care,P11,"Adult Care, Health & Wellbeing",BARKER CHEMICALS LTD T/A ST TERESA'S NH,08/01/2018,310.10
Bath and North East Somerset Council,80742161,LM6,Nursing Care,P11,"Adult Care, Health & Wellbeing",BARKER CHEMICALS LTD T/A ST TERESA'S NH,08/01/2018,310.10
Bath and North East Somerset Council,80742161,LM6,Nursing Care,P11,"Adult Care, Health & Wellbeing",BARKER CHEMICALS LTD T/A ST TERESA'S NH,08/01/2018,310.10
Bath and North East Somerset Council,80742161,LM6,Nursing Care,P11,"Adult Care, Health & Wellbeing",BARKER CHEMICALS LTD T/A ST TERESA'S NH,08/01/2018,310.10
Bath and North East Somerset Council,80742161,LM6,Nursing Care,P11,"Adult Care, Health & Wellbeing",BARKER CHEMICALS LTD T/A ST TERESA'S NH,08/01/2018,310.10
Bath and North East Somerset Council,80742161,LM6,Nursing Care,P11,"Adult Care, Health & Wellbeing",BARKER CHEMICALS LTD T/A ST TERESA'S NH,08/01/2018,310.10
Bath and North East Somerset Council,80742161,LM6,Nursing Care,P11,"Adult Care, Health & Wellbeing",BARKER CHEMICALS LTD T/A ST TERESA'S NH,08/01/2018,310.10
Bath and North East Somerset Council,80742161,LM6,Nursing Care,P11,"Adult Care, Health & Wellbeing",BARKER CHEMICALS LTD T/A ST TERESA'S NH,08/01/2018,310.10
Bath and North East Somerset Council,80742161,LM6,Nursing Care,P11,"Adult Care, Health & Wellbeing",BARKER CHEMICALS LTD T/A ST TERESA'S NH,08/01/2018,310.10
Bath and North East Somerset Council,80742161,LM6,Nursing Care,P11,"Adult Care, Health & Wellbeing",BARKER CHEMICALS LTD T/A ST TERESA'S NH,08/01/2018,310.10
Bath and North East Somerset Council,80742161,LM6,Nursing Care,P11,"Adult Care, Health & Wellbeing",BARKER CHEMICALS LTD T/A ST TERESA'S NH,08/01/2018,310.10
Bath and North East Somerset Council,80742161,LM6,Nursing Care,P11,"Adult Care, Health & Wellbeing",BARKER CHEMICALS LTD T/A ST TERESA'S NH,08/01/2018,310.10
Bath and North East Somerset Council,80742161,LM6,Nursing Care,P11,"Adult Care, Health & Wellbeing",BARKER CHEMICALS LTD T/A ST TERESA'S NH,08/01/2018,310.10
Bath and North East Somerset Council,80742161,LM6,Nursing Care,P11,"Adult Care, Health & Wellbeing",BARKER CHEMICALS LTD T/A ST TERESA'S NH,08/01/2018,310.10
Bath and North East Somerset Council,80742161,LM6,Nursing Care,P11,"Adult Care, Health & Wellbeing",BARKER CHEMICALS LTD T/A ST TERESA'S NH,08/01/2018,310.10
Bath and North East Somerset Council,80742161,LM6,Nursing Care,P11,"Adult Care, Health & Wellbeing",BARKER CHEMICALS LTD T/A ST TERESA'S NH,08/01/2018,310.10
Bath and North East Somerset Council,80742161,LM6,Nursing Care,P11,"Adult Care, Health & Wellbeing",BARKER CHEMICALS LTD T/A ST TERESA'S NH,08/01/2018,310.10
Bath and North East Somerset Council,80742161,LM6,Nursing Care,P11,"Adult Care, Health & Wellbeing",BARKER CHEMICALS LTD T/A ST TERESA'S NH,08/01/2018,310.10
Bath and North East Somerset Council,80742161,LM6,Nursing Care,P11,"Adult Care, Health & Wellbeing",BARKER CHEMICALS LTD T/A ST TERESA'S NH,08/01/2018,310.10
Bath and North East Somerset Council,80742161,LM6,Nursing Care,P11,"Adult Care, Health & Wellbeing",BARKER CHEMICALS LTD T/A ST TERESA'S NH,08/01/2018,310.10
Bath and North East Somerset Council,80742161,LM6,Nursing Care,P11,"Adult Care, Health & Wellbeing",BARKER CHEMICALS LTD T/A ST TERESA'S NH,08/01/2018,310.10
Bath and North East Somerset Council,80742161,LM6,Nursing Care,P11,"Adult Care, Health & Wellbeing",BARKER CHEMICALS LTD T/A ST TERESA'S NH,08/01/2018,310.10
Bath and North East Somerset Council,80742161,LM6,Nursing Care,P11,"Adult Care, Health & Wellbeing",BARKER CHEMICALS LTD T/A ST TERESA'S NH,08/01/2018,310.10
Bath and North East Somerset Council,80742161,LM6,Nursing Care,P11,"Adult Care, Health & Wellbeing",BARKER CHEMICALS LTD T/A ST TERESA'S NH,08/01/2018,310.10
Bath and North East Somerset Council,80742161,LM6,Nursing Care,P11,"Adult Care, Health & Wellbeing",BARKER CHEMICALS LTD T/A ST TERESA'S NH,08/01/2018,310.10
Bath and North East Somerset Council,80742317,XD3,Client Contributions,P11,"Adult Care, Health & Wellbeing",BARKER CHEMICALS LTD T/A ST TERESA'S NH,08/01/2018,480.43
Bath and North East Somerset Council,80742317,LM6,Nursing Care,P11,"Adult Care, Health & Wellbeing",BARKER CHEMICALS LTD T/A ST TERESA'S NH,08/01/2018,1111.90
Bath and North East Somerset Council,80742317,LM6,Nursing Care,P11,"Adult Care, Health & Wellbeing",BARKER CHEMICALS LTD T/A ST TERESA'S NH,08/01/2018,1147.90
Bath and North East Somerset Council,80742317,LM6,Nursing Care,P11,"Adult Care, Health & Wellbeing",BARKER CHEMICALS LTD T/A ST TERESA'S NH,08/01/2018,1147.90
Bath and North East Somerset Council,80742317,LM6,Nursing Care,P11,"Adult Care, Health & Wellbeing",BARKER CHEMICALS LTD T/A ST TERESA'S NH,08/01/2018,1147.90
Bath and North East Somerset Council,80742317,LM6,Nursing Care,P11,"Adult Care, Health & Wellbeing",BARKER CHEMICALS LTD T/A ST TERESA'S NH,08/01/2018,1147.90
Bath and North East Somerset Council,80742317,LM6,Nursing Care,P11,"Adult Care, Health & Wellbeing",BARKER CHEMICALS LTD T/A ST TERESA'S NH,08/01/2018,1156.40
Bath and North East Somerset Council,80742317,LM6,Nursing Care,P11,"Adult Care, Health & Wellbeing",BARKER CHEMICALS LTD T/A ST TERESA'S NH,08/01/2018,1178.40
Bath and North East Somerset Council,80742317,LM6,Nursing Care,P11,"Adult Care, Health & Wellbeing",BARKER CHEMICALS LTD T/A ST TERESA'S NH,08/01/2018,1184.40
Bath and North East Somerset Council,80742317,LM6,Nursing Care,P11,"Adult Care, Health & Wellbeing",BARKER CHEMICALS LTD T/A ST TERESA'S NH,08/01/2018,1192.40
Bath and North East Somerset Council,80742317,LM6,Nursing Care,P11,"Adult Care, Health & Wellbeing",BARKER CHEMICALS LTD T/A ST TERESA'S NH,08/01/2018,1252.40
Bath and North East Somerset Council,80742317,XD3,Client Contributions,P11,"Adult Care, Health & Wellbeing",BARKER CHEMICALS LTD T/A ST TERESA'S NH,08/01/2018,1274.38
Bath and North East Somerset Council,80742317,LM6,Nursing Care,P11,"Adult Care, Health & Wellbeing",BARKER CHEMICALS LTD T/A ST TERESA'S NH,08/01/2018,1320.40
Bath and North East Somerset Council,80742317,LM6,Nursing Care,P11,"Adult Care, Health & Wellbeing",BARKER CHEMICALS LTD T/A ST TERESA'S NH,08/01/2018,1378.40
Bath and North East Somerset Council,80742317,LM6,Nursing Care,P11,"Adult Care, Health & Wellbeing",BARKER CHEMICALS LTD T/A ST TERESA'S NH,08/01/2018,1378.40
Bath and North East Somerset Council,80742317,LM6,Nursing Care,P11,"Adult Care, Health & Wellbeing",BARKER CHEMICALS LTD T/A ST TERESA'S NH,08/01/2018,1379.90
Bath and North East Somerset Council,80742317,LM6,Nursing Care,P11,"Adult Care, Health & Wellbeing",BARKER CHEMICALS LTD T/A ST TERESA'S NH,08/01/2018,1379.90
Bath and North East Somerset Council,80742317,LM6,Nursing Care,P11,"Adult Care, Health & Wellbeing",BARKER CHEMICALS LTD T/A ST TERESA'S NH,08/01/2018,1379.90
Bath and North East Somerset Council,80742317,LM6,Nursing Care,P11,"Adult Care, Health & Wellbeing",BARKER CHEMICALS LTD T/A ST TERESA'S NH,08/01/2018,1390.40
Bath and North East Somerset Council,80742317,LM6,Nursing Care,P11,"Adult Care, Health & Wellbeing",BARKER CHEMICALS LTD T/A ST TERESA'S NH,08/01/2018,1394.40
Bath and North East Somerset Council,80742317,LM6,Nursing Care,P11,"Adult Care, Health & Wellbeing",BARKER CHEMICALS LTD T/A ST TERESA'S NH,08/01/2018,1394.40
Bath and North East Somerset Council,80742317,LM6,Nursing Care,P11,"Adult Care, Health & Wellbeing",BARKER CHEMICALS LTD T/A ST TERESA'S NH,08/01/2018,1404.40
Bath and North East Somerset Council,80742317,LM6,Nursing Care,P11,"Adult Care, Health & Wellbeing",BARKER CHEMICALS LTD T/A ST TERESA'S NH,08/01/2018,1412.40
Bath and North East Somerset Council,80742317,LM6,Nursing Care,P11,"Adult Care, Health & Wellbeing",BARKER CHEMICALS LTD T/A ST TERESA'S NH,08/01/2018,1416.40
Bath and North East Somerset Council,80742317,LM6,Nursing Care,P11,"Adult Care, Health & Wellbeing",BARKER CHEMICALS LTD T/A ST TERESA'S NH,08/01/2018,1428.40
Bath and North East Somerset Council,80742317,LM3,Residential Care,P11,"Adult Care, Health & Wellbeing",BARKER CHEMICALS LTD T/A ST TERESA'S NH,08/01/2018,1437.50
Bath and North East Somerset Council,80742317,LM6,Nursing Care,P11,"Adult Care, Health & Wellbeing",BARKER CHEMICALS LTD T/A ST TERESA'S NH,08/01/2018,1468.40
Bath and North East Somerset Council,80742317,LM6,Nursing Care,P11,"Adult Care, Health & Wellbeing",BARKER CHEMICALS LTD T/A ST TERESA'S NH,08/01/2018,1478.40
Bath and North East Somerset Council,80742317,LM6,Nursing Care,P11,"Adult Care, Health & Wellbeing",BARKER CHEMICALS LTD T/A ST TERESA'S NH,08/01/2018,1478.40
Bath and North East Somerset Council,80742317,LM6,Nursing Care,P11,"Adult Care, Health & Wellbeing",BARKER CHEMICALS LTD T/A ST TERESA'S NH,08/01/2018,1478.40
Bath and North East Somerset Council,80742317,LM6,Nursing Care,P11,"Adult Care, Health & Wellbeing",BARKER CHEMICALS LTD T/A ST TERESA'S NH,08/01/2018,1479.90
Bath and North East Somerset Council,80742317,LM6,Nursing Care,P11,"Adult Care, Health & Wellbeing",BARKER CHEMICALS LTD T/A ST TERESA'S NH,08/01/2018,1479.90
Bath and North East Somerset Council,80742317,LM6,Nursing Care,P11,"Adult Care, Health & Wellbeing",BARKER CHEMICALS LTD T/A ST TERESA'S NH,08/01/2018,1479.90
Bath and North East Somerset Council,80741850,LM6,Nursing Care,P11,"Adult Care, Health & Wellbeing",BARKER CHEMICALS LTD T/A ST TERESA'S NH,08/01/2018,1750.00
Bath and North East Somerset Council,80742317,LM6,Nursing Care,P11,"Adult Care, Health & Wellbeing",BARKER CHEMICALS LTD T/A ST TERESA'S NH,08/01/2018,1790.00
Bath and North East Somerset Council,80742317,LM6,Nursing Care,P11,"Adult Care, Health & Wellbeing",BARKER CHEMICALS LTD T/A ST TERESA'S NH,08/01/2018,1790.40
Bath and North East Somerset Council,80741850,LM6,Nursing Care,P11,"Adult Care, Health & Wellbeing",BARKER CHEMICALS LTD T/A ST TERESA'S NH,08/01/2018,1860.00
Bath and North East Somerset Council,80742317,LM6,Nursing Care,P11,"Adult Care, Health & Wellbeing",BARKER CHEMICALS LTD T/A ST TERESA'S NH,08/01/2018,2414.28
Bath and North East Somerset Council,80742317,XD3,Client Contributions,P11,"Adult Care, Health & Wellbeing",BARKER CHEMICALS LTD T/A ST TERESA'S NH,08/01/2018,2463.14
Bath and North East Somerset Council,80741911,LL8,Individualised Budget,P11,"Adult Care, Health & Wellbeing",REDACTED,08/01/2018,1533.20
Bath and North East Somerset Council,80742306,LM3,Residential Care,P11,"Adult Care, Health & Wellbeing",BATH MIND,08/01/2018,1558.78
Bath and North East Somerset Council,80742306,LM3,Residential Care,P11,"Adult Care, Health & Wellbeing",BATH MIND,08/01/2018,1558.78
Bath and North East Somerset Council,80742306,LM3,Residential Care,P11,"Adult Care, Health & Wellbeing",BATH MIND,08/01/2018,1558.78
Bath and North East Somerset Council,80742306,LM3,Residential Care,P11,"Adult Care, Health & Wellbeing",BATH MIND,08/01/2018,1558.78
Bath and North East Somerset Council,80742306,LM3,Residential Care,P11,"Adult Care, Health & Wellbeing",BATH MIND,08/01/2018,1558.78
Bath and North East Somerset Council,80742306,LM3,Residential Care,P11,"Adult Care, Health & Wellbeing",BATH MIND,08/01/2018,1558.84
Bath and North East Somerset Council,80742303,XD3,Client Contributions,P11,"Adult Care, Health & Wellbeing",BCVS HOMES,08/01/2018,284.43
Bath and North East Somerset Council,80742303,LM3,Residential Care,P11,"Adult Care, Health & Wellbeing",BCVS HOMES,08/01/2018,1106.00
Bath and North East Somerset Council,80742303,LM3,Residential Care,P11,"Adult Care, Health & Wellbeing",BCVS HOMES,08/01/2018,1106.00
Bath and North East Somerset Council,80742303,LM3,Residential Care,P11,"Adult Care, Health & Wellbeing",BCVS HOMES,08/01/2018,1106.00
Bath and North East Somerset Council,80742303,LM3,Residential Care,P11,"Adult Care, Health & Wellbeing",BCVS HOMES,08/01/2018,1146.00
Bath and North East Somerset Council,80742303,LM3,Residential Care,P11,"Adult Care, Health & Wellbeing",BCVS HOMES,08/01/2018,1154.00
Bath and North East Somerset Council,80742303,LM3,Residential Care,P11,"Adult Care, Health & Wellbeing",BCVS HOMES,08/01/2018,1164.00
Bath and North East Somerset Council,80742303,LM3,Residential Care,P11,"Adult Care, Health & Wellbeing",BCVS HOMES,08/01/2018,1180.00
Bath and North East Somerset Council,80742303,LM3,Residential Care,P11,"Adult Care, Health & Wellbeing",BCVS HOMES,08/01/2018,1200.00
Bath and North East Somerset Council,80742303,LM3,Residential Care,P11,"Adult Care, Health & Wellbeing",BCVS HOMES,08/01/2018,1210.00
Bath and North East Somerset Council,80742303,LM3,Residential Care,P11,"Adult Care, Health & Wellbeing",BCVS HOMES,08/01/2018,1212.00
Bath and North East Somerset Council,80742303,LM3,Residential Care,P11,"Adult Care, Health & Wellbeing",BCVS HOMES,08/01/2018,5730.01
Bath and North East Somerset Council,80742328,LM3,Residential Care,P11,"Adult Care, Health & Wellbeing",BEDBOROUGH HOUSE,08/01/2018,5414.90
Bath and North East Somerset Council,80742328,LM3,Residential Care,P11,"Adult Care, Health & Wellbeing",BEDBOROUGH HOUSE,08/01/2018,6050.00
Bath and North East Somerset Council,80742328,LM3,Residential Care,P11,"Adult Care, Health & Wellbeing",BEDBOROUGH HOUSE,08/01/2018,6890.00
Bath and North East Somerset Council,80742221,LM3,Residential Care,P11,"Adult Care, Health & Wellbeing",BELMONT VILLA RESIDENTIAL NURSING HOME LTD,08/01/2018,1500.00
Bath and North East Somerset Council,10862553,LJ2,Legal Fees,P04,Leader,BNES LEGAL SERVICES IMPREST A/C,08/01/2018,26053.20
Bath and North East Somerset Council,80742199,LM3,Residential Care,P11,"Adult Care, Health & Wellbeing",BRADBURY HOUSE LTD,08/01/2018,2318.08
Bath and North East Somerset Council,80742199,LM3,Residential Care,P11,"Adult Care, Health & Wellbeing",BRADBURY HOUSE LTD,08/01/2018,2375.56
Bath and North East Somerset Council,80742199,LM3,Residential Care,P11,"Adult Care, Health & Wellbeing",BRADBURY HOUSE LTD,08/01/2018,2482.32
Bath and North East Somerset Council,80742199,LM3,Residential Care,P11,"Adult Care, Health & Wellbeing",BRADBURY HOUSE LTD,08/01/2018,2888.18
Bath and North East Somerset Council,80742199,LM3,Residential Care,P11,"Adult Care, Health & Wellbeing",BRADBURY HOUSE LTD,08/01/2018,3090.06
Bath and North East Somerset Council,80742199,LM3,Residential Care,P11,"Adult Care, Health & Wellbeing",BRADBURY HOUSE LTD,08/01/2018,3942.16
Bath and North East Somerset Council,80742199,LM3,Residential Care,P11,"Adult Care, Health & Wellbeing",BRADBURY HOUSE LTD,08/01/2018,4050.34
Bath and North East Somerset Council,80742199,LM3,Residential Care,P11,"Adult Care, Health & Wellbeing",BRADBURY HOUSE LTD,08/01/2018,4348.42
Bath and North East Somerset Council,80742199,LM3,Residential Care,P11,"Adult Care, Health & Wellbeing",BRADBURY HOUSE LTD,08/01/2018,4615.72
Bath and North East Somerset Council,80742199,LM3,Residential Care,P11,"Adult Care, Health & Wellbeing",BRADBURY HOUSE LTD,08/01/2018,4964.64
Bath and North East Somerset Council,80742199,LM3,Residential Care,P11,"Adult Care, Health & Wellbeing",BRADBURY HOUSE LTD,08/01/2018,5004.48
Bath and North East Somerset Council,80742199,LM3,Residential Care,P11,"Adult Care, Health & Wellbeing",BRADBURY HOUSE LTD,08/01/2018,5309.58
Bath and North East Somerset Council,80742199,LM3,Residential Care,P11,"Adult Care, Health & Wellbeing",BRADBURY HOUSE LTD,08/01/2018,5356.68
Bath and North East Somerset Council,80742199,LM3,Residential Care,P11,"Adult Care, Health & Wellbeing",BRADBURY HOUSE LTD,08/01/2018,5603.18
Bath and North East Somerset Council,80742199,LM3,Residential Care,P11,"Adult Care, Health & Wellbeing",BRADBURY HOUSE LTD,08/01/2018,6137.02
Bath and North East Somerset Council,80742293,XD3,Client Contributions,P11,"Adult Care, Health & Wellbeing",BRIDGE CARE LTD,08/01/2018,108.63
Bath and North East Somerset Council,80742146,LM6,Nursing Care,P11,"Adult Care, Health & Wellbeing",BRIDGE CARE LTD,08/01/2018,310.10
Bath and North East Somerset Council,80742146,LM6,Nursing Care,P11,"Adult Care, Health & Wellbeing",BRIDGE CARE LTD,08/01/2018,310.10
Bath and North East Somerset Council,80742146,LM6,Nursing Care,P11,"Adult Care, Health & Wellbeing",BRIDGE CARE LTD,08/01/2018,310.10
Bath and North East Somerset Council,80742146,LM6,Nursing Care,P11,"Adult Care, Health & Wellbeing",BRIDGE CARE LTD,08/01/2018,310.10
Bath and North East Somerset Council,80742146,LM6,Nursing Care,P11,"Adult Care, Health & Wellbeing",BRIDGE CARE LTD,08/01/2018,310.10
Bath and North East Somerset Council,80742146,LM6,Nursing Care,P11,"Adult Care, Health & Wellbeing",BRIDGE CARE LTD,08/01/2018,310.10
Bath and North East Somerset Council,80742146,LM6,Nursing Care,P11,"Adult Care, Health & Wellbeing",BRIDGE CARE LTD,08/01/2018,310.10
Bath and North East Somerset Council,80742146,LM6,Nursing Care,P11,"Adult Care, Health & Wellbeing",BRIDGE CARE LTD,08/01/2018,310.10
Bath and North East Somerset Council,80742146,LM6,Nursing Care,P11,"Adult Care, Health & Wellbeing",BRIDGE CARE LTD,08/01/2018,310.10
Bath and North East Somerset Council,80742146,LM6,Nursing Care,P11,"Adult Care, Health & Wellbeing",BRIDGE CARE LTD,08/01/2018,310.10
Bath and North East Somerset Council,80742146,LM6,Nursing Care,P11,"Adult Care, Health & Wellbeing",BRIDGE CARE LTD,08/01/2018,310.10
Bath and North East Somerset Council,80742146,LM6,Nursing Care,P11,"Adult Care, Health & Wellbeing",BRIDGE CARE LTD,08/01/2018,310.10
Bath and North East Somerset Council,80742146,LM6,Nursing Care,P11,"Adult Care, Health & Wellbeing",BRIDGE CARE LTD,08/01/2018,310.10
Bath and North East Somerset Council,80742146,LM6,Nursing Care,P11,"Adult Care, Health & Wellbeing",BRIDGE CARE LTD,08/01/2018,310.10
Bath and North East Somerset Council,80742146,LM6,Nursing Care,P11,"Adult Care, Health & Wellbeing",BRIDGE CARE LTD,08/01/2018,310.10
Bath and North East Somerset Council,80742293,LM6,Nursing Care,P11,"Adult Care, Health & Wellbeing",BRIDGE CARE LTD,08/01/2018,740.00
Bath and North East Somerset Council,80742293,LM3,Residential Care,P11,"Adult Care, Health & Wellbeing",BRIDGE CARE LTD,08/01/2018,1106.00
Bath and North East Somerset Council,80742293,LM3,Residential Care,P11,"Adult Care, Health & Wellbeing",BRIDGE CARE LTD,08/01/2018,1106.00
Bath and North East Somerset Council,80742293,LM6,Nursing Care,P11,"Adult Care, Health & Wellbeing",BRIDGE CARE LTD,08/01/2018,1111.90
Bath and North East Somerset Council,80742293,LM6,Nursing Care,P11,"Adult Care, Health & Wellbeing",BRIDGE CARE LTD,08/01/2018,1111.90
Bath and North East Somerset Council,80742293,LM6,Nursing Care,P11,"Adult Care, Health & Wellbeing",BRIDGE CARE LTD,08/01/2018,1111.90
Bath and North East Somerset Council,80742293,LM6,Nursing Care,P11,"Adult Care, Health & Wellbeing",BRIDGE CARE LTD,08/01/2018,1111.90
Bath and North East Somerset Council,80742293,LM6,Nursing Care,P11,"Adult Care, Health & Wellbeing",BRIDGE CARE LTD,08/01/2018,1111.90
Bath and North East Somerset Council,80742293,LM3,Residential Care,P11,"Adult Care, Health & Wellbeing",BRIDGE CARE LTD,08/01/2018,1212.00
Bath and North East Somerset Council,80742293,LM6,Nursing Care,P11,"Adult Care, Health & Wellbeing",BRIDGE CARE LTD,08/01/2018,1412.40
Bath and North East Somerset Council,80742293,LM3,Residential Care,P11,"Adult Care, Health & Wellbeing",BRIDGE CARE LTD,08/01/2018,1624.20
Bath and North East Somerset Council,80742293,LM6,Nursing Care,P11,"Adult Care, Health & Wellbeing",BRIDGE CARE LTD,08/01/2018,2437.71
Bath and North East Somerset Council,80742191,LM6,Nursing Care,P11,"Adult Care, Health & Wellbeing",BRISTOL AGE CARE,08/01/2018,1888.50
Bath and North East Somerset Council,80741842,LM6,Nursing Care,P11,"Adult Care, Health & Wellbeing",BROOKDALE HEALTHCARE LTD,08/01/2018,7490.00
Bath and North East Somerset Council,80742273,LM3,Residential Care,P11,"Adult Care, Health & Wellbeing",BROUGHTON LODGE CARE HOME LTD,08/01/2018,904.00
Bath and North East Somerset Council,80742251,LM6,Nursing Care,P11,"Adult Care, Health & Wellbeing",BRUNEL CARE HOME,08/01/2018,1604.00
Bath and North East Somerset Council,80742251,LM6,Nursing Care,P11,"Adult Care, Health & Wellbeing",BRUNEL CARE HOME,08/01/2018,1604.00
Bath and North East Somerset Council,80742251,LM6,Nursing Care,P11,"Adult Care, Health & Wellbeing",BRUNEL CARE HOME,08/01/2018,1876.00
Bath and North East Somerset Council,80742251,LM6,Nursing Care,P11,"Adult Care, Health & Wellbeing",BRUNEL CARE HOME,08/01/2018,1987.50
Bath and North East Somerset Council,80741859,LM6,Nursing Care,P11,"Adult Care, Health & Wellbeing",BRUNEL CARE HOME,08/01/2018,2400.00
Bath and North East Somerset Council,80742216,LM6,Nursing Care,P11,"Adult Care, Health & Wellbeing",BRUNELCARE WELFARE,08/01/2018,1988.50
Bath and North East Somerset Council,80742202,LM6,Nursing Care,P11,"Adult Care, Health & Wellbeing",BUPA CARE SERVICES,08/01/2018,928.00
Bath and North East Somerset Council,80742208,LM6,Nursing Care,P11,"Adult Care, Health & Wellbeing",BUPA CARE SERVICES BACS RECEIPTS,08/01/2018,972.00
Bath and North East Somerset Council,80742150,LM6,Nursing Care,P11,"Adult Care, Health & Wellbeing",REDACTED,08/01/2018,310.10
Bath and North East Somerset Council,80742150,LM6,Nursing Care,P11,"Adult Care, Health & Wellbeing",REDACTED,08/01/2018,310.10
Bath and North East Somerset Council,80742150,LM6,Nursing Care,P11,"Adult Care, Health & Wellbeing",REDACTED,08/01/2018,310.10
Bath and North East Somerset Council,80742150,LM6,Nursing Care,P11,"Adult Care, Health & Wellbeing",REDACTED,08/01/2018,310.10
Bath and North East Somerset Council,80742180,LM6,Nursing Care,P11,"Adult Care, Health & Wellbeing",REDACTED,08/01/2018,1382.50
Bath and North East Somerset Council,80741835,LM6,Nursing Care,P11,"Adult Care, Health & Wellbeing",REDACTED,08/01/2018,1971.88
Bath and North East Somerset Council,80742203,LM3,Residential Care,P11,"Adult Care, Health & Wellbeing",C.H.O.I.C.E LTD,08/01/2018,4494.00
Bath and North East Somerset Council,80742203,LM3,Residential Care,P11,"Adult Care, Health & Wellbeing",C.H.O.I.C.E LTD,08/01/2018,4720.89
Bath and North East Somerset Council,80742229,LM3,Residential Care,P11,"Adult Care, Health & Wellbeing",CAMPANIA CARE HOME,08/01/2018,1500.00
Bath and North East Somerset Council,80742228,LM3,Residential Care,P11,"Adult Care, Health & Wellbeing",CAMPHILL DEVON COMMUNITY LTD,08/01/2018,1778.14
Bath and North East Somerset Council,80742162,LM6,Nursing Care,P11,"Adult Care, Health & Wellbeing",CARE FIRST CARE HOMES LTD,08/01/2018,310.10
Bath and North East Somerset Council,80742162,LM6,Nursing Care,P11,"Adult Care, Health & Wellbeing",CARE FIRST CARE HOMES LTD,08/01/2018,310.10
Bath and North East Somerset Council,80742162,LM6,Nursing Care,P11,"Adult Care, Health & Wellbeing",CARE FIRST CARE HOMES LTD,08/01/2018,310.10
Bath and North East Somerset Council,80742162,LM6,Nursing Care,P11,"Adult Care, Health & Wellbeing",CARE FIRST CARE HOMES LTD,08/01/2018,310.10
Bath and North East Somerset Council,80742162,LM6,Nursing Care,P11,"Adult Care, Health & Wellbeing",CARE FIRST CARE HOMES LTD,08/01/2018,310.10
Bath and North East Somerset Council,80742162,LM6,Nursing Care,P11,"Adult Care, Health & Wellbeing",CARE FIRST CARE HOMES LTD,08/01/2018,310.10
Bath and North East Somerset Council,80742162,LM6,Nursing Care,P11,"Adult Care, Health & Wellbeing",CARE FIRST CARE HOMES LTD,08/01/2018,310.10
Bath and North East Somerset Council,80742162,LM6,Nursing Care,P11,"Adult Care, Health & Wellbeing",CARE FIRST CARE HOMES LTD,08/01/2018,310.10
Bath and North East Somerset Council,80742162,LM6,Nursing Care,P11,"Adult Care, Health & Wellbeing",CARE FIRST CARE HOMES LTD,08/01/2018,310.10
Bath and North East Somerset Council,80742320,LM6,Nursing Care,P11,"Adult Care, Health & Wellbeing",CARE FIRST CARE HOMES LTD,08/01/2018,1111.90
Bath and North East Somerset Council,80742162,LM6,Nursing Care,P11,"Adult Care, Health & Wellbeing",CARE FIRST CARE HOMES LTD,08/01/2018,1173.95
Bath and North East Somerset Council,80742162,LM6,Nursing Care,P11,"Adult Care, Health & Wellbeing",CARE FIRST CARE HOMES LTD,08/01/2018,1262.55
Bath and North East Somerset Council,80742320,LM3,Residential Care,P11,"Adult Care, Health & Wellbeing",CARE FIRST CARE HOMES LTD,08/01/2018,1328.00
Bath and North East Somerset Council,80742320,LM3,Residential Care,P11,"Adult Care, Health & Wellbeing",CARE FIRST CARE HOMES LTD,08/01/2018,1459.82
Bath and North East Somerset Council,80741852,LM6,Nursing Care,P11,"Adult Care, Health & Wellbeing",CARE FIRST CARE HOMES LTD,08/01/2018,2000.00
Bath and North East Somerset Council,80742285,LM3,Residential Care,P11,"Adult Care, Health & Wellbeing",CARE SERVICES (BOURNEMOUTH) LTD,08/01/2018,2200.00
Bath and North East Somerset Council,80742252,LM3,Residential Care,P11,"Adult Care, Health & Wellbeing",CARE UK COMMUNITY PARTNERSHIPS LTD,08/01/2018,2268.00
Bath and North East Somerset Council,80741860,LM6,Nursing Care,P11,"Adult Care, Health & Wellbeing",CAS BEHAVIOURAL HEALTH LTD,08/01/2018,4739.00
Bath and North East Somerset Council,80741860,LM6,Nursing Care,P11,"Adult Care, Health & Wellbeing",CAS BEHAVIOURAL HEALTH LTD,08/01/2018,5166.00
Bath and North East Somerset Council,80741860,LM6,Nursing Care,P11,"Adult Care, Health & Wellbeing",CAS BEHAVIOURAL HEALTH LTD,08/01/2018,5606.00
Bath and North East Somerset Council,80741860,LM6,Nursing Care,P11,"Adult Care, Health & Wellbeing",CAS BEHAVIOURAL HEALTH LTD,08/01/2018,6674.80
Bath and North East Somerset Council,80742260,LM3,Residential Care,P11,"Adult Care, Health & Wellbeing",CAS BEHAVIOURAL HEALTH LTD,08/01/2018,69486.50
Bath and North East Somerset Council,80742321,XD3,Client Contributions,P11,"Adult Care, Health & Wellbeing",CEDAR CARE HOMES LTD,08/01/2018,28.41
Bath and North East Somerset Council,80742313,LM6,Nursing Care,P11,"Adult Care, Health & Wellbeing",CEDAR CARE HOMES LTD,08/01/2018,69.50
Bath and North East Somerset Council,80742321,XD3,Client Contributions,P11,"Adult Care, Health & Wellbeing",CEDAR CARE HOMES LTD,08/01/2018,88.72
Bath and North East Somerset Council,80742159,LM6,Nursing Care,P11,"Adult Care, Health & Wellbeing",CEDAR CARE HOMES LTD,08/01/2018,310.10
Bath and North East Somerset Council,80742159,LM6,Nursing Care,P11,"Adult Care, Health & Wellbeing",CEDAR CARE HOMES LTD,08/01/2018,310.10
Bath and North East Somerset Council,80742159,LM6,Nursing Care,P11,"Adult Care, Health & Wellbeing",CEDAR CARE HOMES LTD,08/01/2018,310.10
Bath and North East Somerset Council,80742159,LM6,Nursing Care,P11,"Adult Care, Health & Wellbeing",CEDAR CARE HOMES LTD,08/01/2018,310.10
Bath and North East Somerset Council,80742159,LM6,Nursing Care,P11,"Adult Care, Health & Wellbeing",CEDAR CARE HOMES LTD,08/01/2018,310.10
Bath and North East Somerset Council,80742159,LM6,Nursing Care,P11,"Adult Care, Health & Wellbeing",CEDAR CARE HOMES LTD,08/01/2018,310.10
Bath and North East Somerset Council,80742159,LM6,Nursing Care,P11,"Adult Care, Health & Wellbeing",CEDAR CARE HOMES LTD,08/01/2018,310.10
Bath and North East Somerset Council,80742159,LM6,Nursing Care,P11,"Adult Care, Health & Wellbeing",CEDAR CARE HOMES LTD,08/01/2018,310.10
Bath and North East Somerset Council,80742159,LM6,Nursing Care,P11,"Adult Care, Health & Wellbeing",CEDAR CARE HOMES LTD,08/01/2018,310.10
Bath and North East Somerset Council,80742159,LM6,Nursing Care,P11,"Adult Care, Health & Wellbeing",CEDAR CARE HOMES LTD,08/01/2018,310.10
Bath and North East Somerset Council,80742159,LM6,Nursing Care,P11,"Adult Care, Health & Wellbeing",CEDAR CARE HOMES LTD,08/01/2018,310.10
Bath and North East Somerset Council,80742159,LM6,Nursing Care,P11,"Adult Care, Health & Wellbeing",CEDAR CARE HOMES LTD,08/01/2018,310.10
Bath and North East Somerset Council,80742159,LM6,Nursing Care,P11,"Adult Care, Health & Wellbeing",CEDAR CARE HOMES LTD,08/01/2018,310.10
Bath and North East Somerset Council,80742159,LM6,Nursing Care,P11,"Adult Care, Health & Wellbeing",CEDAR CARE HOMES LTD,08/01/2018,310.10
Bath and North East Somerset Council,80742159,LM6,Nursing Care,P11,"Adult Care, Health & Wellbeing",CEDAR CARE HOMES LTD,08/01/2018,310.10
Bath and North East Somerset Council,80742159,LM6,Nursing Care,P11,"Adult Care, Health & Wellbeing",CEDAR CARE HOMES LTD,08/01/2018,310.10
Bath and North East Somerset Council,80742159,LM6,Nursing Care,P11,"Adult Care, Health & Wellbeing",CEDAR CARE HOMES LTD,08/01/2018,310.10
Bath and North East Somerset Council,80742159,LM6,Nursing Care,P11,"Adult Care, Health & Wellbeing",CEDAR CARE HOMES LTD,08/01/2018,310.10
Bath and North East Somerset Council,80742159,LM6,Nursing Care,P11,"Adult Care, Health & Wellbeing",CEDAR CARE HOMES LTD,08/01/2018,310.10
Bath and North East Somerset Council,80742159,LM6,Nursing Care,P11,"Adult Care, Health & Wellbeing",CEDAR CARE HOMES LTD,08/01/2018,310.10
Bath and North East Somerset Council,80742159,LM6,Nursing Care,P11,"Adult Care, Health & Wellbeing",CEDAR CARE HOMES LTD,08/01/2018,310.10
Bath and North East Somerset Council,80742159,LM6,Nursing Care,P11,"Adult Care, Health & Wellbeing",CEDAR CARE HOMES LTD,08/01/2018,310.10
Bath and North East Somerset Council,80742159,LM6,Nursing Care,P11,"Adult Care, Health & Wellbeing",CEDAR CARE HOMES LTD,08/01/2018,310.10
Bath and North East Somerset Council,80742159,LM6,Nursing Care,P11,"Adult Care, Health & Wellbeing",CEDAR CARE HOMES LTD,08/01/2018,310.10
Bath and North East Somerset Council,80742159,LM6,Nursing Care,P11,"Adult Care, Health & Wellbeing",CEDAR CARE HOMES LTD,08/01/2018,310.10
Bath and North East Somerset Council,80742159,LM6,Nursing Care,P11,"Adult Care, Health & Wellbeing",CEDAR CARE HOMES LTD,08/01/2018,310.10
Bath and North East Somerset Council,80742159,LM6,Nursing Care,P11,"Adult Care, Health & Wellbeing",CEDAR CARE HOMES LTD,08/01/2018,310.10
Bath and North East Somerset Council,80742159,LM6,Nursing Care,P11,"Adult Care, Health & Wellbeing",CEDAR CARE HOMES LTD,08/01/2018,310.10
Bath and North East Somerset Council,80742159,LM6,Nursing Care,P11,"Adult Care, Health & Wellbeing",CEDAR CARE HOMES LTD,08/01/2018,310.10
Bath and North East Somerset Council,80742159,LM6,Nursing Care,P11,"Adult Care, Health & Wellbeing",CEDAR CARE HOMES LTD,08/01/2018,310.10
Bath and North East Somerset Council,80742163,LM6,Nursing Care,P11,"Adult Care, Health & Wellbeing",CEDAR CARE HOMES LTD,08/01/2018,310.10
Bath and North East Somerset Council,80742163,LM6,Nursing Care,P11,"Adult Care, Health & Wellbeing",CEDAR CARE HOMES LTD,08/01/2018,310.10
Bath and North East Somerset Council,80742163,LM6,Nursing Care,P11,"Adult Care, Health & Wellbeing",CEDAR CARE HOMES LTD,08/01/2018,310.10
Bath and North East Somerset Council,80742163,LM6,Nursing Care,P11,"Adult Care, Health & Wellbeing",CEDAR CARE HOMES LTD,08/01/2018,310.10
Bath and North East Somerset Council,80742163,LM6,Nursing Care,P11,"Adult Care, Health & Wellbeing",CEDAR CARE HOMES LTD,08/01/2018,310.10
Bath and North East Somerset Council,80742163,LM6,Nursing Care,P11,"Adult Care, Health & Wellbeing",CEDAR CARE HOMES LTD,08/01/2018,310.10
Bath and North East Somerset Council,80742163,LM6,Nursing Care,P11,"Adult Care, Health & Wellbeing",CEDAR CARE HOMES LTD,08/01/2018,310.10
Bath and North East Somerset Council,80742163,LM6,Nursing Care,P11,"Adult Care, Health & Wellbeing",CEDAR CARE HOMES LTD,08/01/2018,310.10
Bath and North East Somerset Council,80742163,LM6,Nursing Care,P11,"Adult Care, Health & Wellbeing",CEDAR CARE HOMES LTD,08/01/2018,310.10
Bath and North East Somerset Council,80742163,LM6,Nursing Care,P11,"Adult Care, Health & Wellbeing",CEDAR CARE HOMES LTD,08/01/2018,310.10
Bath and North East Somerset Council,80742163,LM6,Nursing Care,P11,"Adult Care, Health & Wellbeing",CEDAR CARE HOMES LTD,08/01/2018,310.10
Bath and North East Somerset Council,80742163,LM6,Nursing Care,P11,"Adult Care, Health & Wellbeing",CEDAR CARE HOMES LTD,08/01/2018,310.10
Bath and North East Somerset Council,80742163,LM6,Nursing Care,P11,"Adult Care, Health & Wellbeing",CEDAR CARE HOMES LTD,08/01/2018,310.10
Bath and North East Somerset Council,80742163,LM6,Nursing Care,P11,"Adult Care, Health & Wellbeing",CEDAR CARE HOMES LTD,08/01/2018,310.10
Bath and North East Somerset Council,80742163,LM6,Nursing Care,P11,"Adult Care, Health & Wellbeing",CEDAR CARE HOMES LTD,08/01/2018,310.10
Bath and North East Somerset Council,80742163,LM6,Nursing Care,P11,"Adult Care, Health & Wellbeing",CEDAR CARE HOMES LTD,08/01/2018,310.10
Bath and North East Somerset Council,80742163,LM6,Nursing Care,P11,"Adult Care, Health & Wellbeing",CEDAR CARE HOMES LTD,08/01/2018,310.10
Bath and North East Somerset Council,80742163,LM6,Nursing Care,P11,"Adult Care, Health & Wellbeing",CEDAR CARE HOMES LTD,08/01/2018,310.10
Bath and North East Somerset Council,80742163,LM6,Nursing Care,P11,"Adult Care, Health & Wellbeing",CEDAR CARE HOMES LTD,08/01/2018,310.10
Bath and North East Somerset Council,80742163,LM6,Nursing Care,P11,"Adult Care, Health & Wellbeing",CEDAR CARE HOMES LTD,08/01/2018,310.10
Bath and North East Somerset Council,80742163,LM6,Nursing Care,P11,"Adult Care, Health & Wellbeing",CEDAR CARE HOMES LTD,08/01/2018,310.10
Bath and North East Somerset Council,80742163,LM6,Nursing Care,P11,"Adult Care, Health & Wellbeing",CEDAR CARE HOMES LTD,08/01/2018,310.10
Bath and North East Somerset Council,80742163,LM6,Nursing Care,P11,"Adult Care, Health & Wellbeing",CEDAR CARE HOMES LTD,08/01/2018,310.10
Bath and North East Somerset Council,80742163,LM6,Nursing Care,P11,"Adult Care, Health & Wellbeing",CEDAR CARE HOMES LTD,08/01/2018,310.10
Bath and North East Somerset Council,80742163,LM6,Nursing Care,P11,"Adult Care, Health & Wellbeing",CEDAR CARE HOMES LTD,08/01/2018,310.10
Bath and North East Somerset Council,80742163,LM6,Nursing Care,P11,"Adult Care, Health & Wellbeing",CEDAR CARE HOMES LTD,08/01/2018,310.10
Bath and North East Somerset Council,80742163,LM6,Nursing Care,P11,"Adult Care, Health & Wellbeing",CEDAR CARE HOMES LTD,08/01/2018,310.10
Bath and North East Somerset Council,80742163,LM6,Nursing Care,P11,"Adult Care, Health & Wellbeing",CEDAR CARE HOMES LTD,08/01/2018,310.10
Bath and North East Somerset Council,80742163,LM6,Nursing Care,P11,"Adult Care, Health & Wellbeing",CEDAR CARE HOMES LTD,08/01/2018,310.10
Bath and North East Somerset Council,80742163,LM6,Nursing Care,P11,"Adult Care, Health & Wellbeing",CEDAR CARE HOMES LTD,08/01/2018,310.10
Bath and North East Somerset Council,80742163,LM6,Nursing Care,P11,"Adult Care, Health & Wellbeing",CEDAR CARE HOMES LTD,08/01/2018,310.10
Bath and North East Somerset Council,80742163,LM6,Nursing Care,P11,"Adult Care, Health & Wellbeing",CEDAR CARE HOMES LTD,08/01/2018,310.10
Bath and North East Somerset Council,80742163,LM6,Nursing Care,P11,"Adult Care, Health & Wellbeing",CEDAR CARE HOMES LTD,08/01/2018,310.10
Bath and North East Somerset Council,80742163,LM6,Nursing Care,P11,"Adult Care, Health & Wellbeing",CEDAR CARE HOMES LTD,08/01/2018,310.10
Bath and North East Somerset Council,80742313,LM6,Nursing Care,P11,"Adult Care, Health & Wellbeing",CEDAR CARE HOMES LTD,08/01/2018,1147.90
Bath and North East Somerset Council,80742313,LM6,Nursing Care,P11,"Adult Care, Health & Wellbeing",CEDAR CARE HOMES LTD,08/01/2018,1147.90
Bath and North East Somerset Council,80742313,LM3,Residential Care,P11,"Adult Care, Health & Wellbeing",CEDAR CARE HOMES LTD,08/01/2018,1162.00
Bath and North East Somerset Council,80742313,LM6,Nursing Care,P11,"Adult Care, Health & Wellbeing",CEDAR CARE HOMES LTD,08/01/2018,1169.80
Bath and North East Somerset Council,80742321,LM6,Nursing Care,P11,"Adult Care, Health & Wellbeing",CEDAR CARE HOMES LTD,08/01/2018,1310.40
Bath and North East Somerset Council,80742159,LM6,Nursing Care,P11,"Adult Care, Health & Wellbeing",CEDAR CARE HOMES LTD,08/01/2018,1373.30
Bath and North East Somerset Council,80742214,LM6,Nursing Care,P11,"Adult Care, Health & Wellbeing",CEDAR CARE HOMES LTD,08/01/2018,1416.00
Bath and North East Somerset Council,80742313,LM6,Nursing Care,P11,"Adult Care, Health & Wellbeing",CEDAR CARE HOMES LTD,08/01/2018,1416.40
Bath and North East Somerset Council,80742313,LM6,Nursing Care,P11,"Adult Care, Health & Wellbeing",CEDAR CARE HOMES LTD,08/01/2018,1419.90
Bath and North East Somerset Council,80742321,LM6,Nursing Care,P11,"Adult Care, Health & Wellbeing",CEDAR CARE HOMES LTD,08/01/2018,1426.88
Bath and North East Somerset Council,80742321,LM6,Nursing Care,P11,"Adult Care, Health & Wellbeing",CEDAR CARE HOMES LTD,08/01/2018,1429.90
Bath and North East Somerset Council,80742313,LM6,Nursing Care,P11,"Adult Care, Health & Wellbeing",CEDAR CARE HOMES LTD,08/01/2018,1432.40
Bath and North East Somerset Council,80742313,LM6,Nursing Care,P11,"Adult Care, Health & Wellbeing",CEDAR CARE HOMES LTD,08/01/2018,1478.40
Bath and North East Somerset Council,80742313,LM6,Nursing Care,P11,"Adult Care, Health & Wellbeing",CEDAR CARE HOMES LTD,08/01/2018,1479.90
Bath and North East Somerset Council,80742321,LM6,Nursing Care,P11,"Adult Care, Health & Wellbeing",CEDAR CARE HOMES LTD,08/01/2018,1479.90
Bath and North East Somerset Council,80742313,LM6,Nursing Care,P11,"Adult Care, Health & Wellbeing",CEDAR CARE HOMES LTD,08/01/2018,1496.40
Bath and North East Somerset Council,80742313,LM6,Nursing Care,P11,"Adult Care, Health & Wellbeing",CEDAR CARE HOMES LTD,08/01/2018,1496.40
Bath and North East Somerset Council,80742313,LM6,Nursing Care,P11,"Adult Care, Health & Wellbeing",CEDAR CARE HOMES LTD,08/01/2018,1496.40
Bath and North East Somerset Council,80742321,LM6,Nursing Care,P11,"Adult Care, Health & Wellbeing",CEDAR CARE HOMES LTD,08/01/2018,1496.40
Bath and North East Somerset Council,80742321,LM6,Nursing Care,P11,"Adult Care, Health & Wellbeing",CEDAR CARE HOMES LTD,08/01/2018,1496.40
Bath and North East Somerset Council,80742163,LM6,Nursing Care,P11,"Adult Care, Health & Wellbeing",CEDAR CARE HOMES LTD,08/01/2018,1506.20
Bath and North East Somerset Council,80742321,LM6,Nursing Care,P11,"Adult Care, Health & Wellbeing",CEDAR CARE HOMES LTD,08/01/2018,1556.40
Bath and North East Somerset Council,80742321,LM6,Nursing Care,P11,"Adult Care, Health & Wellbeing",CEDAR CARE HOMES LTD,08/01/2018,1610.12
Bath and North East Somerset Council,80741844,LM6,Nursing Care,P11,"Adult Care, Health & Wellbeing",CEDAR CARE HOMES LTD,08/01/2018,1620.00
Bath and North East Somerset Council,80742313,LM6,Nursing Care,P11,"Adult Care, Health & Wellbeing",CEDAR CARE HOMES LTD,08/01/2018,1656.40
Bath and North East Somerset Council,80742321,LM6,Nursing Care,P11,"Adult Care, Health & Wellbeing",CEDAR CARE HOMES LTD,08/01/2018,1667.90
Bath and North East Somerset Council,80742313,LM6,Nursing Care,P11,"Adult Care, Health & Wellbeing",CEDAR CARE HOMES LTD,08/01/2018,1739.80
Bath and North East Somerset Council,80742313,LM6,Nursing Care,P11,"Adult Care, Health & Wellbeing",CEDAR CARE HOMES LTD,08/01/2018,1790.00
Bath and North East Somerset Council,80742313,LM6,Nursing Care,P11,"Adult Care, Health & Wellbeing",CEDAR CARE HOMES LTD,08/01/2018,1790.00
Bath and North East Somerset Council,80742313,LM6,Nursing Care,P11,"Adult Care, Health & Wellbeing",CEDAR CARE HOMES LTD,08/01/2018,1790.00
Bath and North East Somerset Council,80742163,LM6,Nursing Care,P11,"Adult Care, Health & Wellbeing",CEDAR CARE HOMES LTD,08/01/2018,1816.30
Bath and North East Somerset Council,80742159,LM6,Nursing Care,P11,"Adult Care, Health & Wellbeing",CEDAR CARE HOMES LTD,08/01/2018,1860.60
Bath and North East Somerset Council,80741853,LM6,Nursing Care,P11,"Adult Care, Health & Wellbeing",CEDAR CARE HOMES LTD,08/01/2018,1970.00
Bath and North East Somerset Council,80742321,LM6,Nursing Care,P11,"Adult Care, Health & Wellbeing",CEDAR CARE HOMES LTD,08/01/2018,1970.00
Bath and North East Somerset Council,80741853,LM6,Nursing Care,P11,"Adult Care, Health & Wellbeing",CEDAR CARE HOMES LTD,08/01/2018,2000.00
Bath and North East Somerset Council,80741853,LM6,Nursing Care,P11,"Adult Care, Health & Wellbeing",CEDAR CARE HOMES LTD,08/01/2018,2100.00
Bath and North East Somerset Council,80742321,LM6,Nursing Care,P11,"Adult Care, Health & Wellbeing",CEDAR CARE HOMES LTD,08/01/2018,2302.00
Bath and North East Somerset Council,80742321,LM6,Nursing Care,P11,"Adult Care, Health & Wellbeing",CEDAR CARE HOMES LTD,08/01/2018,6042.85
Bath and North East Somerset Council,80742149,LM6,Nursing Care,P11,"Adult Care, Health & Wellbeing",CEDAR PARK NURSING HOME,08/01/2018,66.45
Bath and North East Somerset Council,80742149,LM6,Nursing Care,P11,"Adult Care, Health & Wellbeing",CEDAR PARK NURSING HOME,08/01/2018,310.10
Bath and North East Somerset Council,80742149,LM6,Nursing Care,P11,"Adult Care, Health & Wellbeing",CEDAR PARK NURSING HOME,08/01/2018,310.10
Bath and North East Somerset Council,80742149,LM6,Nursing Care,P11,"Adult Care, Health & Wellbeing",CEDAR PARK NURSING HOME,08/01/2018,310.10
Bath and North East Somerset Council,80742149,LM6,Nursing Care,P11,"Adult Care, Health & Wellbeing",CEDAR PARK NURSING HOME,08/01/2018,310.10
Bath and North East Somerset Council,80742149,LM6,Nursing Care,P11,"Adult Care, Health & Wellbeing",CEDAR PARK NURSING HOME,08/01/2018,310.10
Bath and North East Somerset Council,80742149,LM6,Nursing Care,P11,"Adult Care, Health & Wellbeing",CEDAR PARK NURSING HOME,08/01/2018,310.10
Bath and North East Somerset Council,80742149,LM6,Nursing Care,P11,"Adult Care, Health & Wellbeing",CEDAR PARK NURSING HOME,08/01/2018,310.10
Bath and North East Somerset Council,80742149,LM6,Nursing Care,P11,"Adult Care, Health & Wellbeing",CEDAR PARK NURSING HOME,08/01/2018,310.10
Bath and North East Somerset Council,80742149,LM6,Nursing Care,P11,"Adult Care, Health & Wellbeing",CEDAR PARK NURSING HOME,08/01/2018,310.10
Bath and North East Somerset Council,80742149,LM6,Nursing Care,P11,"Adult Care, Health & Wellbeing",CEDAR PARK NURSING HOME,08/01/2018,310.10
Bath and North East Somerset Council,80742149,LM6,Nursing Care,P11,"Adult Care, Health & Wellbeing",CEDAR PARK NURSING HOME,08/01/2018,310.10
Bath and North East Somerset Council,80742149,LM6,Nursing Care,P11,"Adult Care, Health & Wellbeing",CEDAR PARK NURSING HOME,08/01/2018,310.10
Bath and North East Somerset Council,80742149,LM6,Nursing Care,P11,"Adult Care, Health & Wellbeing",CEDAR PARK NURSING HOME,08/01/2018,310.10
Bath and North East Somerset Council,80742149,LM6,Nursing Care,P11,"Adult Care, Health & Wellbeing",CEDAR PARK NURSING HOME,08/01/2018,310.10
Bath and North East Somerset Council,80742149,LM6,Nursing Care,P11,"Adult Care, Health & Wellbeing",CEDAR PARK NURSING HOME,08/01/2018,310.10
Bath and North East Somerset Council,80742149,LM6,Nursing Care,P11,"Adult Care, Health & Wellbeing",CEDAR PARK NURSING HOME,08/01/2018,310.10
Bath and North East Somerset Council,80742149,LM6,Nursing Care,P11,"Adult Care, Health & Wellbeing",CEDAR PARK NURSING HOME,08/01/2018,310.10
Bath and North East Somerset Council,80742149,LM6,Nursing Care,P11,"Adult Care, Health & Wellbeing",CEDAR PARK NURSING HOME,08/01/2018,310.10
Bath and North East Somerset Council,80742149,LM6,Nursing Care,P11,"Adult Care, Health & Wellbeing",CEDAR PARK NURSING HOME,08/01/2018,310.10
Bath and North East Somerset Council,80742149,LM6,Nursing Care,P11,"Adult Care, Health & Wellbeing",CEDAR PARK NURSING HOME,08/01/2018,310.10
Bath and North East Somerset Council,80742149,LM6,Nursing Care,P11,"Adult Care, Health & Wellbeing",CEDAR PARK NURSING HOME,08/01/2018,310.10
Bath and North East Somerset Council,80742149,LM6,Nursing Care,P11,"Adult Care, Health & Wellbeing",CEDAR PARK NURSING HOME,08/01/2018,310.10
Bath and North East Somerset Council,80742149,LM6,Nursing Care,P11,"Adult Care, Health & Wellbeing",CEDAR PARK NURSING HOME,08/01/2018,310.10
Bath and North East Somerset Council,80742149,LM6,Nursing Care,P11,"Adult Care, Health & Wellbeing",CEDAR PARK NURSING HOME,08/01/2018,310.10
Bath and North East Somerset Council,80742149,LM6,Nursing Care,P11,"Adult Care, Health & Wellbeing",CEDAR PARK NURSING HOME,08/01/2018,310.10
Bath and North East Somerset Council,80742149,LM6,Nursing Care,P11,"Adult Care, Health & Wellbeing",CEDAR PARK NURSING HOME,08/01/2018,310.10
Bath and North East Somerset Council,80742149,LM6,Nursing Care,P11,"Adult Care, Health & Wellbeing",CEDAR PARK NURSING HOME,08/01/2018,310.10
Bath and North East Somerset Council,80742149,LM6,Nursing Care,P11,"Adult Care, Health & Wellbeing",CEDAR PARK NURSING HOME,08/01/2018,310.10
Bath and North East Somerset Council,80742149,LM6,Nursing Care,P11,"Adult Care, Health & Wellbeing",CEDAR PARK NURSING HOME,08/01/2018,310.10
Bath and North East Somerset Council,80742297,LM6,Nursing Care,P11,"Adult Care, Health & Wellbeing",CEDAR PARK NURSING HOME,08/01/2018,1111.90
Bath and North East Somerset Council,80742297,LM6,Nursing Care,P11,"Adult Care, Health & Wellbeing",CEDAR PARK NURSING HOME,08/01/2018,1111.90
Bath and North East Somerset Council,80742297,LM6,Nursing Care,P11,"Adult Care, Health & Wellbeing",CEDAR PARK NURSING HOME,08/01/2018,1111.90
Bath and North East Somerset Council,80742297,LM6,Nursing Care,P11,"Adult Care, Health & Wellbeing",CEDAR PARK NURSING HOME,08/01/2018,1111.90
Bath and North East Somerset Council,80742297,LM6,Nursing Care,P11,"Adult Care, Health & Wellbeing",CEDAR PARK NURSING HOME,08/01/2018,1111.90
Bath and North East Somerset Council,80742297,LM6,Nursing Care,P11,"Adult Care, Health & Wellbeing",CEDAR PARK NURSING HOME,08/01/2018,1111.90
Bath and North East Somerset Council,80742297,LM6,Nursing Care,P11,"Adult Care, Health & Wellbeing",CEDAR PARK NURSING HOME,08/01/2018,1111.90
Bath and North East Somerset Council,80742297,LM6,Nursing Care,P11,"Adult Care, Health & Wellbeing",CEDAR PARK NURSING HOME,08/01/2018,1111.90
Bath and North East Somerset Council,80742297,LM6,Nursing Care,P11,"Adult Care, Health & Wellbeing",CEDAR PARK NURSING HOME,08/01/2018,1111.90
Bath and North East Somerset Council,80742297,LM6,Nursing Care,P11,"Adult Care, Health & Wellbeing",CEDAR PARK NURSING HOME,08/01/2018,1111.90
Bath and North East Somerset Council,80742297,LM6,Nursing Care,P11,"Adult Care, Health & Wellbeing",CEDAR PARK NURSING HOME,08/01/2018,1135.84
Bath and North East Somerset Council,80742297,LM6,Nursing Care,P11,"Adult Care, Health & Wellbeing",CEDAR PARK NURSING HOME,08/01/2018,1208.40
Bath and North East Somerset Council,80742297,LM6,Nursing Care,P11,"Adult Care, Health & Wellbeing",CEDAR PARK NURSING HOME,08/01/2018,1329.40
Bath and North East Somerset Council,80742297,LM6,Nursing Care,P11,"Adult Care, Health & Wellbeing",CEDAR PARK NURSING HOME,08/01/2018,1344.40
Bath and North East Somerset Council,80742297,LM6,Nursing Care,P11,"Adult Care, Health & Wellbeing",CEDAR PARK NURSING HOME,08/01/2018,1344.40
Bath and North East Somerset Council,80742297,LM6,Nursing Care,P11,"Adult Care, Health & Wellbeing",CEDAR PARK NURSING HOME,08/01/2018,1378.40
Bath and North East Somerset Council,80742297,LM6,Nursing Care,P11,"Adult Care, Health & Wellbeing",CEDAR PARK NURSING HOME,08/01/2018,1394.40
Bath and North East Somerset Council,80742297,LM6,Nursing Care,P11,"Adult Care, Health & Wellbeing",CEDAR PARK NURSING HOME,08/01/2018,1439.90
Bath and North East Somerset Council,80742297,LM6,Nursing Care,P11,"Adult Care, Health & Wellbeing",CEDAR PARK NURSING HOME,08/01/2018,1439.90
Bath and North East Somerset Council,80742297,LM6,Nursing Care,P11,"Adult Care, Health & Wellbeing",CEDAR PARK NURSING HOME,08/01/2018,1439.90
Bath and North East Somerset Council,80742297,LM6,Nursing Care,P11,"Adult Care, Health & Wellbeing",CEDAR PARK NURSING HOME,08/01/2018,1439.90
Bath and North East Somerset Council,80742297,LM6,Nursing Care,P11,"Adult Care, Health & Wellbeing",CEDAR PARK NURSING HOME,08/01/2018,1478.20
Bath and North East Somerset Council,80742297,LM6,Nursing Care,P11,"Adult Care, Health & Wellbeing",CEDAR PARK NURSING HOME,08/01/2018,1528.40
Bath and North East Somerset Council,80741834,LM6,Nursing Care,P11,"Adult Care, Health & Wellbeing",CEDAR PARK NURSING HOME,08/01/2018,1550.00
Bath and North East Somerset Council,80742297,LM6,Nursing Care,P11,"Adult Care, Health & Wellbeing",CEDAR PARK NURSING HOME,08/01/2018,1750.00
Bath and North East Somerset Council,80742297,LM6,Nursing Care,P11,"Adult Care, Health & Wellbeing",CEDAR PARK NURSING HOME,08/01/2018,1750.00
Bath and North East Somerset Council,80742149,LM6,Nursing Care,P11,"Adult Care, Health & Wellbeing",CEDAR PARK NURSING HOME,08/01/2018,1794.15
Bath and North East Somerset Council,80741834,LM6,Nursing Care,P11,"Adult Care, Health & Wellbeing",CEDAR PARK NURSING HOME,08/01/2018,1800.00
Bath and North East Somerset Council,80742149,LM6,Nursing Care,P11,"Adult Care, Health & Wellbeing",CEDAR PARK NURSING HOME,08/01/2018,2015.65
Bath and North East Somerset Council,80741834,LM6,Nursing Care,P11,"Adult Care, Health & Wellbeing",CEDAR PARK NURSING HOME,08/01/2018,2100.00
Bath and North East Somerset Council,80742297,LM6,Nursing Care,P11,"Adult Care, Health & Wellbeing",CEDAR PARK NURSING HOME,08/01/2018,2501.57
Bath and North East Somerset Council,80742149,LM6,Nursing Care,P11,"Adult Care, Health & Wellbeing",CEDAR PARK NURSING HOME,08/01/2018,6401.35
Bath and North East Somerset Council,80742231,LM6,Nursing Care,P11,"Adult Care, Health & Wellbeing",CEDARS CARE (WINSCOMBE HALL) LTD,08/01/2018,994.00
Bath and North East Somerset Council,80742262,LM3,Residential Care,P11,"Adult Care, Health & Wellbeing",CHASE LODGE CARE HOME,08/01/2018,1446.00
Bath and North East Somerset Council,80742164,LM6,Nursing Care,P11,"Adult Care, Health & Wellbeing",CHERRY GARDEN PROPERTIES LTD,08/01/2018,310.10
Bath and North East Somerset Council,80742164,LM6,Nursing Care,P11,"Adult Care, Health & Wellbeing",CHERRY GARDEN PROPERTIES LTD,08/01/2018,310.10
Bath and North East Somerset Council,80742164,LM6,Nursing Care,P11,"Adult Care, Health & Wellbeing",CHERRY GARDEN PROPERTIES LTD,08/01/2018,310.10
Bath and North East Somerset Council,80742164,LM6,Nursing Care,P11,"Adult Care, Health & Wellbeing",CHERRY GARDEN PROPERTIES LTD,08/01/2018,310.10
Bath and North East Somerset Council,80742164,LM6,Nursing Care,P11,"Adult Care, Health & Wellbeing",CHERRY GARDEN PROPERTIES LTD,08/01/2018,310.10
Bath and North East Somerset Council,80742164,LM6,Nursing Care,P11,"Adult Care, Health & Wellbeing",CHERRY GARDEN PROPERTIES LTD,08/01/2018,310.10
Bath and North East Somerset Council,80742164,LM6,Nursing Care,P11,"Adult Care, Health & Wellbeing",CHERRY GARDEN PROPERTIES LTD,08/01/2018,310.10
Bath and North East Somerset Council,80742164,LM6,Nursing Care,P11,"Adult Care, Health & Wellbeing",CHERRY GARDEN PROPERTIES LTD,08/01/2018,310.10
Bath and North East Somerset Council,80742164,LM6,Nursing Care,P11,"Adult Care, Health & Wellbeing",CHERRY GARDEN PROPERTIES LTD,08/01/2018,310.10
Bath and North East Somerset Council,80742164,LM6,Nursing Care,P11,"Adult Care, Health & Wellbeing",CHERRY GARDEN PROPERTIES LTD,08/01/2018,310.10
Bath and North East Somerset Council,80742164,LM6,Nursing Care,P11,"Adult Care, Health & Wellbeing",CHERRY GARDEN PROPERTIES LTD,08/01/2018,310.10
Bath and North East Somerset Council,80742164,LM6,Nursing Care,P11,"Adult Care, Health & Wellbeing",CHERRY GARDEN PROPERTIES LTD,08/01/2018,310.10
Bath and North East Somerset Council,80742164,LM6,Nursing Care,P11,"Adult Care, Health & Wellbeing",CHERRY GARDEN PROPERTIES LTD,08/01/2018,310.10
Bath and North East Somerset Council,80742164,LM6,Nursing Care,P11,"Adult Care, Health & Wellbeing",CHERRY GARDEN PROPERTIES LTD,08/01/2018,310.10
Bath and North East Somerset Council,80742164,LM6,Nursing Care,P11,"Adult Care, Health & Wellbeing",CHERRY GARDEN PROPERTIES LTD,08/01/2018,310.10
Bath and North East Somerset Council,80742164,LM6,Nursing Care,P11,"Adult Care, Health & Wellbeing",CHERRY GARDEN PROPERTIES LTD,08/01/2018,310.10
Bath and North East Somerset Council,80742164,LM6,Nursing Care,P11,"Adult Care, Health & Wellbeing",CHERRY GARDEN PROPERTIES LTD,08/01/2018,310.10
Bath and North East Somerset Council,80742164,LM6,Nursing Care,P11,"Adult Care, Health & Wellbeing",CHERRY GARDEN PROPERTIES LTD,08/01/2018,310.10
Bath and North East Somerset Council,80742164,LM6,Nursing Care,P11,"Adult Care, Health & Wellbeing",CHERRY GARDEN PROPERTIES LTD,08/01/2018,310.10
Bath and North East Somerset Council,80742164,LM6,Nursing Care,P11,"Adult Care, Health & Wellbeing",CHERRY GARDEN PROPERTIES LTD,08/01/2018,310.10
Bath and North East Somerset Council,80742164,LM6,Nursing Care,P11,"Adult Care, Health & Wellbeing",CHERRY GARDEN PROPERTIES LTD,08/01/2018,310.10
Bath and North East Somerset Council,80742164,LM6,Nursing Care,P11,"Adult Care, Health & Wellbeing",CHERRY GARDEN PROPERTIES LTD,08/01/2018,310.10
Bath and North East Somerset Council,80742164,LM6,Nursing Care,P11,"Adult Care, Health & Wellbeing",CHERRY GARDEN PROPERTIES LTD,08/01/2018,310.10
Bath and North East Somerset Council,80742324,LM3,Residential Care,P11,"Adult Care, Health & Wellbeing",CHERRY GARDEN PROPERTIES LTD,08/01/2018,400.00
Bath and North East Somerset Council,80741855,LM6,Nursing Care,P11,"Adult Care, Health & Wellbeing",CHERRY GARDEN PROPERTIES LTD,08/01/2018,528.57
Bath and North East Somerset Council,80742324,LM6,Nursing Care,P11,"Adult Care, Health & Wellbeing",CHERRY GARDEN PROPERTIES LTD,08/01/2018,1111.90
Bath and North East Somerset Council,80742324,LM6,Nursing Care,P11,"Adult Care, Health & Wellbeing",CHERRY GARDEN PROPERTIES LTD,08/01/2018,1111.90
Bath and North East Somerset Council,80742324,LM6,Nursing Care,P11,"Adult Care, Health & Wellbeing",CHERRY GARDEN PROPERTIES LTD,08/01/2018,1111.90
Bath and North East Somerset Council,80742324,LM6,Nursing Care,P11,"Adult Care, Health & Wellbeing",CHERRY GARDEN PROPERTIES LTD,08/01/2018,1111.90
Bath and North East Somerset Council,80742324,LM6,Nursing Care,P11,"Adult Care, Health & Wellbeing",CHERRY GARDEN PROPERTIES LTD,08/01/2018,1111.90
Bath and North East Somerset Council,80742324,LM3,Residential Care,P11,"Adult Care, Health & Wellbeing",CHERRY GARDEN PROPERTIES LTD,08/01/2018,1370.00
Bath and North East Somerset Council,80742324,LM6,Nursing Care,P11,"Adult Care, Health & Wellbeing",CHERRY GARDEN PROPERTIES LTD,08/01/2018,1459.90
Bath and North East Somerset Council,80742324,LM6,Nursing Care,P11,"Adult Care, Health & Wellbeing",CHERRY GARDEN PROPERTIES LTD,08/01/2018,1478.00
Bath and North East Somerset Council,80742324,LM6,Nursing Care,P11,"Adult Care, Health & Wellbeing",CHERRY GARDEN PROPERTIES LTD,08/01/2018,1600.00
Bath and North East Somerset Council,80741855,LM6,Nursing Care,P11,"Adult Care, Health & Wellbeing",CHERRY GARDEN PROPERTIES LTD,08/01/2018,1770.00
Bath and North East Somerset Council,80742215,LM3,Residential Care,P11,"Adult Care, Health & Wellbeing",CHERRY ORCHARDS [CAMPHILL] COMMUNITY LTD,08/01/2018,3248.00
Bath and North East Somerset Council,80742179,LM3,Residential Care,P11,"Adult Care, Health & Wellbeing",CHESCOMBE TRUST,08/01/2018,3137.22
Bath and North East Somerset Council,80742275,LM3,Residential Care,P11,"Adult Care, Health & Wellbeing",CHOICE LTD,08/01/2018,4120.32
Bath and North East Somerset Council,80741846,LM3,Residential Care,P11,"Adult Care, Health & Wellbeing",CHOICE LTD,08/01/2018,4234.00
Bath and North East Somerset Council,80742249,LM6,Nursing Care,P11,"Adult Care, Health & Wellbeing",CHOLWELL CARE (NAILSEA) LTD,08/01/2018,1410.00
Bath and North East Somerset Council,80741857,LM6,Nursing Care,P11,"Adult Care, Health & Wellbeing",CHOLWELL CARE (NAILSEA) LTD,08/01/2018,5950.00
Bath and North East Somerset Council,80742145,LM6,Nursing Care,P11,"Adult Care, Health & Wellbeing",CHOLWELL HOUSE NURSING HOME,08/01/2018,110.75
Bath and North East Somerset Council,80742145,LM6,Nursing Care,P11,"Adult Care, Health & Wellbeing",CHOLWELL HOUSE NURSING HOME,08/01/2018,310.10
Bath and North East Somerset Council,80742145,LM6,Nursing Care,P11,"Adult Care, Health & Wellbeing",CHOLWELL HOUSE NURSING HOME,08/01/2018,310.10
Bath and North East Somerset Council,80742145,LM6,Nursing Care,P11,"Adult Care, Health & Wellbeing",CHOLWELL HOUSE NURSING HOME,08/01/2018,310.10
Bath and North East Somerset Council,80742145,LM6,Nursing Care,P11,"Adult Care, Health & Wellbeing",CHOLWELL HOUSE NURSING HOME,08/01/2018,310.10
Bath and North East Somerset Council,80742145,LM6,Nursing Care,P11,"Adult Care, Health & Wellbeing",CHOLWELL HOUSE NURSING HOME,08/01/2018,310.10
Bath and North East Somerset Council,80742145,LM6,Nursing Care,P11,"Adult Care, Health & Wellbeing",CHOLWELL HOUSE NURSING HOME,08/01/2018,310.10
Bath and North East Somerset Council,80742145,LM6,Nursing Care,P11,"Adult Care, Health & Wellbeing",CHOLWELL HOUSE NURSING HOME,08/01/2018,310.10
Bath and North East Somerset Council,80742145,LM6,Nursing Care,P11,"Adult Care, Health & Wellbeing",CHOLWELL HOUSE NURSING HOME,08/01/2018,310.10
Bath and North East Somerset Council,80742145,LM6,Nursing Care,P11,"Adult Care, Health & Wellbeing",CHOLWELL HOUSE NURSING HOME,08/01/2018,310.10
Bath and North East Somerset Council,80742145,LM6,Nursing Care,P11,"Adult Care, Health & Wellbeing",CHOLWELL HOUSE NURSING HOME,08/01/2018,310.10
Bath and North East Somerset Council,80742145,LM6,Nursing Care,P11,"Adult Care, Health & Wellbeing",CHOLWELL HOUSE NURSING HOME,08/01/2018,310.10
Bath and North East Somerset Council,80742145,LM6,Nursing Care,P11,"Adult Care, Health & Wellbeing",CHOLWELL HOUSE NURSING HOME,08/01/2018,310.10
Bath and North East Somerset Council,80742145,LM6,Nursing Care,P11,"Adult Care, Health & Wellbeing",CHOLWELL HOUSE NURSING HOME,08/01/2018,310.10
Bath and North East Somerset Council,80742145,LM6,Nursing Care,P11,"Adult Care, Health & Wellbeing",CHOLWELL HOUSE NURSING HOME,08/01/2018,310.10
Bath and North East Somerset Council,80742145,LM6,Nursing Care,P11,"Adult Care, Health & Wellbeing",CHOLWELL HOUSE NURSING HOME,08/01/2018,310.10
Bath and North East Somerset Council,80742145,LM6,Nursing Care,P11,"Adult Care, Health & Wellbeing",CHOLWELL HOUSE NURSING HOME,08/01/2018,310.10
Bath and North East Somerset Council,80742145,LM6,Nursing Care,P11,"Adult Care, Health & Wellbeing",CHOLWELL HOUSE NURSING HOME,08/01/2018,310.10
Bath and North East Somerset Council,80742145,LM6,Nursing Care,P11,"Adult Care, Health & Wellbeing",CHOLWELL HOUSE NURSING HOME,08/01/2018,310.10
Bath and North East Somerset Council,80742145,LM6,Nursing Care,P11,"Adult Care, Health & Wellbeing",CHOLWELL HOUSE NURSING HOME,08/01/2018,310.10
Bath and North East Somerset Council,80742145,LM6,Nursing Care,P11,"Adult Care, Health & Wellbeing",CHOLWELL HOUSE NURSING HOME,08/01/2018,310.10
Bath and North East Somerset Council,80742145,LM6,Nursing Care,P11,"Adult Care, Health & Wellbeing",CHOLWELL HOUSE NURSING HOME,08/01/2018,310.10
Bath and North East Somerset Council,80742145,LM6,Nursing Care,P11,"Adult Care, Health & Wellbeing",CHOLWELL HOUSE NURSING HOME,08/01/2018,310.10
Bath and North East Somerset Council,80742145,LM6,Nursing Care,P11,"Adult Care, Health & Wellbeing",CHOLWELL HOUSE NURSING HOME,08/01/2018,310.10
Bath and North East Somerset Council,80742145,LM6,Nursing Care,P11,"Adult Care, Health & Wellbeing",CHOLWELL HOUSE NURSING HOME,08/01/2018,310.10
Bath and North East Somerset Council,80742145,LM6,Nursing Care,P11,"Adult Care, Health & Wellbeing",CHOLWELL HOUSE NURSING HOME,08/01/2018,310.10
Bath and North East Somerset Council,80742292,LM6,Nursing Care,P11,"Adult Care, Health & Wellbeing",CHOLWELL HOUSE NURSING HOME,08/01/2018,1147.90
Bath and North East Somerset Council,80742292,LM6,Nursing Care,P11,"Adult Care, Health & Wellbeing",CHOLWELL HOUSE NURSING HOME,08/01/2018,1258.40
Bath and North East Somerset Council,80742292,LM6,Nursing Care,P11,"Adult Care, Health & Wellbeing",CHOLWELL HOUSE NURSING HOME,08/01/2018,1442.40
Bath and North East Somerset Council,80742292,LM6,Nursing Care,P11,"Adult Care, Health & Wellbeing",CHOLWELL HOUSE NURSING HOME,08/01/2018,1478.40
Bath and North East Somerset Council,80742292,LM3,Residential Care,P11,"Adult Care, Health & Wellbeing",CHOLWELL HOUSE NURSING HOME,08/01/2018,1500.00
Bath and North East Somerset Council,80742292,LM6,Nursing Care,P11,"Adult Care, Health & Wellbeing",CHOLWELL HOUSE NURSING HOME,08/01/2018,1502.40
Bath and North East Somerset Council,80742292,LM6,Nursing Care,P11,"Adult Care, Health & Wellbeing",CHOLWELL HOUSE NURSING HOME,08/01/2018,1502.40
Bath and North East Somerset Council,80741831,LM6,Nursing Care,P11,"Adult Care, Health & Wellbeing",CHOLWELL HOUSE NURSING HOME,08/01/2018,1700.00
Bath and North East Somerset Council,80741831,LM6,Nursing Care,P11,"Adult Care, Health & Wellbeing",CHOLWELL HOUSE NURSING HOME,08/01/2018,1812.00
Bath and North East Somerset Council,80741831,LM6,Nursing Care,P11,"Adult Care, Health & Wellbeing",CHOLWELL HOUSE NURSING HOME,08/01/2018,4052.00
Bath and North East Somerset Council,80741831,LM6,Nursing Care,P11,"Adult Care, Health & Wellbeing",CHOLWELL HOUSE NURSING HOME,08/01/2018,4503.75
Bath and North East Somerset Council,80741912,LL8,Individualised Budget,P11,"Adult Care, Health & Wellbeing",REDACTED,08/01/2018,1025.16
Bath and North East Somerset Council,80742188,LM3,Residential Care,P11,"Adult Care, Health & Wellbeing",COCKLEBURY FARMHOUSE,08/01/2018,2082.42
Bath and North East Somerset Council,10862710,LV2,Contributions to Organisations,P04,Leader,COMBE DOWN STONE LEGACY TRUST,08/01/2018,868.00
Bath and North East Somerset Council,80741847,LM6,Nursing Care,P11,"Adult Care, Health & Wellbeing",COMMUNITY OF ST ANTONY & ST ELIAS & REV,08/01/2018,3330.00
Bath and North East Somerset Council,80742340,LL3,Supported Living,P11,"Adult Care, Health & Wellbeing",COMMUNITY OF ST ANTONY & ST ELIAS & REV,08/01/2018,3654.70
Bath and North East Somerset Council,80742319,LM3,Residential Care,P11,"Adult Care, Health & Wellbeing",CONSENSUS SUPPORT SERVICES LTD,08/01/2018,4018.12
Bath and North East Somerset Council,80742319,LM3,Residential Care,P11,"Adult Care, Health & Wellbeing",CONSENSUS SUPPORT SERVICES LTD,08/01/2018,4100.24
Bath and North East Somerset Council,80742319,LM3,Residential Care,P11,"Adult Care, Health & Wellbeing",CONSENSUS SUPPORT SERVICES LTD,08/01/2018,4182.38
Bath and North East Somerset Council,80742319,LM3,Residential Care,P11,"Adult Care, Health & Wellbeing",CONSENSUS SUPPORT SERVICES LTD,08/01/2018,4182.38
Bath and North East Somerset Council,80742319,LM3,Residential Care,P11,"Adult Care, Health & Wellbeing",CONSENSUS SUPPORT SERVICES LTD,08/01/2018,8214.86
Bath and North East Somerset Council,80742190,LM3,Residential Care,P11,"Adult Care, Health & Wellbeing",CORNERSTONES UK LTD,08/01/2018,1556.64
Bath and North East Somerset Council,80742210,LM3,Residential Care,P11,"Adult Care, Health & Wellbeing",CORNERSTONES UK LTD,08/01/2018,3059.00
Bath and North East Somerset Council,80742212,LM3,Residential Care,P11,"Adult Care, Health & Wellbeing",CRAEGMOOR FACILITIES - REDACTED,08/01/2018,3492.50
Bath and North East Somerset Council,80742226,LM3,Residential Care,P11,"Adult Care, Health & Wellbeing",CRAEGMOOR FACILITIES - REDACTED,08/01/2018,1642.56
Bath and North East Somerset Council,80742291,LM3,Residential Care,P11,"Adult Care, Health & Wellbeing",CRAEGMOOR FACILITIES - REDACTED,08/01/2018,2074.14
Bath and North East Somerset Council,80742291,LM3,Residential Care,P11,"Adult Care, Health & Wellbeing",CRAEGMOOR FACILITIES - REDACTED,08/01/2018,2368.08
Bath and North East Somerset Council,80742291,LM3,Residential Care,P11,"Adult Care, Health & Wellbeing",CRAEGMOOR FACILITIES - REDACTED,08/01/2018,2771.92
Bath and North East Somerset Council,80742189,LM3,Residential Care,P11,"Adult Care, Health & Wellbeing",CRAEGMOOR FACILITIES - REDACTED,08/01/2018,2550.08
Bath and North East Somerset Council,80742257,LM3,Residential Care,P11,"Adult Care, Health & Wellbeing",CRAEGMOOR FACILITIES CO LTD,08/01/2018,3254.32
Bath and North East Somerset Council,80742148,LM6,Nursing Care,P11,"Adult Care, Health & Wellbeing",CRANHILL NURSING HOME LTD,08/01/2018,310.10
Bath and North East Somerset Council,80742148,LM6,Nursing Care,P11,"Adult Care, Health & Wellbeing",CRANHILL NURSING HOME LTD,08/01/2018,310.10
Bath and North East Somerset Council,80742148,LM6,Nursing Care,P11,"Adult Care, Health & Wellbeing",CRANHILL NURSING HOME LTD,08/01/2018,310.10
Bath and North East Somerset Council,80742148,LM6,Nursing Care,P11,"Adult Care, Health & Wellbeing",CRANHILL NURSING HOME LTD,08/01/2018,310.10
Bath and North East Somerset Council,80742148,LM6,Nursing Care,P11,"Adult Care, Health & Wellbeing",CRANHILL NURSING HOME LTD,08/01/2018,310.10
Bath and North East Somerset Council,80742148,LM6,Nursing Care,P11,"Adult Care, Health & Wellbeing",CRANHILL NURSING HOME LTD,08/01/2018,310.10
Bath and North East Somerset Council,80742148,LM6,Nursing Care,P11,"Adult Care, Health & Wellbeing",CRANHILL NURSING HOME LTD,08/01/2018,310.10
Bath and North East Somerset Council,80742148,LM6,Nursing Care,P11,"Adult Care, Health & Wellbeing",CRANHILL NURSING HOME LTD,08/01/2018,310.10
Bath and North East Somerset Council,80742148,LM6,Nursing Care,P11,"Adult Care, Health & Wellbeing",CRANHILL NURSING HOME LTD,08/01/2018,310.10
Bath and North East Somerset Council,80742148,LM6,Nursing Care,P11,"Adult Care, Health & Wellbeing",CRANHILL NURSING HOME LTD,08/01/2018,310.10
Bath and North East Somerset Council,80742148,LM6,Nursing Care,P11,"Adult Care, Health & Wellbeing",CRANHILL NURSING HOME LTD,08/01/2018,310.10
Bath and North East Somerset Council,80742148,LM6,Nursing Care,P11,"Adult Care, Health & Wellbeing",CRANHILL NURSING HOME LTD,08/01/2018,310.10
Bath and North East Somerset Council,80742148,LM6,Nursing Care,P11,"Adult Care, Health & Wellbeing",CRANHILL NURSING HOME LTD,08/01/2018,310.10
Bath and North East Somerset Council,80742148,LM6,Nursing Care,P11,"Adult Care, Health & Wellbeing",CRANHILL NURSING HOME LTD,08/01/2018,310.10
Bath and North East Somerset Council,80742148,LM6,Nursing Care,P11,"Adult Care, Health & Wellbeing",CRANHILL NURSING HOME LTD,08/01/2018,310.10
Bath and North East Somerset Council,80742148,LM6,Nursing Care,P11,"Adult Care, Health & Wellbeing",CRANHILL NURSING HOME LTD,08/01/2018,310.10
Bath and North East Somerset Council,80742296,LM6,Nursing Care,P11,"Adult Care, Health & Wellbeing",CRANHILL NURSING HOME LTD,08/01/2018,1496.40
Bath and North East Somerset Council,80742296,LM6,Nursing Care,P11,"Adult Care, Health & Wellbeing",CRANHILL NURSING HOME LTD,08/01/2018,1496.40
Bath and North East Somerset Council,80742238,LM3,Residential Care,P11,"Adult Care, Health & Wellbeing",CREAM HOLDING (TAUNTON) LTD,08/01/2018,5200.76
Bath and North East Somerset Council,80742222,LM3,Residential Care,P11,"Adult Care, Health & Wellbeing",CREAM I LTD,08/01/2018,5369.14
Bath and North East Somerset Council,80742254,LM3,Residential Care,P11,"Adult Care, Health & Wellbeing",CREAM III LTD,08/01/2018,5061.14
Bath and North East Somerset Council,80742151,LM6,Nursing Care,P11,"Adult Care, Health & Wellbeing",CULVERHAY NURSING HOME,08/01/2018,310.10
Bath and North East Somerset Council,80742151,LM6,Nursing Care,P11,"Adult Care, Health & Wellbeing",CULVERHAY NURSING HOME,08/01/2018,310.10
Bath and North East Somerset Council,80742151,LM6,Nursing Care,P11,"Adult Care, Health & Wellbeing",CULVERHAY NURSING HOME,08/01/2018,310.10
Bath and North East Somerset Council,80742151,LM6,Nursing Care,P11,"Adult Care, Health & Wellbeing",CULVERHAY NURSING HOME,08/01/2018,310.10
Bath and North East Somerset Council,80742151,LM6,Nursing Care,P11,"Adult Care, Health & Wellbeing",CULVERHAY NURSING HOME,08/01/2018,310.10
Bath and North East Somerset Council,80742151,LM6,Nursing Care,P11,"Adult Care, Health & Wellbeing",CULVERHAY NURSING HOME,08/01/2018,310.10
Bath and North East Somerset Council,80742151,LM6,Nursing Care,P11,"Adult Care, Health & Wellbeing",CULVERHAY NURSING HOME,08/01/2018,310.10
Bath and North East Somerset Council,80742151,LM6,Nursing Care,P11,"Adult Care, Health & Wellbeing",CULVERHAY NURSING HOME,08/01/2018,310.10
Bath and North East Somerset Council,80742151,LM6,Nursing Care,P11,"Adult Care, Health & Wellbeing",CULVERHAY NURSING HOME,08/01/2018,310.10
Bath and North East Somerset Council,80742151,LM6,Nursing Care,P11,"Adult Care, Health & Wellbeing",CULVERHAY NURSING HOME,08/01/2018,310.10
Bath and North East Somerset Council,80742151,LM6,Nursing Care,P11,"Adult Care, Health & Wellbeing",CULVERHAY NURSING HOME,08/01/2018,310.10
Bath and North East Somerset Council,80742151,LM6,Nursing Care,P11,"Adult Care, Health & Wellbeing",CULVERHAY NURSING HOME,08/01/2018,310.10
Bath and North East Somerset Council,80742151,LM6,Nursing Care,P11,"Adult Care, Health & Wellbeing",CULVERHAY NURSING HOME,08/01/2018,310.10
Bath and North East Somerset Council,80742151,LM6,Nursing Care,P11,"Adult Care, Health & Wellbeing",CULVERHAY NURSING HOME,08/01/2018,310.10
Bath and North East Somerset Council,80742151,LM6,Nursing Care,P11,"Adult Care, Health & Wellbeing",CULVERHAY NURSING HOME,08/01/2018,310.10
Bath and North East Somerset Council,80742151,LM6,Nursing Care,P11,"Adult Care, Health & Wellbeing",CULVERHAY NURSING HOME,08/01/2018,310.10
Bath and North East Somerset Council,80742151,LM6,Nursing Care,P11,"Adult Care, Health & Wellbeing",CULVERHAY NURSING HOME,08/01/2018,310.10
Bath and North East Somerset Council,80742151,LM6,Nursing Care,P11,"Adult Care, Health & Wellbeing",CULVERHAY NURSING HOME,08/01/2018,310.10
Bath and North East Somerset Council,80742151,LM6,Nursing Care,P11,"Adult Care, Health & Wellbeing",CULVERHAY NURSING HOME,08/01/2018,310.10
Bath and North East Somerset Council,80742151,LM6,Nursing Care,P11,"Adult Care, Health & Wellbeing",CULVERHAY NURSING HOME,08/01/2018,310.10
Bath and North East Somerset Council,80742151,LM6,Nursing Care,P11,"Adult Care, Health & Wellbeing",CULVERHAY NURSING HOME,08/01/2018,310.10
Bath and North East Somerset Council,80742151,LM6,Nursing Care,P11,"Adult Care, Health & Wellbeing",CULVERHAY NURSING HOME,08/01/2018,310.10
Bath and North East Somerset Council,80742151,LM6,Nursing Care,P11,"Adult Care, Health & Wellbeing",CULVERHAY NURSING HOME,08/01/2018,310.10
Bath and North East Somerset Council,80742151,LM6,Nursing Care,P11,"Adult Care, Health & Wellbeing",CULVERHAY NURSING HOME,08/01/2018,310.10
Bath and North East Somerset Council,80742151,LM6,Nursing Care,P11,"Adult Care, Health & Wellbeing",CULVERHAY NURSING HOME,08/01/2018,310.10
Bath and North East Somerset Council,80742151,LM6,Nursing Care,P11,"Adult Care, Health & Wellbeing",CULVERHAY NURSING HOME,08/01/2018,310.10
Bath and North East Somerset Council,80742151,LM6,Nursing Care,P11,"Adult Care, Health & Wellbeing",CULVERHAY NURSING HOME,08/01/2018,310.10
Bath and North East Somerset Council,80742151,LM6,Nursing Care,P11,"Adult Care, Health & Wellbeing",CULVERHAY NURSING HOME,08/01/2018,310.10
Bath and North East Somerset Council,80742151,LM6,Nursing Care,P11,"Adult Care, Health & Wellbeing",CULVERHAY NURSING HOME,08/01/2018,310.10
Bath and North East Somerset Council,80742151,LM6,Nursing Care,P11,"Adult Care, Health & Wellbeing",CULVERHAY NURSING HOME,08/01/2018,310.10
Bath and North East Somerset Council,80742151,LM6,Nursing Care,P11,"Adult Care, Health & Wellbeing",CULVERHAY NURSING HOME,08/01/2018,310.10
Bath and North East Somerset Council,80742151,LM6,Nursing Care,P11,"Adult Care, Health & Wellbeing",CULVERHAY NURSING HOME,08/01/2018,310.10
Bath and North East Somerset Council,80742151,LM6,Nursing Care,P11,"Adult Care, Health & Wellbeing",CULVERHAY NURSING HOME,08/01/2018,310.10
Bath and North East Somerset Council,80742151,LM6,Nursing Care,P11,"Adult Care, Health & Wellbeing",CULVERHAY NURSING HOME,08/01/2018,310.10
Bath and North East Somerset Council,80742151,LM6,Nursing Care,P11,"Adult Care, Health & Wellbeing",CULVERHAY NURSING HOME,08/01/2018,310.10
Bath and North East Somerset Council,80742151,LM6,Nursing Care,P11,"Adult Care, Health & Wellbeing",CULVERHAY NURSING HOME,08/01/2018,310.10
Bath and North East Somerset Council,80742151,LM6,Nursing Care,P11,"Adult Care, Health & Wellbeing",CULVERHAY NURSING HOME,08/01/2018,310.10
Bath and North East Somerset Council,80742151,LM6,Nursing Care,P11,"Adult Care, Health & Wellbeing",CULVERHAY NURSING HOME,08/01/2018,310.10
Bath and North East Somerset Council,80742151,LM6,Nursing Care,P11,"Adult Care, Health & Wellbeing",CULVERHAY NURSING HOME,08/01/2018,310.10
Bath and North East Somerset Council,80742151,LM6,Nursing Care,P11,"Adult Care, Health & Wellbeing",CULVERHAY NURSING HOME,08/01/2018,310.10
Bath and North East Somerset Council,80742151,LM6,Nursing Care,P11,"Adult Care, Health & Wellbeing",CULVERHAY NURSING HOME,08/01/2018,310.10
Bath and North East Somerset Council,80742151,LM6,Nursing Care,P11,"Adult Care, Health & Wellbeing",CULVERHAY NURSING HOME,08/01/2018,310.10
Bath and North East Somerset Council,80742151,LM6,Nursing Care,P11,"Adult Care, Health & Wellbeing",CULVERHAY NURSING HOME,08/01/2018,642.35
Bath and North East Somerset Council,80742151,LM6,Nursing Care,P11,"Adult Care, Health & Wellbeing",CULVERHAY NURSING HOME,08/01/2018,908.15
Bath and North East Somerset Council,80742151,LM6,Nursing Care,P11,"Adult Care, Health & Wellbeing",CULVERHAY NURSING HOME,08/01/2018,996.75
Bath and North East Somerset Council,80742298,LM6,Nursing Care,P11,"Adult Care, Health & Wellbeing",CULVERHAY NURSING HOME,08/01/2018,1559.90
Bath and North East Somerset Council,80742298,LM6,Nursing Care,P11,"Adult Care, Health & Wellbeing",CULVERHAY NURSING HOME,08/01/2018,1559.90
Bath and North East Somerset Council,80742298,LM6,Nursing Care,P11,"Adult Care, Health & Wellbeing",CULVERHAY NURSING HOME,08/01/2018,1559.90
Bath and North East Somerset Council,80742298,LM6,Nursing Care,P11,"Adult Care, Health & Wellbeing",CULVERHAY NURSING HOME,08/01/2018,1559.90
Bath and North East Somerset Council,80742298,LM6,Nursing Care,P11,"Adult Care, Health & Wellbeing",CULVERHAY NURSING HOME,08/01/2018,1648.40
Bath and North East Somerset Council,80742298,LM6,Nursing Care,P11,"Adult Care, Health & Wellbeing",CULVERHAY NURSING HOME,08/01/2018,1648.40
Bath and North East Somerset Council,80742298,LM6,Nursing Care,P11,"Adult Care, Health & Wellbeing",CULVERHAY NURSING HOME,08/01/2018,1648.40
Bath and North East Somerset Council,80742298,LM6,Nursing Care,P11,"Adult Care, Health & Wellbeing",CULVERHAY NURSING HOME,08/01/2018,1648.40
Bath and North East Somerset Council,80742298,LM6,Nursing Care,P11,"Adult Care, Health & Wellbeing",CULVERHAY NURSING HOME,08/01/2018,1648.40
Bath and North East Somerset Council,80742298,LM6,Nursing Care,P11,"Adult Care, Health & Wellbeing",CULVERHAY NURSING HOME,08/01/2018,1648.40
Bath and North East Somerset Council,80742298,LM6,Nursing Care,P11,"Adult Care, Health & Wellbeing",CULVERHAY NURSING HOME,08/01/2018,1648.40
Bath and North East Somerset Council,80742298,LM6,Nursing Care,P11,"Adult Care, Health & Wellbeing",CULVERHAY NURSING HOME,08/01/2018,1648.40
Bath and North East Somerset Council,80742298,LM6,Nursing Care,P11,"Adult Care, Health & Wellbeing",CULVERHAY NURSING HOME,08/01/2018,1648.40
Bath and North East Somerset Council,80742298,LM6,Nursing Care,P11,"Adult Care, Health & Wellbeing",CULVERHAY NURSING HOME,08/01/2018,1648.40
Bath and North East Somerset Council,80742298,LM6,Nursing Care,P11,"Adult Care, Health & Wellbeing",CULVERHAY NURSING HOME,08/01/2018,1648.40
Bath and North East Somerset Council,80742298,LM6,Nursing Care,P11,"Adult Care, Health & Wellbeing",CULVERHAY NURSING HOME,08/01/2018,1648.40
Bath and North East Somerset Council,80742298,LM6,Nursing Care,P11,"Adult Care, Health & Wellbeing",CULVERHAY NURSING HOME,08/01/2018,1648.40
Bath and North East Somerset Council,80742298,LM6,Nursing Care,P11,"Adult Care, Health & Wellbeing",CULVERHAY NURSING HOME,08/01/2018,1648.40
Bath and North East Somerset Council,80742298,LM6,Nursing Care,P11,"Adult Care, Health & Wellbeing",CULVERHAY NURSING HOME,08/01/2018,1648.40
Bath and North East Somerset Council,80742298,LM6,Nursing Care,P11,"Adult Care, Health & Wellbeing",CULVERHAY NURSING HOME,08/01/2018,1648.40
Bath and North East Somerset Council,80742298,LM6,Nursing Care,P11,"Adult Care, Health & Wellbeing",CULVERHAY NURSING HOME,08/01/2018,1648.40
Bath and North East Somerset Council,80742298,LM6,Nursing Care,P11,"Adult Care, Health & Wellbeing",CULVERHAY NURSING HOME,08/01/2018,1648.40
Bath and North East Somerset Council,80742298,LM6,Nursing Care,P11,"Adult Care, Health & Wellbeing",CULVERHAY NURSING HOME,08/01/2018,1648.40
Bath and North East Somerset Council,80742298,LM6,Nursing Care,P11,"Adult Care, Health & Wellbeing",CULVERHAY NURSING HOME,08/01/2018,1648.40
Bath and North East Somerset Council,80742298,LM6,Nursing Care,P11,"Adult Care, Health & Wellbeing",CULVERHAY NURSING HOME,08/01/2018,1648.60
Bath and North East Somerset Council,80742298,LM6,Nursing Care,P11,"Adult Care, Health & Wellbeing",CULVERHAY NURSING HOME,08/01/2018,1679.90
Bath and North East Somerset Council,80741836,LM6,Nursing Care,P11,"Adult Care, Health & Wellbeing",CULVERHAY NURSING HOME,08/01/2018,1870.00
Bath and North East Somerset Council,80741836,LM6,Nursing Care,P11,"Adult Care, Health & Wellbeing",CULVERHAY NURSING HOME,08/01/2018,1870.00
Bath and North East Somerset Council,80741836,LM6,Nursing Care,P11,"Adult Care, Health & Wellbeing",CULVERHAY NURSING HOME,08/01/2018,1870.00
Bath and North East Somerset Council,80741836,LM6,Nursing Care,P11,"Adult Care, Health & Wellbeing",CULVERHAY NURSING HOME,08/01/2018,1870.00
Bath and North East Somerset Council,80741836,LM6,Nursing Care,P11,"Adult Care, Health & Wellbeing",CULVERHAY NURSING HOME,08/01/2018,1870.00
Bath and North East Somerset Council,80742298,LM6,Nursing Care,P11,"Adult Care, Health & Wellbeing",CULVERHAY NURSING HOME,08/01/2018,1870.00
Bath and North East Somerset Council,80742298,LM6,Nursing Care,P11,"Adult Care, Health & Wellbeing",CULVERHAY NURSING HOME,08/01/2018,1870.00
Bath and North East Somerset Council,80742298,LM6,Nursing Care,P11,"Adult Care, Health & Wellbeing",CULVERHAY NURSING HOME,08/01/2018,1956.10
Bath and North East Somerset Council,80742298,LM6,Nursing Care,P11,"Adult Care, Health & Wellbeing",CULVERHAY NURSING HOME,08/01/2018,1956.10
Bath and North East Somerset Council,80742298,LM6,Nursing Care,P11,"Adult Care, Health & Wellbeing",CULVERHAY NURSING HOME,08/01/2018,2024.60
Bath and North East Somerset Council,80742151,LM6,Nursing Care,P11,"Adult Care, Health & Wellbeing",CULVERHAY NURSING HOME,08/01/2018,2126.40
Bath and North East Somerset Council,80742298,LM6,Nursing Care,P11,"Adult Care, Health & Wellbeing",CULVERHAY NURSING HOME,08/01/2018,2399.86
Bath and North East Somerset Council,80742298,LM6,Nursing Care,P11,"Adult Care, Health & Wellbeing",CULVERHAY NURSING HOME,08/01/2018,3740.60
Bath and North East Somerset Council,80741962,LL8,Individualised Budget,P11,"Adult Care, Health & Wellbeing",REDACTED,08/01/2018,1262.60
Bath and North East Somerset Council,80742065,LL8,Individualised Budget,P11,"Adult Care, Health & Wellbeing",REDACTED,08/01/2018,3004.64
Bath and North East Somerset Council,80741986,LL8,Individualised Budget,P11,"Adult Care, Health & Wellbeing",REDACTED - CARE ACCOUNT,08/01/2018,3146.00
Bath and North East Somerset Council,80742232,LM6,Nursing Care,P11,"Adult Care, Health & Wellbeing",REDACTED,08/01/2018,1149.46
Bath and North East Somerset Council,80741865,LL8,Individualised Budget,P11,"Adult Care, Health & Wellbeing",DEVELOPING HEALTH AND INDEPENDENCE,08/01/2018,6.00
Bath and North East Somerset Council,80741865,LL8,Individualised Budget,P11,"Adult Care, Health & Wellbeing",DEVELOPING HEALTH AND INDEPENDENCE,08/01/2018,16.00
Bath and North East Somerset Council,80741865,LL8,Individualised Budget,P11,"Adult Care, Health & Wellbeing",DEVELOPING HEALTH AND INDEPENDENCE,08/01/2018,23.08
Bath and North East Somerset Council,80741865,LL8,Individualised Budget,P11,"Adult Care, Health & Wellbeing",DEVELOPING HEALTH AND INDEPENDENCE,08/01/2018,34.66
Bath and North East Somerset Council,80741865,LL8,Individualised Budget,P11,"Adult Care, Health & Wellbeing",DEVELOPING HEALTH AND INDEPENDENCE,08/01/2018,52.00
Bath and North East Somerset Council,80741865,LL8,Individualised Budget,P11,"Adult Care, Health & Wellbeing",DEVELOPING HEALTH AND INDEPENDENCE,08/01/2018,56.48
Bath and North East Somerset Council,80741865,LL8,Individualised Budget,P11,"Adult Care, Health & Wellbeing",DEVELOPING HEALTH AND INDEPENDENCE,08/01/2018,60.00
Bath and North East Somerset Council,80741865,LL8,Individualised Budget,P11,"Adult Care, Health & Wellbeing",DEVELOPING HEALTH AND INDEPENDENCE,08/01/2018,61.50
Bath and North East Somerset Council,80741865,LL8,Individualised Budget,P11,"Adult Care, Health & Wellbeing",DEVELOPING HEALTH AND INDEPENDENCE,08/01/2018,66.18
Bath and North East Somerset Council,80741865,LL8,Individualised Budget,P11,"Adult Care, Health & Wellbeing",DEVELOPING HEALTH AND INDEPENDENCE,08/01/2018,67.00
Bath and North East Somerset Council,80741865,LL8,Individualised Budget,P11,"Adult Care, Health & Wellbeing",DEVELOPING HEALTH AND INDEPENDENCE,08/01/2018,70.00
Bath and North East Somerset Council,80741865,LL8,Individualised Budget,P11,"Adult Care, Health & Wellbeing",DEVELOPING HEALTH AND INDEPENDENCE,08/01/2018,75.08
Bath and North East Somerset Council,80741865,LL8,Individualised Budget,P11,"Adult Care, Health & Wellbeing",DEVELOPING HEALTH AND INDEPENDENCE,08/01/2018,81.02
Bath and North East Somerset Council,80741865,LL8,Individualised Budget,P11,"Adult Care, Health & Wellbeing",DEVELOPING HEALTH AND INDEPENDENCE,08/01/2018,88.00
Bath and North East Somerset Council,80741865,LL8,Individualised Budget,P11,"Adult Care, Health & Wellbeing",DEVELOPING HEALTH AND INDEPENDENCE,08/01/2018,96.04
Bath and North East Somerset Council,80741865,LL8,Individualised Budget,P11,"Adult Care, Health & Wellbeing",DEVELOPING HEALTH AND INDEPENDENCE,08/01/2018,106.70
Bath and North East Somerset Council,80741865,LL8,Individualised Budget,P11,"Adult Care, Health & Wellbeing",DEVELOPING HEALTH AND INDEPENDENCE,08/01/2018,110.00
Bath and North East Somerset Council,80741865,LL8,Individualised Budget,P11,"Adult Care, Health & Wellbeing",DEVELOPING HEALTH AND INDEPENDENCE,08/01/2018,115.54
Bath and North East Somerset Council,80741865,LL8,Individualised Budget,P11,"Adult Care, Health & Wellbeing",DEVELOPING HEALTH AND INDEPENDENCE,08/01/2018,117.88
Bath and North East Somerset Council,80741865,LL8,Individualised Budget,P11,"Adult Care, Health & Wellbeing",DEVELOPING HEALTH AND INDEPENDENCE,08/01/2018,118.00
Bath and North East Somerset Council,80741865,LL8,Individualised Budget,P11,"Adult Care, Health & Wellbeing",DEVELOPING HEALTH AND INDEPENDENCE,08/01/2018,120.00
Bath and North East Somerset Council,80741865,LL8,Individualised Budget,P11,"Adult Care, Health & Wellbeing",DEVELOPING HEALTH AND INDEPENDENCE,08/01/2018,122.42
Bath and North East Somerset Council,80741865,LL8,Individualised Budget,P11,"Adult Care, Health & Wellbeing",DEVELOPING HEALTH AND INDEPENDENCE,08/01/2018,129.20
Bath and North East Somerset Council,80741865,LL8,Individualised Budget,P11,"Adult Care, Health & Wellbeing",DEVELOPING HEALTH AND INDEPENDENCE,08/01/2018,131.14
Bath and North East Somerset Council,80741865,LL8,Individualised Budget,P11,"Adult Care, Health & Wellbeing",DEVELOPING HEALTH AND INDEPENDENCE,08/01/2018,134.40
Bath and North East Somerset Council,80741865,LL8,Individualised Budget,P11,"Adult Care, Health & Wellbeing",DEVELOPING HEALTH AND INDEPENDENCE,08/01/2018,135.26
Bath and North East Somerset Council,80741865,LL8,Individualised Budget,P11,"Adult Care, Health & Wellbeing",DEVELOPING HEALTH AND INDEPENDENCE,08/01/2018,140.40
Bath and North East Somerset Council,80741865,LL8,Individualised Budget,P11,"Adult Care, Health & Wellbeing",DEVELOPING HEALTH AND INDEPENDENCE,08/01/2018,142.30
Bath and North East Somerset Council,80741865,LL8,Individualised Budget,P11,"Adult Care, Health & Wellbeing",DEVELOPING HEALTH AND INDEPENDENCE,08/01/2018,147.76
Bath and North East Somerset Council,80741865,LL8,Individualised Budget,P11,"Adult Care, Health & Wellbeing",DEVELOPING HEALTH AND INDEPENDENCE,08/01/2018,150.50
Bath and North East Somerset Council,80741865,LL8,Individualised Budget,P11,"Adult Care, Health & Wellbeing",DEVELOPING HEALTH AND INDEPENDENCE,08/01/2018,153.60
Bath and North East Somerset Council,80741865,LL8,Individualised Budget,P11,"Adult Care, Health & Wellbeing",DEVELOPING HEALTH AND INDEPENDENCE,08/01/2018,158.40
Bath and North East Somerset Council,80741865,LL8,Individualised Budget,P11,"Adult Care, Health & Wellbeing",DEVELOPING HEALTH AND INDEPENDENCE,08/01/2018,160.00
Bath and North East Somerset Council,80741865,LL8,Individualised Budget,P11,"Adult Care, Health & Wellbeing",DEVELOPING HEALTH AND INDEPENDENCE,08/01/2018,161.60
Bath and North East Somerset Council,80741865,LL8,Individualised Budget,P11,"Adult Care, Health & Wellbeing",DEVELOPING HEALTH AND INDEPENDENCE,08/01/2018,162.80
Bath and North East Somerset Council,80741865,LL8,Individualised Budget,P11,"Adult Care, Health & Wellbeing",DEVELOPING HEALTH AND INDEPENDENCE,08/01/2018,163.20
Bath and North East Somerset Council,80741865,LL8,Individualised Budget,P11,"Adult Care, Health & Wellbeing",DEVELOPING HEALTH AND INDEPENDENCE,08/01/2018,168.06
Bath and North East Somerset Council,80741865,LL8,Individualised Budget,P11,"Adult Care, Health & Wellbeing",DEVELOPING HEALTH AND INDEPENDENCE,08/01/2018,178.00
Bath and North East Somerset Council,80741865,LL8,Individualised Budget,P11,"Adult Care, Health & Wellbeing",DEVELOPING HEALTH AND INDEPENDENCE,08/01/2018,178.48
Bath and North East Somerset Council,80741865,LL8,Individualised Budget,P11,"Adult Care, Health & Wellbeing",DEVELOPING HEALTH AND INDEPENDENCE,08/01/2018,182.00
Bath and North East Somerset Council,80741865,LL8,Individualised Budget,P11,"Adult Care, Health & Wellbeing",DEVELOPING HEALTH AND INDEPENDENCE,08/01/2018,183.82
Bath and North East Somerset Council,80741865,LL8,Individualised Budget,P11,"Adult Care, Health & Wellbeing",DEVELOPING HEALTH AND INDEPENDENCE,08/01/2018,187.20
Bath and North East Somerset Council,80741865,LL8,Individualised Budget,P11,"Adult Care, Health & Wellbeing",DEVELOPING HEALTH AND INDEPENDENCE,08/01/2018,188.00
Bath and North East Somerset Council,80741865,LL8,Individualised Budget,P11,"Adult Care, Health & Wellbeing",DEVELOPING HEALTH AND INDEPENDENCE,08/01/2018,188.32
Bath and North East Somerset Council,80741865,LL8,Individualised Budget,P11,"Adult Care, Health & Wellbeing",DEVELOPING HEALTH AND INDEPENDENCE,08/01/2018,193.38
Bath and North East Somerset Council,10862618,LJ4,Contracts,P18,Transport & Environment,KEYNSHAM CARS,08/01/2018,480.00
Bath and North East Somerset Council,80741865,LL8,Individualised Budget,P11,"Adult Care, Health & Wellbeing",DEVELOPING HEALTH AND INDEPENDENCE,08/01/2018,199.66
Bath and North East Somerset Council,80741865,LL8,Individualised Budget,P11,"Adult Care, Health & Wellbeing",DEVELOPING HEALTH AND INDEPENDENCE,08/01/2018,208.00
Bath and North East Somerset Council,80741865,LL8,Individualised Budget,P11,"Adult Care, Health & Wellbeing",DEVELOPING HEALTH AND INDEPENDENCE,08/01/2018,208.00
Bath and North East Somerset Council,80741865,LL8,Individualised Budget,P11,"Adult Care, Health & Wellbeing",DEVELOPING HEALTH AND INDEPENDENCE,08/01/2018,208.00
Bath and North East Somerset Council,80741865,LL8,Individualised Budget,P11,"Adult Care, Health & Wellbeing",DEVELOPING HEALTH AND INDEPENDENCE,08/01/2018,210.00
Bath and North East Somerset Council,10862599,LJ2,Legal Fees,P15,Development & Neighbourhoods,MR ALUN WILLIAMS,08/01/2018,487.50
Bath and North East Somerset Council,80741865,LL8,Individualised Budget,P11,"Adult Care, Health & Wellbeing",DEVELOPING HEALTH AND INDEPENDENCE,08/01/2018,210.46
Bath and North East Somerset Council,80741865,LL8,Individualised Budget,P11,"Adult Care, Health & Wellbeing",DEVELOPING HEALTH AND INDEPENDENCE,08/01/2018,211.86
Bath and North East Somerset Council,80741865,LL8,Individualised Budget,P11,"Adult Care, Health & Wellbeing",DEVELOPING HEALTH AND INDEPENDENCE,08/01/2018,214.56
Bath and North East Somerset Council,80741865,LL8,Individualised Budget,P11,"Adult Care, Health & Wellbeing",DEVELOPING HEALTH AND INDEPENDENCE,08/01/2018,214.94
Bath and North East Somerset Council,80741865,LL8,Individualised Budget,P11,"Adult Care, Health & Wellbeing",DEVELOPING HEALTH AND INDEPENDENCE,08/01/2018,216.00
Bath and North East Somerset Council,80741865,LL8,Individualised Budget,P11,"Adult Care, Health & Wellbeing",DEVELOPING HEALTH AND INDEPENDENCE,08/01/2018,216.44
Bath and North East Somerset Council,80741865,LL8,Individualised Budget,P11,"Adult Care, Health & Wellbeing",DEVELOPING HEALTH AND INDEPENDENCE,08/01/2018,218.40
Bath and North East Somerset Council,80741865,LL8,Individualised Budget,P11,"Adult Care, Health & Wellbeing",DEVELOPING HEALTH AND INDEPENDENCE,08/01/2018,223.70
Bath and North East Somerset Council,80741865,LL8,Individualised Budget,P11,"Adult Care, Health & Wellbeing",DEVELOPING HEALTH AND INDEPENDENCE,08/01/2018,226.00
Bath and North East Somerset Council,80741865,LL8,Individualised Budget,P11,"Adult Care, Health & Wellbeing",DEVELOPING HEALTH AND INDEPENDENCE,08/01/2018,229.50
Bath and North East Somerset Council,80741865,LL8,Individualised Budget,P11,"Adult Care, Health & Wellbeing",DEVELOPING HEALTH AND INDEPENDENCE,08/01/2018,232.00
Bath and North East Somerset Council,80741865,LL8,Individualised Budget,P11,"Adult Care, Health & Wellbeing",DEVELOPING HEALTH AND INDEPENDENCE,08/01/2018,232.00
Bath and North East Somerset Council,80741865,LL8,Individualised Budget,P11,"Adult Care, Health & Wellbeing",DEVELOPING HEALTH AND INDEPENDENCE,08/01/2018,234.14
Bath and North East Somerset Council,80741865,LL8,Individualised Budget,P11,"Adult Care, Health & Wellbeing",DEVELOPING HEALTH AND INDEPENDENCE,08/01/2018,236.00
Bath and North East Somerset Council,80741865,LL8,Individualised Budget,P11,"Adult Care, Health & Wellbeing",DEVELOPING HEALTH AND INDEPENDENCE,08/01/2018,242.76
Bath and North East Somerset Council,80741865,LL8,Individualised Budget,P11,"Adult Care, Health & Wellbeing",DEVELOPING HEALTH AND INDEPENDENCE,08/01/2018,246.00
Bath and North East Somerset Council,80741865,LL8,Individualised Budget,P11,"Adult Care, Health & Wellbeing",DEVELOPING HEALTH AND INDEPENDENCE,08/01/2018,265.00
Bath and North East Somerset Council,80741865,LL8,Individualised Budget,P11,"Adult Care, Health & Wellbeing",DEVELOPING HEALTH AND INDEPENDENCE,08/01/2018,275.50
Bath and North East Somerset Council,80741865,LL8,Individualised Budget,P11,"Adult Care, Health & Wellbeing",DEVELOPING HEALTH AND INDEPENDENCE,08/01/2018,276.00
Bath and North East Somerset Council,80741817,LL8,Individualised Budget,P11,"Adult Care, Health & Wellbeing",DEVELOPING HEALTH AND INDEPENDENCE,08/01/2018,279.68
Bath and North East Somerset Council,80741865,LL8,Individualised Budget,P11,"Adult Care, Health & Wellbeing",DEVELOPING HEALTH AND INDEPENDENCE,08/01/2018,283.38
Bath and North East Somerset Council,80741865,LL8,Individualised Budget,P11,"Adult Care, Health & Wellbeing",DEVELOPING HEALTH AND INDEPENDENCE,08/01/2018,284.02
Bath and North East Somerset Council,80741865,LL8,Individualised Budget,P11,"Adult Care, Health & Wellbeing",DEVELOPING HEALTH AND INDEPENDENCE,08/01/2018,286.16
Bath and North East Somerset Council,80741865,LL8,Individualised Budget,P11,"Adult Care, Health & Wellbeing",DEVELOPING HEALTH AND INDEPENDENCE,08/01/2018,288.00
Bath and North East Somerset Council,80741865,LL8,Individualised Budget,P11,"Adult Care, Health & Wellbeing",DEVELOPING HEALTH AND INDEPENDENCE,08/01/2018,289.72
Bath and North East Somerset Council,80741865,LL8,Individualised Budget,P11,"Adult Care, Health & Wellbeing",DEVELOPING HEALTH AND INDEPENDENCE,08/01/2018,289.84
Bath and North East Somerset Council,80741865,LL8,Individualised Budget,P11,"Adult Care, Health & Wellbeing",DEVELOPING HEALTH AND INDEPENDENCE,08/01/2018,294.80
Bath and North East Somerset Council,80741865,LL8,Individualised Budget,P11,"Adult Care, Health & Wellbeing",DEVELOPING HEALTH AND INDEPENDENCE,08/01/2018,298.00
Bath and North East Somerset Council,80741865,LL8,Individualised Budget,P11,"Adult Care, Health & Wellbeing",DEVELOPING HEALTH AND INDEPENDENCE,08/01/2018,304.00
Bath and North East Somerset Council,80741865,LL8,Individualised Budget,P11,"Adult Care, Health & Wellbeing",DEVELOPING HEALTH AND INDEPENDENCE,08/01/2018,304.20
Bath and North East Somerset Council,80741865,LL8,Individualised Budget,P11,"Adult Care, Health & Wellbeing",DEVELOPING HEALTH AND INDEPENDENCE,08/01/2018,305.20
Bath and North East Somerset Council,80741865,LL8,Individualised Budget,P11,"Adult Care, Health & Wellbeing",DEVELOPING HEALTH AND INDEPENDENCE,08/01/2018,321.04
Bath and North East Somerset Council,80741865,LL8,Individualised Budget,P11,"Adult Care, Health & Wellbeing",DEVELOPING HEALTH AND INDEPENDENCE,08/01/2018,322.00
Bath and North East Somerset Council,80741865,LL8,Individualised Budget,P11,"Adult Care, Health & Wellbeing",DEVELOPING HEALTH AND INDEPENDENCE,08/01/2018,324.72
Bath and North East Somerset Council,80741865,LL8,Individualised Budget,P11,"Adult Care, Health & Wellbeing",DEVELOPING HEALTH AND INDEPENDENCE,08/01/2018,330.00
Bath and North East Somerset Council,80741865,LL8,Individualised Budget,P11,"Adult Care, Health & Wellbeing",DEVELOPING HEALTH AND INDEPENDENCE,08/01/2018,330.00
Bath and North East Somerset Council,80741865,LL8,Individualised Budget,P11,"Adult Care, Health & Wellbeing",DEVELOPING HEALTH AND INDEPENDENCE,08/01/2018,338.00
Bath and North East Somerset Council,80741865,LL8,Individualised Budget,P11,"Adult Care, Health & Wellbeing",DEVELOPING HEALTH AND INDEPENDENCE,08/01/2018,338.00
Bath and North East Somerset Council,80741865,LL8,Individualised Budget,P11,"Adult Care, Health & Wellbeing",DEVELOPING HEALTH AND INDEPENDENCE,08/01/2018,342.00
Bath and North East Somerset Council,80741865,LL8,Individualised Budget,P11,"Adult Care, Health & Wellbeing",DEVELOPING HEALTH AND INDEPENDENCE,08/01/2018,344.30
Bath and North East Somerset Council,10862745,LJ4,Contracts,P18,Transport & Environment,JASON KING LTD,08/01/2018,530.00
Bath and North East Somerset Council,80741865,LL8,Individualised Budget,P11,"Adult Care, Health & Wellbeing",DEVELOPING HEALTH AND INDEPENDENCE,08/01/2018,345.46
Bath and North East Somerset Council,80741865,LL8,Individualised Budget,P11,"Adult Care, Health & Wellbeing",DEVELOPING HEALTH AND INDEPENDENCE,08/01/2018,356.00
Bath and North East Somerset Council,80741865,LL8,Individualised Budget,P11,"Adult Care, Health & Wellbeing",DEVELOPING HEALTH AND INDEPENDENCE,08/01/2018,364.00
Bath and North East Somerset Council,80741865,LL8,Individualised Budget,P11,"Adult Care, Health & Wellbeing",DEVELOPING HEALTH AND INDEPENDENCE,08/01/2018,366.00
Bath and North East Somerset Council,80741865,LL8,Individualised Budget,P11,"Adult Care, Health & Wellbeing",DEVELOPING HEALTH AND INDEPENDENCE,08/01/2018,369.02
Bath and North East Somerset Council,80741865,LL8,Individualised Budget,P11,"Adult Care, Health & Wellbeing",DEVELOPING HEALTH AND INDEPENDENCE,08/01/2018,370.00
Bath and North East Somerset Council,80741865,LL8,Individualised Budget,P11,"Adult Care, Health & Wellbeing",DEVELOPING HEALTH AND INDEPENDENCE,08/01/2018,378.00
Bath and North East Somerset Council,80741865,LL8,Individualised Budget,P11,"Adult Care, Health & Wellbeing",DEVELOPING HEALTH AND INDEPENDENCE,08/01/2018,402.00
Bath and North East Somerset Council,80741865,LL8,Individualised Budget,P11,"Adult Care, Health & Wellbeing",DEVELOPING HEALTH AND INDEPENDENCE,08/01/2018,403.45
Bath and North East Somerset Council,80741865,LL8,Individualised Budget,P11,"Adult Care, Health & Wellbeing",DEVELOPING HEALTH AND INDEPENDENCE,08/01/2018,414.40
Bath and North East Somerset Council,80741865,LL8,Individualised Budget,P11,"Adult Care, Health & Wellbeing",DEVELOPING HEALTH AND INDEPENDENCE,08/01/2018,417.72
Bath and North East Somerset Council,80741865,LL8,Individualised Budget,P11,"Adult Care, Health & Wellbeing",DEVELOPING HEALTH AND INDEPENDENCE,08/01/2018,424.00
Bath and North East Somerset Council,80741865,LL8,Individualised Budget,P11,"Adult Care, Health & Wellbeing",DEVELOPING HEALTH AND INDEPENDENCE,08/01/2018,425.20
Bath and North East Somerset Council,80741865,LL8,Individualised Budget,P11,"Adult Care, Health & Wellbeing",DEVELOPING HEALTH AND INDEPENDENCE,08/01/2018,429.00
Bath and North East Somerset Council,80741865,LL8,Individualised Budget,P11,"Adult Care, Health & Wellbeing",DEVELOPING HEALTH AND INDEPENDENCE,08/01/2018,429.84
Bath and North East Somerset Council,80741865,LL8,Individualised Budget,P11,"Adult Care, Health & Wellbeing",DEVELOPING HEALTH AND INDEPENDENCE,08/01/2018,433.62
Bath and North East Somerset Council,80741865,LL8,Individualised Budget,P11,"Adult Care, Health & Wellbeing",DEVELOPING HEALTH AND INDEPENDENCE,08/01/2018,453.30
Bath and North East Somerset Council,80741865,LL8,Individualised Budget,P11,"Adult Care, Health & Wellbeing",DEVELOPING HEALTH AND INDEPENDENCE,08/01/2018,454.00
Bath and North East Somerset Council,80741865,LL8,Individualised Budget,P11,"Adult Care, Health & Wellbeing",DEVELOPING HEALTH AND INDEPENDENCE,08/01/2018,472.50
Bath and North East Somerset Council,80741865,LL8,Individualised Budget,P11,"Adult Care, Health & Wellbeing",DEVELOPING HEALTH AND INDEPENDENCE,08/01/2018,475.00
Bath and North East Somerset Council,80741865,LL8,Individualised Budget,P11,"Adult Care, Health & Wellbeing",DEVELOPING HEALTH AND INDEPENDENCE,08/01/2018,475.00
Bath and North East Somerset Council,80741865,LL8,Individualised Budget,P11,"Adult Care, Health & Wellbeing",DEVELOPING HEALTH AND INDEPENDENCE,08/01/2018,480.00
Bath and North East Somerset Council,80741865,LL8,Individualised Budget,P11,"Adult Care, Health & Wellbeing",DEVELOPING HEALTH AND INDEPENDENCE,08/01/2018,482.76
Bath and North East Somerset Council,80741865,LL8,Individualised Budget,P11,"Adult Care, Health & Wellbeing",DEVELOPING HEALTH AND INDEPENDENCE,08/01/2018,483.20
Bath and North East Somerset Council,80741865,LL8,Individualised Budget,P11,"Adult Care, Health & Wellbeing",DEVELOPING HEALTH AND INDEPENDENCE,08/01/2018,484.88
Bath and North East Somerset Council,80741865,LL8,Individualised Budget,P11,"Adult Care, Health & Wellbeing",DEVELOPING HEALTH AND INDEPENDENCE,08/01/2018,507.18
Bath and North East Somerset Council,80741865,LL8,Individualised Budget,P11,"Adult Care, Health & Wellbeing",DEVELOPING HEALTH AND INDEPENDENCE,08/01/2018,510.70
Bath and North East Somerset Council,80741865,LL8,Individualised Budget,P11,"Adult Care, Health & Wellbeing",DEVELOPING HEALTH AND INDEPENDENCE,08/01/2018,511.08
Bath and North East Somerset Council,80741865,LL8,Individualised Budget,P11,"Adult Care, Health & Wellbeing",DEVELOPING HEALTH AND INDEPENDENCE,08/01/2018,516.02
Bath and North East Somerset Council,80741865,LL8,Individualised Budget,P11,"Adult Care, Health & Wellbeing",DEVELOPING HEALTH AND INDEPENDENCE,08/01/2018,520.00
Bath and North East Somerset Council,80741865,LL8,Individualised Budget,P11,"Adult Care, Health & Wellbeing",DEVELOPING HEALTH AND INDEPENDENCE,08/01/2018,531.70
Bath and North East Somerset Council,80741865,LL8,Individualised Budget,P11,"Adult Care, Health & Wellbeing",DEVELOPING HEALTH AND INDEPENDENCE,08/01/2018,546.76
Bath and North East Somerset Council,80741865,LL8,Individualised Budget,P11,"Adult Care, Health & Wellbeing",DEVELOPING HEALTH AND INDEPENDENCE,08/01/2018,551.82
Bath and North East Somerset Council,80741865,LL8,Individualised Budget,P11,"Adult Care, Health & Wellbeing",DEVELOPING HEALTH AND INDEPENDENCE,08/01/2018,562.00
Bath and North East Somerset Council,10862625,LT2,Hospitality,P10,Finance & Efficiency,IVY HOUSE FARM LTD,08/01/2018,555.47
Bath and North East Somerset Council,80741865,LL8,Individualised Budget,P11,"Adult Care, Health & Wellbeing",DEVELOPING HEALTH AND INDEPENDENCE,08/01/2018,568.00
Bath and North East Somerset Council,80741865,LL8,Individualised Budget,P11,"Adult Care, Health & Wellbeing",DEVELOPING HEALTH AND INDEPENDENCE,08/01/2018,568.38
Bath and North East Somerset Council,80741865,LL8,Individualised Budget,P11,"Adult Care, Health & Wellbeing",DEVELOPING HEALTH AND INDEPENDENCE,08/01/2018,571.38
Bath and North East Somerset Council,80741865,LL8,Individualised Budget,P11,"Adult Care, Health & Wellbeing",DEVELOPING HEALTH AND INDEPENDENCE,08/01/2018,592.80
Bath and North East Somerset Council,10862763,KD1,Employees Public Transport,P04,Leader,N WASHBOURNE PERSONAL DRIVER,08/01/2018,562.50
Bath and North East Somerset Council,80741865,LL8,Individualised Budget,P11,"Adult Care, Health & Wellbeing",DEVELOPING HEALTH AND INDEPENDENCE,08/01/2018,624.92
Bath and North East Somerset Council,80741865,LL8,Individualised Budget,P11,"Adult Care, Health & Wellbeing",DEVELOPING HEALTH AND INDEPENDENCE,08/01/2018,656.00
Bath and North East Somerset Council,80741865,LL8,Individualised Budget,P11,"Adult Care, Health & Wellbeing",DEVELOPING HEALTH AND INDEPENDENCE,08/01/2018,687.44
Bath and North East Somerset Council,80741865,LL8,Individualised Budget,P11,"Adult Care, Health & Wellbeing",DEVELOPING HEALTH AND INDEPENDENCE,08/01/2018,695.66
Bath and North East Somerset Council,80741865,LL8,Individualised Budget,P11,"Adult Care, Health & Wellbeing",DEVELOPING HEALTH AND INDEPENDENCE,08/01/2018,730.42
Bath and North East Somerset Council,80741865,LL8,Individualised Budget,P11,"Adult Care, Health & Wellbeing",DEVELOPING HEALTH AND INDEPENDENCE,08/01/2018,744.00
Bath and North East Somerset Council,80741865,LL8,Individualised Budget,P11,"Adult Care, Health & Wellbeing",DEVELOPING HEALTH AND INDEPENDENCE,08/01/2018,788.64
Bath and North East Somerset Council,80741865,LL8,Individualised Budget,P11,"Adult Care, Health & Wellbeing",DEVELOPING HEALTH AND INDEPENDENCE,08/01/2018,798.00
Bath and North East Somerset Council,80741865,LL8,Individualised Budget,P11,"Adult Care, Health & Wellbeing",DEVELOPING HEALTH AND INDEPENDENCE,08/01/2018,807.56
Bath and North East Somerset Council,80741865,LL8,Individualised Budget,P11,"Adult Care, Health & Wellbeing",DEVELOPING HEALTH AND INDEPENDENCE,08/01/2018,819.08
Bath and North East Somerset Council,80741865,LL8,Individualised Budget,P11,"Adult Care, Health & Wellbeing",DEVELOPING HEALTH AND INDEPENDENCE,08/01/2018,845.32
Bath and North East Somerset Council,80741865,LL8,Individualised Budget,P11,"Adult Care, Health & Wellbeing",DEVELOPING HEALTH AND INDEPENDENCE,08/01/2018,887.34
Bath and North East Somerset Council,80741865,LL8,Individualised Budget,P11,"Adult Care, Health & Wellbeing",DEVELOPING HEALTH AND INDEPENDENCE,08/01/2018,890.46
Bath and North East Somerset Council,80741865,LL8,Individualised Budget,P11,"Adult Care, Health & Wellbeing",DEVELOPING HEALTH AND INDEPENDENCE,08/01/2018,898.00
Bath and North East Somerset Council,80741865,LL8,Individualised Budget,P11,"Adult Care, Health & Wellbeing",DEVELOPING HEALTH AND INDEPENDENCE,08/01/2018,928.74
Bath and North East Somerset Council,80741865,LL8,Individualised Budget,P11,"Adult Care, Health & Wellbeing",DEVELOPING HEALTH AND INDEPENDENCE,08/01/2018,949.42
Bath and North East Somerset Council,80741865,LL8,Individualised Budget,P11,"Adult Care, Health & Wellbeing",DEVELOPING HEALTH AND INDEPENDENCE,08/01/2018,964.08
Bath and North East Somerset Council,80741865,LL8,Individualised Budget,P11,"Adult Care, Health & Wellbeing",DEVELOPING HEALTH AND INDEPENDENCE,08/01/2018,970.00
Bath and North East Somerset Council,80741865,LL8,Individualised Budget,P11,"Adult Care, Health & Wellbeing",DEVELOPING HEALTH AND INDEPENDENCE,08/01/2018,972.00
Bath and North East Somerset Council,80741865,LL8,Individualised Budget,P11,"Adult Care, Health & Wellbeing",DEVELOPING HEALTH AND INDEPENDENCE,08/01/2018,994.48
Bath and North East Somerset Council,80741865,LL8,Individualised Budget,P11,"Adult Care, Health & Wellbeing",DEVELOPING HEALTH AND INDEPENDENCE,08/01/2018,998.60
Bath and North East Somerset Council,80741817,LL8,Individualised Budget,P11,"Adult Care, Health & Wellbeing",DEVELOPING HEALTH AND INDEPENDENCE,08/01/2018,1003.08
Bath and North East Somerset Council,80741865,LL8,Individualised Budget,P11,"Adult Care, Health & Wellbeing",DEVELOPING HEALTH AND INDEPENDENCE,08/01/2018,1004.00
Bath and North East Somerset Council,80741865,LL8,Individualised Budget,P11,"Adult Care, Health & Wellbeing",DEVELOPING HEALTH AND INDEPENDENCE,08/01/2018,1004.18
Bath and North East Somerset Council,80741865,LL8,Individualised Budget,P11,"Adult Care, Health & Wellbeing",DEVELOPING HEALTH AND INDEPENDENCE,08/01/2018,1036.42
Bath and North East Somerset Council,80741865,LL8,Individualised Budget,P11,"Adult Care, Health & Wellbeing",DEVELOPING HEALTH AND INDEPENDENCE,08/01/2018,1038.60
Bath and North East Somerset Council,80741865,LL8,Individualised Budget,P11,"Adult Care, Health & Wellbeing",DEVELOPING HEALTH AND INDEPENDENCE,08/01/2018,1047.84
Bath and North East Somerset Council,80741865,LL8,Individualised Budget,P11,"Adult Care, Health & Wellbeing",DEVELOPING HEALTH AND INDEPENDENCE,08/01/2018,1096.88
Bath and North East Somerset Council,80741865,LL8,Individualised Budget,P11,"Adult Care, Health & Wellbeing",DEVELOPING HEALTH AND INDEPENDENCE,08/01/2018,1104.10
Bath and North East Somerset Council,80741865,LL8,Individualised Budget,P11,"Adult Care, Health & Wellbeing",DEVELOPING HEALTH AND INDEPENDENCE,08/01/2018,1125.70
Bath and North East Somerset Council,80741865,LL8,Individualised Budget,P11,"Adult Care, Health & Wellbeing",DEVELOPING HEALTH AND INDEPENDENCE,08/01/2018,1155.52
Bath and North East Somerset Council,80741865,LL8,Individualised Budget,P11,"Adult Care, Health & Wellbeing",DEVELOPING HEALTH AND INDEPENDENCE,08/01/2018,1185.60
Bath and North East Somerset Council,80741865,LL8,Individualised Budget,P11,"Adult Care, Health & Wellbeing",DEVELOPING HEALTH AND INDEPENDENCE,08/01/2018,1199.04
Bath and North East Somerset Council,80741865,LL8,Individualised Budget,P11,"Adult Care, Health & Wellbeing",DEVELOPING HEALTH AND INDEPENDENCE,08/01/2018,1234.00
Bath and North East Somerset Council,10862715,LJ4,Contracts,P18,Transport & Environment,HIGHWAY TAXIS & TRAVEL,08/01/2018,620.62
Bath and North East Somerset Council,80741865,LL8,Individualised Budget,P11,"Adult Care, Health & Wellbeing",DEVELOPING HEALTH AND INDEPENDENCE,08/01/2018,1242.10
Bath and North East Somerset Council,80741817,LL8,Individualised Budget,P11,"Adult Care, Health & Wellbeing",DEVELOPING HEALTH AND INDEPENDENCE,08/01/2018,1300.00
Bath and North East Somerset Council,80741865,LL8,Individualised Budget,P11,"Adult Care, Health & Wellbeing",DEVELOPING HEALTH AND INDEPENDENCE,08/01/2018,1345.44
Bath and North East Somerset Council,80741865,LL8,Individualised Budget,P11,"Adult Care, Health & Wellbeing",DEVELOPING HEALTH AND INDEPENDENCE,08/01/2018,1350.80
Bath and North East Somerset Council,80741865,LL8,Individualised Budget,P11,"Adult Care, Health & Wellbeing",DEVELOPING HEALTH AND INDEPENDENCE,08/01/2018,1360.00
Bath and North East Somerset Council,80741865,LL8,Individualised Budget,P11,"Adult Care, Health & Wellbeing",DEVELOPING HEALTH AND INDEPENDENCE,08/01/2018,1405.04
Bath and North East Somerset Council,80741865,LL8,Individualised Budget,P11,"Adult Care, Health & Wellbeing",DEVELOPING HEALTH AND INDEPENDENCE,08/01/2018,1441.26
Bath and North East Somerset Council,80741865,LL8,Individualised Budget,P11,"Adult Care, Health & Wellbeing",DEVELOPING HEALTH AND INDEPENDENCE,08/01/2018,1484.00
Bath and North East Somerset Council,80741865,LL8,Individualised Budget,P11,"Adult Care, Health & Wellbeing",DEVELOPING HEALTH AND INDEPENDENCE,08/01/2018,1549.84
Bath and North East Somerset Council,80741865,LL8,Individualised Budget,P11,"Adult Care, Health & Wellbeing",DEVELOPING HEALTH AND INDEPENDENCE,08/01/2018,1637.20
Bath and North East Somerset Council,80741865,LL8,Individualised Budget,P11,"Adult Care, Health & Wellbeing",DEVELOPING HEALTH AND INDEPENDENCE,08/01/2018,1702.00
Bath and North East Somerset Council,80741865,LL8,Individualised Budget,P11,"Adult Care, Health & Wellbeing",DEVELOPING HEALTH AND INDEPENDENCE,08/01/2018,1919.60
Bath and North East Somerset Council,80741865,LL8,Individualised Budget,P11,"Adult Care, Health & Wellbeing",DEVELOPING HEALTH AND INDEPENDENCE,08/01/2018,1990.00
Bath and North East Somerset Council,80741865,LL8,Individualised Budget,P11,"Adult Care, Health & Wellbeing",DEVELOPING HEALTH AND INDEPENDENCE,08/01/2018,2036.00
Bath and North East Somerset Council,80741817,LL8,Individualised Budget,P11,"Adult Care, Health & Wellbeing",DEVELOPING HEALTH AND INDEPENDENCE,08/01/2018,2211.10
Bath and North East Somerset Council,80741865,LL8,Individualised Budget,P11,"Adult Care, Health & Wellbeing",DEVELOPING HEALTH AND INDEPENDENCE,08/01/2018,2224.00
Bath and North East Somerset Council,80741865,LL8,Individualised Budget,P11,"Adult Care, Health & Wellbeing",DEVELOPING HEALTH AND INDEPENDENCE,08/01/2018,2866.20
Bath and North East Somerset Council,80741817,LL8,Individualised Budget,P11,"Adult Care, Health & Wellbeing",DEVELOPING HEALTH AND INDEPENDENCE,08/01/2018,3134.00
Bath and North East Somerset Council,80741817,LL8,Individualised Budget,P11,"Adult Care, Health & Wellbeing",DEVELOPING HEALTH AND INDEPENDENCE,08/01/2018,4792.64
Bath and North East Somerset Council,80741865,LL8,Individualised Budget,P11,"Adult Care, Health & Wellbeing",DEVELOPING HEALTH AND INDEPENDENCE,08/01/2018,6548.15
Bath and North East Somerset Council,80741817,LL8,Individualised Budget,P11,"Adult Care, Health & Wellbeing",DEVELOPING HEALTH AND INDEPENDENCE,08/01/2018,7076.60
Bath and North East Somerset Council,10862772,LA1,Equipment Purchase (Non Medical),P15,Development & Neighbourhoods,D BRASH & SONS LTD,08/01/2018,668.00
Bath and North East Somerset Council,80742339,LL3,Supported Living,P11,"Adult Care, Health & Wellbeing",DEVON SHELTERED HOMES TRUST - REDACTED,08/01/2018,875.06
Bath and North East Somerset Council,10862297,HA1,Responsive Maintenance,P10,Finance & Efficiency,DAVID ROCHE GEOCONSULTING LTD,08/01/2018,700.00
Bath and North East Somerset Council,10862399,3C4,Building Works,P18,Transport & Environment,COUNTRY CONTRACTS,08/01/2018,702.00
Bath and North East Somerset Council,80742308,LM3,Residential Care,P11,"Adult Care, Health & Wellbeing",DIMENSIONS (UK) LTD,08/01/2018,821.80
